{"text_format":"1","workbook":"xlsx","n_sheets":125,"sheets":["INICIO","Datos generales","C 2.1","C 2.2","C 2.3","C 2.4","C 2.4 A.","C 2.4 B. ","C 2.5","CI cuadro 2.6. estatal","CI cuadro 2.6. privado","CI cuadro 2.7","C 2.8","C2.9","C.2.10","C.2.11","C2,12","CP C3.1","CP C3.2","CP C3.3","CP C3.4","CP C3.4. A estatal","CP C3.4 B privado","CP C 3.5","CP 3.6","CP C 3.7","CP C3,8 y 3.9 ","CP C 3.10","CP C 3.11","CP 3.12","CP C3.13","CP C3.14","CSC4.1","CSC4.2","CSC4.3","CSC4.4","CSC4.4 A","CSC4.4 B","CSC4.5","CSC4.5. A","CSC4.5.B","CSC4.6","CSC4.7 ","CSC4.8","CSC4.9","CSC4.10","CSC4.11 A sec orient","CSC4.11 B sec tecnica","CSC4.12 A sec orient","CSC4.12 B sec técnica","CSC4.13 A","CSC4.13 B","CSC 4.14 A egre orientada","CSC 4.14 B egre técnica","CSC 4.15","CSC 4.16","CSC 4.17","CSC 4.18","CSC 4.19","CSC 4.20","CSC 4.21","Cuadro 4.22","S C5.1","S C5.2","S C5.3.","S C5.4.","S C5.5.","S C5.6","S C5.7","CSC5.8.","S.C5.9","S C 5.10","EC6.1","EC6.2","EC6.3","E6.4.1 y 6.4.2","E6.4.3","E6.5,6.6,6.7","E6.8","E6.9","E6.10","E 6.11","EC6.12","Cuadro 7.1. ","Cuadro 7.2","Cuadro7.3","C.8.1 Datos grales","C.8.2 contexto de priv lib","C.8.3.","C. 8.4 ","C. 8.5","C.8.6","C.8.7","C. 8.8","C.8.9","C. 8.10","C. 8.11","C 8.12","C. 8.13 y 8.14","C. 8.15 "," c. 8,15 A y B."," C 8.16","C 8.17","C. 8.18","C.9.1","C. 9.2","C.9.3 ","C.9.4","FP C10.1","FP C10.2","C10.3","CSC10.4","C10.5","Carátula","CI Carátula","CP Carátula","CS Carátula","S Carátula","E Carátula","DH Carátula","A Carátula","AP Carátula","AS Carátula","Ar Carátula","FP Carátula"],"not_rendered":{"charts":0,"images":9,"macros":1,"external_links":0,"defined_names":133,"comments":0,"pivot_tables":0},"unopened":[],"bounds":{"document_bytes":16777216,"sheet_cells":100000,"rows_first":2000,"rows_last":500,"rows_between":2000,"halvings":0,"cell_chars":16384,"cell_head_chars":4096},"cells_cut":0,"cells_raw":0,"read":"whole","date_system":"1900"}

{"sheet":"INICIO","index":0,"n_rows":119,"n_cols":45,"rows_kept":119,"cut":false,"hidden":false,"merged":[[9,33,9,34],[5,34,6,37]]}
["oferta","tabla","numerodehoja",null,"ordenoferta",1,{"$f":"INDEX(G2:G11,F1)","v":"1. Datos Generales"},null,null,1,2,3,4,5,6,7,8,9,10,null,"nivel/oferta",1,2,3,4,5,6,7,8,9,10,null,null,null,null,null,null,null,null,null,null,null,null,1,2]
[1,{"$f":"J2","v":"Unidades educativas, alumnos, docentes, sector, modalidad y nivel"},2,null,"ordentabla",1,"1. Datos Generales",null,1,{"$f":"IF($G$22=1,AR2,AS2)","v":"Unidades educativas, alumnos, docentes, sector, modalidad y nivel"},{"$f":"IF($G$22=1,AR3,AS3)","v":"Unidades educativas, alumnos, docentes, sector, dependencia y ámbito."},{"$f":"IF($G$22=1,AR18,AS18)","v":"Unidades educativas, alumnos, docentes, sector, dependencia y ámbito."},{"$f":"IF($G$22=1,AR34,AS34)","v":"Unidades educativas, alumnos, docentes, sector, dependencia y ámbito"},{"$f":"IF($G$22=1,AR64,AS64)","v":"Unidades educativas, alumnos, docentes, sector y dependencia"},{"$f":"IF($G$22=1,AR74,AS74)","v":"Establecimientos, alumnos, docentes, y sector "},{"$f":"IF($G$22=1,AR88,AS88)","v":"Establecimientos, alumnos, docentes, sector y dependencia"},{"$f":"IF($G$22=1,AR91,AS91)","v":"Primario y secundario. Unidades educativas, alumnos, docentes, sector y ámbito"},{"$f":"IF($G$22=1,AR111,AS111)","v":"Unidades educativas, alumnos, docentes y sector "},{"$f":"IF($G$22=1,AR115,AS115)","v":"Unidades educativas, alumnos, docentes y organismo de dependencia"},null,"cantidad de tablas",{"$f":"COUNTA(J:J)-1","v":1},15,16,30,10,14,3,20,4,5,null,null,null,null,null,null,null,null,null,null,null,1,"Unidades educativas o establecimientos, alumnos y personal docente en actividad, por sector, según modalidad y nivel","Unidades educativas, alumnos, docentes, sector, modalidad y nivel"]
[2,{"$f":"K2","v":"Unidades educativas, alumnos, docentes, sector, dependencia y ámbito."},3,null,"tabla",{"$f":"INDEX(Combotablas,ordentabla)","v":"Unidades educativas, alumnos, docentes, sector, modalidad y nivel"},"2. Inicial común",null,2,null,{"$f":"IF($G$22=1,AR4,AS4)","v":"Unidades educativas, alumnos, docentes, sector y dpto."},{"$f":"IF($G$22=1,AR19,AS19)","v":"Unidades educativas, alumnos, docentes, sector y dpto."},"Unidades educativas, alumnos, docentes, sector y dpto.",{"$f":"IF($G$22=1,AR65,AS65)","v":"Bases, anexos, alumnos, docentes, sector y dpto."},"Bases, anexos, alumnos, docentes, sector y dpto.",{"$f":"IF($G$22=1,AR89,AS89)","v":"Alumnos, sexo, modalidad y nivel "},{"$f":"IF($G$22=1,AR92,AS92)","v":"Primario y secundario. Contexto de privación de la libertad. Alumnos, sexo y nivel "},{"$f":"IF($G$22=1,AR112,AS112)","v":"Unidades educativas, alumnos, docentes, sector y dpto."},{"$f":"IF($G$22=1,AR116,AS116)","v":"Bases, anexos, alumnos, docentes y dpto."},null,"ntablas",{"$f":"HLOOKUP(ordenoferta,$V$1:$AE$2,2,FALSE)","v":1},null,null,null,null,null,null,null,null,null,null,null,null,null,null,null,null,null,null,null,null,2,"Unidades educativas, alumnos y personal docente en actividad, por sector y dependencia, según ámbito","Unidades educativas, alumnos, docentes, sector, dependencia y ámbito."]
[2,{"$f":"K3","v":"Unidades educativas, alumnos, docentes, sector y dpto."},4,null,"ordenhoja",{"$f":"VLOOKUP(tabla,rangotablahoja,2,FALSE)","v":2},"3. Primario común",null,3,null,{"$f":"IF($G$22=1,AR5,AS5)","v":"Bases, anexos, sector, ámbito y dpto."},"Bases, anexos, sector, ámbito y dpto.","Bases y anexos, sector, ámbito y dpto.","Alumnos, sector, sexo y tipo de formación.","Alumnos, sector, sexo y dpto.",{"$f":"IF($G$22=1,AR90,AS90)","v":"Alumnos, tipo de atención, modalidad y nivel "},"Primario. Unidades educativas, alumnos, docentes, sector, dependencia y ámbito ",{"$f":"IF($G$22=1,AR113,AS113)","v":"Alumnos y tipo de por oferta"},{"$f":"IF($G$22=1,AR117,AS117)","v":"Alumnos, sexo y nivel"},null,null,null,null,null,null,null,null,null,null,null,null,null,null,null,null,null,null,null,null,null,null,null,2,"Unidades educativas, alumnos, docente en actividad, sector y departamento","Unidades educativas, alumnos, docentes, sector y dpto."]
[2,"Bases, anexos, sector, ámbito y dpto.",5,null,"ordenhojaantesdecambiar",111,"4. Secundario común",null,4,null,"Alumnos, sexo y dpto.","Alumnos, sexo y dpto.","Alumnos, sexo y dpto.","Alumnos, sector, sexo y dpto.","Alumnos, nivel de la educación formal y dpto.",null,"Primario. Bases, anexos, alumnos, docentes, ámbito y dpto.",{"$f":"IF($G$22=1,AR114,AS114)","v":"Alumnos, sector, sexo y especialidad"},{"$f":"IF($G$22=1,AR118,AS118)","v":"Docentes, origen y forma de designación"},null,null,null,null,null,null,null,null,null,null,null,null,null,null,null,null,null,null,null,null,null,null,null,2,"Bases y anexos, por sector y ámbito, según departamento","Bases, anexos, sector, ámbito y dpto."]
[2,"Alumnos, sexo y dpto.",6,null,"ordenexport",1,"5. Superior",null,5,null,"Sector estatal. Alumnos, ámbito, sexo y dpto. ","Sector estatal. Alumnos, ámbito, sexo y dpto. ","Sector estatal. Alumnos, ámbito, sexo y dpto.","Ingresantes a 1° año, sector, sexo y dpto","Promovidos de 6° grado de primario, egresados de secundario y dpto.",null,"Primario. Alumnos, ámbito, sexo y dpto.",null,{"$f":"IF($G$22=1,AR119,AS119)","v":"Docentes, por sexo y dpto."},null,null,null,null,null,null,null,null,null,null,null,null,null,null,null,null,null,null,null,null,null,null,null,2,"Alumnos por sexo, según departamento","Alumnos, sexo y dpto."]
[2,"Sector estatal. Alumnos, ámbito, sexo y dpto. ",7,null,null,null,"6. Especial",null,6,null,"Sector privado. Alumnos, ámbito, sexo y dpto. ","Sector privado. Alumnos, ámbito, sexo y dpto. ","Sector privado. Alumnos, ámbito, sexo y dpto.","Alumnos, sector, tipo de carrera y tipo de rama ","Alumnos de educación no formal, sector y dpto.",null,"Primario. Secciones, tipo de sección, ámbito y dpto.",null,null,null,null,null,null,null,null,null,null,null,null,null,null,null,null,null,null,null,null,null,null,null,null,null,2,"Alumnos por ámbito y sexo, según departamento. Sector estatal","Sector estatal. Alumnos, ámbito, sexo y dpto. "]
[2,"Sector privado. Alumnos, ámbito, sexo y dpto. ",8,null,null,null,"7.Hospitalaria y Domiciliaria",null,7,null,"Alumnos, tipo de jardín, salas, año lectivo y sector.","Alumnos, grado y dpto.","Alumnos, año de estudio y dpto.","Egresados ciclo 2018, sector, sexo y dpto.",{"$f":"IF($G$22=1,AR80,AS80)","v":"Alumnos integrados, sector de la escuela de origen y ciclo lectivo (2014-2019)"},null,"Primario. Docentes, ámbito y dpto.",null,null,null,null,null,null,null,null,null,null,null,null,null,null,null,null,null,null,null,null,null,null,null,null,null,2,"Alumnos por ámbito y sexo, según departamento. Sector privado","Sector privado. Alumnos, ámbito, sexo y dpto. "]
[2,"Alumnos, tipo de jardín, salas, año lectivo y sector.",9,null,null,null,"8. Jóvenes y Adultos",null,8,null,"Sector estatal. Alumnos, tipo de sección, tipo de jardín, sala y dpto.","Alumnos, sector, tipo de sección y dpto.","Ciclo básico. Alumnos, año de estudio, sexo y dpto.","Docentes, lugar de origen, forma de designación y sector","Cargos cubiertos de maestro integrador, sector y ciclo lectivo (2014 - 2019)",null,"Secundario. Unidades educativas, alumnos, docentes, sector y ámbito",null,null,null,null,null,null,null,null,null,null,null,null,null,null,null,null,null,null,null,null,null,null,null,null,null,2,"Alumnos de jardín maternal y de jardín de infantes, por salas de 3, 4 y 5, según año de relevamiento y sector","Alumnos, tipo de jardín, salas, año lectivo y sector."]
[2,"Sector estatal. Alumnos, tipo de sección, tipo de jardín, sala y dpto.",10,null,null,null,"9. Artística",null,9,null,"Sector privado. Alumnos, tipo de sección, tipo de jardín, sala y dpto.","Alumnos, repitentes, sobreedad y dpto.","Ciclo orientado. Alumnos, año de estudio, sexo y dpto.","Docentes, sexo y dpto.","Alumnos, tipo de integración y ciclo lectivo (2014 -2019)",null,"Secundario. Unidades educativas, alumnos, docentes, sector y dpto.",null,null,null,null,null,null,null,null,null,null,null,null,null,null,null,null,null,null,null,null,null,null,null,null,null,2,"Sector estatal. Alumnos en secciones independientes de jardín maternal y de jardín de infantes, por salas de 3, 4 y 5 y alumnos en secciones múltiples, según departamento","Sector estatal. Alumnos, tipo de sección, tipo de jardín, sala y dpto."]
[2,"Sector privado. Alumnos, tipo de sección, tipo de jardín, sala y dpto.",11,null,null,null,"10. Formación Profesional",null,10,null,"Secciones, tipo de sección, tipo de jardín, sala y sector.","Alumnos, repitentes, sexo y grado","Alumnos, repetidores, sobreedad y dpto.","Docentes, sector, ámbito, origen de la designación y dpto.","Alumnos integrados, tipo de discapacidad y ciclo (2014 - 2019)",null,"Secundario. Bases, anexos, sector, ámbito y dpto.",null,null,null,null,null,null,null,null,null,null,null,null,null,null,null,null,null,null,null,null,null,null,null,null,null,2,"Sector privado. Alumnos en secciones independientes de jardín maternal y de jardín de infantes, por salas de 3, 4 y 5 y alumnos en secciones múltiples, según departamento","Sector privado. Alumnos, tipo de sección, tipo de jardín, sala y dpto."]
[2,"Secciones, tipo de sección, tipo de jardín, sala y sector.",12,null,null,null,"Anuario completo",null,11,null,"Secciones, tipo de sección, tipo de jardín, sala, sector y dpto.","Alumnos, sobreedad y grado","Alumnos, repetidores, sexo y año de estudio",null,"Alumnos integrados, sector de la escuela de origen, tipo de discapacidad y ciclo (2014 - 2019)",null,"Secundario. Alumno, sector, ámbito, sexo y dpto.",null,null,null,null,null,null,null,null,null,null,null,null,null,null,null,null,null,null,null,null,null,null,null,null,null,2,"Secciones independientes de jardín maternal y de jardín de infantes, por salas de 3, 4 y 5 y secciones múltiples, según sector","Secciones, tipo de sección, tipo de jardín, sala y sector."]
[2,"Secciones, tipo de sección, tipo de jardín, sala, sector y dpto.",13,null,null,null,null,null,12,null,"Secciones, tipo de sección, sector, ámbito y dpto.","Tasas de promoción, no promoción y  abandono anual, grado y  año lectivo","Alumnos, sobreedad y año de estudio",null,"Alumnos con discapacidad, tipo de seguimiento que reciben, modalidad y nivel",null,"Secundario. Alumnos, ciclo, sector y ámbito",null,null,null,null,null,null,null,null,null,null,null,null,null,null,null,null,null,null,null,null,null,null,null,null,null,2,"Secciones independientes de jardín maternal y jardín de infantes, por salas de 3, 4 y 5 y secciones múltiples por sector, según departamento","Secciones, tipo de sección, tipo de jardín, sala, sector y dpto."]
[2,"Secciones, tipo de sección, sector, ámbito y dpto.",14,null,null,null,null,null,13,null,"Docentes, sexo y dpto.","Secciones, tipo de sección, sector, ámbito y dpto.","Tasa de promoción, de no promoción y de abandono anual,  año de estudio y ciclo lectivo",null,"Docentes, sector y dpto. ",null,"Secundario. Alumnos, modalidad de dictado y ámbito",null,null,null,null,null,null,null,null,null,null,null,null,null,null,null,null,null,null,null,null,null,null,null,null,null,2,"Secciones por sector, ámbito y tipo , según departamento","Secciones, tipo de sección, sector, ámbito y dpto."]
[2,"Docentes, sexo y dpto.",15,null,null,null,null,null,14,null,"Docentes, sector, ámbito y dpto.","Docentes, sexo y dpto.","Egresados 2018, sector, sexo y dpto.",null,"Cargos docentes cubiertos frente a alumnos, sector y dpto.",null,"Secundario. Alumnos, sexo, modalidad de dictado y ámbito",null,null,null,null,null,null,null,null,null,null,null,null,null,null,null,null,null,null,null,null,null,null,null,null,null,2,"Personal docente en actividad, por sexo, según departamento ","Docentes, sexo y dpto."]
[2,"Docentes, sector, ámbito y dpto.",16,null,null,null,null,null,15,null,"Cargos docentes, tipo de cargo, sector, ámbito y dpto. ","Docentes, sector, ámbito y dpto.","Secundaria orientada. Alumnos, sector, ámbito, ciclo y orientación",null,null,null,"Secundario. Egresados 2018, sexo y modalidad de dictado",null,null,null,null,null,null,null,null,null,null,null,null,null,null,null,null,null,null,null,null,null,null,null,null,null,2,"Personal docente en actividad, por sector y ámbito, según departamento","Docentes, sector, ámbito y dpto."]
[2,"Cargos docentes, tipo de cargo, sector, ámbito y dpto. ",17,null,null,null,null,null,16,null,null,"Cargos docentes, tipo de cargo, sector, ámbito y dpto. ","Secundaria técnica. Alumnos, sector, ámbito, ciclo y título",null,null,null,"Secundario. Modalidad presencial. Egresados 2018, sexo, plan y orientación",null,null,null,null,null,null,null,null,null,null,null,null,null,null,null,null,null,null,null,null,null,null,null,null,null,2,"Cargos docentes, tipo de cargo, sector, ámbito y dpto. ","Cargos docentes, tipo de cargo, sector, ámbito y dpto. "]
[3,{"$f":"L2","v":"Unidades educativas, alumnos, docentes, sector, dependencia y ámbito."},18,null,null,null,null,null,17,null,null,null,"Secundaria orientada. Alumnos, sector, sexo, ciclo y orientación",null,null,null,"Secundario. Modalidad a distancia. Egresados 2018, sexo y orientación",null,null,null,null,null,null,null,null,null,null,null,null,null,null,null,null,null,null,null,null,null,null,null,null,null,3,"Unidades educativas, alumnos y personal docente en actividad, por sector y dependencia, según ámbito","Unidades educativas, alumnos, docentes, sector, dependencia y ámbito."]
[3,{"$f":"L3","v":"Unidades educativas, alumnos, docentes, sector y dpto."},19,null,null,null,null,null,18,null,null,null,"Secundaria técnica. Alumnos, sector, sexo, ciclo y título",null,null,null,"Secundario. Docentes, sector, lugar de origen y forma de designación",null,null,null,null,null,null,null,null,null,null,null,null,null,null,null,null,null,null,null,null,null,null,null,null,null,3,"Unidades educativas, alumnos y personal docente en actividad, por sector, según departamento","Unidades educativas, alumnos, docentes, sector y dpto."]
[3,"Bases, anexos, sector, ámbito y dpto.",20,null,null,null,null,null,19,null,null,null,"Secundaria orientada. alumnos, repetidores, sobreedad y año de estudio",null,null,null,"Secundario. Docentes, sexo y dpto.",null,null,null,null,null,null,null,null,null,null,null,null,null,null,null,null,null,null,null,null,null,null,null,null,null,3,"Bases y anexos, por sector y ámbito, según departamento","Bases, anexos, sector, ámbito y dpto."]
[3,"Alumnos, sexo y dpto.",21,null,null,null,null,null,20,null,null,null,"Secundaria técnica. Alumnos, repetidores, sobreedad y año de estudio",null,null,null,{"$f":"IF($G$22=1,AR110,AS110)","v":"Secundario. Docentes, sector, ámbito y dpto."},null,null,null,null,null,null,null,null,null,null,null,null,null,null,null,null,null,null,null,null,null,null,null,null,null,3,"Alumnos por sexo, según departamento ","Alumnos, sexo y dpto."]
[3,"Sector estatal. Alumnos, ámbito, sexo y dpto. ",22,null,null,null,2,null,21,null,null,null,"Secundaria orientada. Egresados 2018, sector, sexo y orientación",null,null,null,null,null,null,null,null,null,null,null,null,null,null,null,null,null,null,null,null,null,null,null,null,null,null,null,null,null,3,"Alumnos por ámbito y sexo, según departamento - Sector estatal","Sector estatal. Alumnos, ámbito, sexo y dpto. "]
[3,"Sector privado. Alumnos, ámbito, sexo y dpto. ",23,null,null,null,"Título de tabla",null,22,null,null,null,"Secundaria técnica. Egresados 2018, sector, sexo y título",null,null,null,null,null,null,null,null,null,null,null,null,null,null,null,null,null,null,null,null,null,null,null,null,null,null,null,null,null,3,"Alumnos por ámbito y sexo, según departamento - Sector privado","Sector privado. Alumnos, ámbito, sexo y dpto. "]
[3,"Alumnos, grado y dpto.",24,null,null,null,"Variables en la tabla",null,23,null,null,null,"PIT. Alumnos, sector, sexo y ámbito",null,null,null,null,null,null,null,null,null,null,null,null,null,null,null,null,null,null,null,null,null,null,null,null,null,null,null,null,null,3,"Alumnos por grado, según departamento","Alumnos, grado y dpto."]
[3,"Alumnos, sector, tipo de sección y dpto.",25,null,null,null,null,null,24,null,null,null,"PIT. Alumnos, sexo y ciclo lectivo",null,null,null,null,null,null,null,null,null,null,null,null,null,null,null,null,null,null,null,null,null,null,null,null,null,null,null,null,null,3,"Alumnos por sector y tipo de sección, según departamento","Alumnos, sector, tipo de sección y dpto."]
[3,"Alumnos, repitentes, sobreedad y dpto.",26,null,null,null,null,null,25,null,null,null,"PIT. Egresado 2018, sector, sexo y dpto.",null,null,null,null,null,null,null,null,null,null,null,null,null,null,null,null,null,null,null,null,null,null,null,null,null,null,null,null,null,3,"Total de alumnos, total y porcentaje de alumnos repitentes y con sobreedad, según departamento","Alumnos, repitentes, sobreedad y dpto."]
[3,"Alumnos, repitentes, sexo y grado",27,null,null,null,null,null,26,null,null,null,"Secciones, tipo de sección, sector, ámbito y dpto.",null,null,null,null,null,null,null,null,null,null,null,null,null,null,null,null,null,null,null,null,null,null,null,null,null,null,null,null,null,3,"Total de alumnos, total y porcentaje de alumnos repitentes por sexo, según grado","Alumnos, repitentes, sexo y grado"]
[3,"Alumnos, sobreedad y grado",27,null,null,null,null,null,27,null,null,null,"Docentes,  lugar de origen, forma de designación y sector",null,null,null,null,null,null,null,null,null,null,null,null,null,null,null,null,null,null,null,null,null,null,null,null,null,null,null,null,null,3,"Total de alumnos, total y porcentaje de alumnos con sobreedad, según grado","Alumnos, sobreedad y grado"]
[3,"Tasas de promoción, no promoción y  abandono anual, grado y  año lectivo",28,null,null,null,null,null,28,null,null,null,"Docente, sexo y dpto.",null,null,null,null,null,null,null,null,null,null,null,null,null,null,null,null,null,null,null,null,null,null,null,null,null,null,null,null,null,3,"Tasa de promoción, de no promoción y de abandono anual, por año de estudio, según ciclo lectivo","Tasas de promoción, no promoción y  abandono anual, grado y  año lectivo"]
[3,"Secciones, tipo de sección, sector, ámbito y dpto.",29,null,null,null,null,null,29,null,null,null,"Docentes, lugar de origen de la designación y dpto.",null,null,null,null,null,null,null,null,null,null,null,null,null,null,null,null,null,null,null,null,null,null,null,null,null,null,null,null,null,3,"Secciones por sector, ámbito y tipo, según departamento","Secciones, tipo de sección, sector, ámbito y dpto."]
[3,"Docentes, sexo y dpto.",30,null,null,null,null,null,30,null,null,null,"Docente, sector, ámbito, lugar de origen de la designación y dpto.",null,null,null,null,null,null,null,null,null,null,null,null,null,null,null,null,null,null,null,null,null,null,null,null,null,null,null,null,null,3,"Personal docente en actividad, por sexo, según departamento ","Docentes, sexo y dpto."]
[3,"Docentes, sector, ámbito y dpto.",31,null,null,null,null,null,31,null,null,null,null,null,null,null,null,null,null,null,null,null,null,null,null,null,null,null,null,null,null,null,null,null,null,null,null,null,null,null,null,null,3,"Personal docente en actividad, por sector y ámbito, según departamento","Docentes, sector, ámbito y dpto."]
[3,"Cargos docentes, tipo de cargo, sector, ámbito y dpto. ",32,null,null,null,null,null,null,null,null,null,null,null,null,null,null,null,null,null,null,null,null,null,null,null,null,null,null,null,null,null,null,null,null,null,null,null,null,null,null,null,3,"Cargos docentes cubiertos frente a alumnos, por tipo de cargo, sector y ámbito, según departamento ","Cargos docentes, tipo de cargo, sector, ámbito y dpto. "]
[4,{"$f":"M2","v":"Unidades educativas, alumnos, docentes, sector, dependencia y ámbito"},33,null,null,null,null,null,null,null,null,null,null,null,null,null,null,null,null,null,null,null,null,null,null,null,null,null,null,null,null,null,null,null,null,null,null,null,null,null,null,null,4,"Unidades educativas, alumnos y personal docente en actividad, por sector y dependencia, según ámbito","Unidades educativas, alumnos, docentes, sector, dependencia y ámbito"]
[4,{"$f":"M3","v":"Unidades educativas, alumnos, docentes, sector y dpto."},34,null,null,null,null,null,null,null,null,null,null,null,null,null,null,null,null,null,null,null,null,null,null,null,null,null,null,null,null,null,null,null,null,null,null,null,null,null,null,null,4,"Unidades educativas, alumnos y personal docente en actividad, por sector, según departamento","Unidades educativas, alumnos, docentes, sector y dpto."]
[4,"Bases y anexos, sector, ámbito y dpto.",35,null,null,null,null,null,null,null,null,null,null,null,null,null,null,null,null,null,null,null,null,null,null,null,null,null,null,null,null,null,null,null,null,null,null,null,null,null,null,null,4,"Bases y anexos, por sector y ámbito, según departamento","Bases y anexos, sector, ámbito y dpto."]
[4,"Alumnos, sexo y dpto.",36,null,null,null,null,null,null,null,null,null,null,null,null,null,null,null,null,null,null,null,null,null,null,null,null,null,null,null,null,null,null,null,null,null,null,null,null,null,null,null,4,"Alumnos por sexo, según departamento","Alumnos, sexo y dpto."]
[4,"Sector estatal. Alumnos, ámbito, sexo y dpto.",37,null,null,null,null,null,null,null,null,null,null,null,null,null,null,null,null,null,null,null,null,null,null,null,null,null,null,null,null,null,null,null,null,null,null,null,null,null,null,null,4,"Sector estatal. Alumnos por ámbito y sexo, según departamento","Sector estatal. Alumnos, ámbito, sexo y dpto."]
[4,"Sector privado. Alumnos, ámbito, sexo y dpto.",38,null,null,null,null,null,null,null,null,null,null,null,null,null,null,null,null,null,null,null,null,null,null,null,null,null,null,null,null,null,null,null,null,null,null,null,null,null,null,null,4,"Sector privado. Alumnos por ámbito y sexo, según departamento","Sector privado. Alumnos, ámbito, sexo y dpto."]
[4,"Alumnos, año de estudio y dpto.",39,null,null,null,null,null,null,null,null,null,null,null,null,null,null,null,null,null,null,null,null,null,null,null,null,null,null,null,null,null,null,null,null,null,null,null,null,null,null,null,4,"Alumnos por año de estudio, según departamento","Alumnos, año de estudio y dpto."]
[4,"Ciclo básico. Alumnos, año de estudio, sexo y dpto.",40,null,null,null,null,null,null,null,null,null,null,null,null,null,null,null,null,null,null,null,null,null,null,null,null,null,null,null,null,null,null,null,null,null,null,null,null,null,null,null,4,"Ciclo básico. Alumnos por año de estudio y sexo, según departamento","Ciclo básico. Alumnos, año de estudio, sexo y dpto."]
[4,"Ciclo orientado. Alumnos, año de estudio, sexo y dpto.",41,null,null,null,null,null,null,null,null,null,null,null,null,null,null,null,null,null,null,null,null,null,null,null,null,null,null,null,null,null,null,null,null,null,null,null,null,null,null,null,4,"Ciclo orientado. Alumnos por año de estudio y sexo, según departamento","Ciclo orientado. Alumnos, año de estudio, sexo y dpto."]
[4,"Alumnos, repetidores, sobreedad y dpto.",42,null,null,null,null,null,null,null,null,null,null,null,null,null,null,null,null,null,null,null,null,null,null,null,null,null,null,null,null,null,null,null,null,null,null,null,null,null,null,null,4,"Total de alumnos, total y porcentaje de alumnos repetidores y con sobreedad, según departamento","Alumnos, repetidores, sobreedad y dpto."]
[4,"Alumnos, repetidores, sexo y año de estudio",43,null,null,null,null,null,null,null,null,null,null,null,null,null,null,null,null,null,null,null,null,null,null,null,null,null,null,null,null,null,null,null,null,null,null,null,null,null,null,null,4,"Total de alumnos, total y porcentaje de alumnos repetidores, por sexo, según año de estudio","Alumnos, repetidores, sexo y año de estudio"]
[4,"Alumnos, sobreedad y año de estudio",44,null,null,null,null,null,null,null,null,null,null,null,null,null,null,null,null,null,null,null,null,null,null,null,null,null,null,null,null,null,null,null,null,null,null,null,null,null,null,null,4,"Total de alumnos, total y porcentaje de alumnos con sobreedad, según año de estudio","Alumnos, sobreedad y año de estudio"]
[4,"Tasa de promoción, de no promoción y de abandono anual,  año de estudio y ciclo lectivo",45,null,null,null,null,null,null,null,null,null,null,null,null,null,null,null,null,null,null,null,null,null,null,null,null,null,null,null,null,null,null,null,null,null,null,null,null,null,null,null,4,"Tasa de promoción, de no promoción y de abandono anual, por año de estudio, según ciclo lectivo","Tasa de promoción, de no promoción y de abandono anual,  año de estudio y ciclo lectivo"]
[4,"Egresados 2018, sector, sexo y dpto.",46,null,null,null,null,null,null,null,null,null,null,null,null,null,null,null,null,null,null,null,null,null,null,null,null,null,null,null,null,null,null,null,null,null,null,null,null,null,null,null,4,"Alumnos egresados del ciclo lectivo 2018, por sector y sexo, según departamento","Egresados 2018, sector, sexo y dpto."]
[4,"Secundaria orientada. Alumnos, sector, ámbito, ciclo y orientación",47,null,null,null,null,null,null,null,null,null,null,null,null,null,null,null,null,null,null,null,null,null,null,null,null,null,null,null,null,null,null,null,null,null,null,null,null,null,null,null,4,"Secundaria orientada. Alumnos por sector y ámbito, según ciclo y orientación","Secundaria orientada. Alumnos, sector, ámbito, ciclo y orientación"]
[4,"Secundaria técnica. Alumnos, sector, ámbito, ciclo y título",48,null,null,null,null,null,null,null,null,null,null,null,null,null,null,null,null,null,null,null,null,null,null,null,null,null,null,null,null,null,null,null,null,null,null,null,null,null,null,null,4,"Secundaria técnica. Alumnos por sector y ámbito, según ciclo y título","Secundaria técnica. Alumnos, sector, ámbito, ciclo y título"]
[4,"Secundaria orientada. Alumnos, sector, sexo, ciclo y orientación",49,null,null,null,null,null,null,null,null,null,null,null,null,null,null,null,null,null,null,null,null,null,null,null,null,null,null,null,null,null,null,null,null,null,null,null,null,null,null,null,4,"Secundaria orientada. Alumnos por sector y sexo, según ciclo y orientación","Secundaria orientada. Alumnos, sector, sexo, ciclo y orientación"]
[4,"Secundaria técnica. Alumnos, sector, sexo, ciclo y título",50,null,null,null,null,null,null,null,null,null,null,null,null,null,null,null,null,null,null,null,null,null,null,null,null,null,null,null,null,null,null,null,null,null,null,null,null,null,null,null,4,"Secundaria técnica. Alumnos por sector y sexo, según ciclo y título","Secundaria técnica. Alumnos, sector, sexo, ciclo y título"]
[4,"Secundaria orientada. alumnos, repetidores, sobreedad y año de estudio",51,null,null,null,null,null,null,null,null,null,null,null,null,null,null,null,null,null,null,null,null,null,null,null,null,null,null,null,null,null,null,null,null,null,null,null,null,null,null,null,4,"Secundaria orientada. Total de alumnos, total y porcentaje de alumnos repetidores y con sobreedad, según año de estudio","Secundaria orientada. alumnos, repetidores, sobreedad y año de estudio"]
[4,"Secundaria técnica. Alumnos, repetidores, sobreedad y año de estudio",52,null,null,null,null,null,null,null,null,null,null,null,null,null,null,null,null,null,null,null,null,null,null,null,null,null,null,null,null,null,null,null,null,null,null,null,null,null,null,null,4,"Secundaria técnica. Total de alumnos, total y porcentaje de alumnos repetidores y con sobreedad, según año de estudio","Secundaria técnica. Alumnos, repetidores, sobreedad y año de estudio"]
[4,"Secundaria orientada. Egresados 2018, sector, sexo y orientación",53,null,null,null,null,null,null,null,null,null,null,null,null,null,null,null,null,null,null,null,null,null,null,null,null,null,null,null,null,null,null,null,null,null,null,null,null,null,null,null,4,"Secundaria orientada. Alumnos egresados del ciclo lectivo 2018 por sector y sexo, según orientación","Secundaria orientada. Egresados 2018, sector, sexo y orientación"]
[4,"Secundaria técnica. Egresados 2018, sector, sexo y título",54,null,null,null,null,null,null,null,null,null,null,null,null,null,null,null,null,null,null,null,null,null,null,null,null,null,null,null,null,null,null,null,null,null,null,null,null,null,null,null,4,"Secundaria técnica. Alumnos egresados del ciclo lectivo 2018 por sector y sexo, según título","Secundaria técnica. Egresados 2018, sector, sexo y título"]
[4,"PIT. Alumnos, sector, sexo y ámbito",55,null,null,null,null,null,null,null,null,null,null,null,null,null,null,null,null,null,null,null,null,null,null,null,null,null,null,null,null,null,null,null,null,null,null,null,null,null,null,null,4,"Alumnos en el Programa de Inclusión y Terminalidad Educativa (PIT) por sector y sexo, según ámbito","PIT. Alumnos, sector, sexo y ámbito"]
[4,"PIT. Alumnos, sexo y ciclo lectivo",56,null,null,null,null,null,null,null,null,null,null,null,null,null,null,null,null,null,null,null,null,null,null,null,null,null,null,null,null,null,null,null,null,null,null,null,null,null,null,null,4,"Alumnos en el Programa de Inclusión y Terminalidad Educativa (PIT) por sexo, según ciclo lectivo ","PIT. Alumnos, sexo y ciclo lectivo"]
[4,"PIT. Egresado 2018, sector, sexo y dpto.",57,null,null,null,null,null,null,null,null,null,null,null,null,null,null,null,null,null,null,null,null,null,null,null,null,null,null,null,null,null,null,null,null,null,null,null,null,null,null,null,4,"Alumnos egresados del ciclo lectivo 2018 del Programa de Inclusión  y Terminalidad Educativa (PIT) por sector y sexo, según departamento","PIT. Egresado 2018, sector, sexo y dpto."]
[4,"Secciones, tipo de sección, sector, ámbito y dpto.",58,null,null,null,null,null,null,null,null,null,null,null,null,null,null,null,null,null,null,null,null,null,null,null,null,null,null,null,null,null,null,null,null,null,null,null,null,null,null,null,4,"Secciones por sector, ámbito y tipo, según departamento","Secciones, tipo de sección, sector, ámbito y dpto."]
[4,"Docentes,  lugar de origen, forma de designación y sector",59,null,null,null,null,null,null,null,null,null,null,null,null,null,null,null,null,null,null,null,null,null,null,null,null,null,null,null,null,null,null,null,null,null,null,null,null,null,null,null,4,"Personal docente en actividad,  por lugar de origen y forma de designación, según sector","Docentes,  lugar de origen, forma de designación y sector"]
[4,"Docente, sexo y dpto.",60,null,null,null,null,null,null,null,null,null,null,null,null,null,null,null,null,null,null,null,null,null,null,null,null,null,null,null,null,null,null,null,null,null,null,null,null,null,null,null,4,"Personal docente en actividad, por sexo, según departamento","Docente, sexo y dpto."]
[4,"Docentes, lugar de origen de la designación y dpto.",61,null,null,null,null,null,null,null,null,null,null,null,null,null,null,null,null,null,null,null,null,null,null,null,null,null,null,null,null,null,null,null,null,null,null,null,null,null,null,null,4,"Personal docente en actividad, por lugar de origen de la designación, según departamento","Docentes, lugar de origen de la designación y dpto."]
[4,"Docente, sector, ámbito, lugar de origen de la designación y dpto.",62,null,null,null,null,null,null,null,null,null,null,null,null,null,null,null,null,null,null,null,null,null,null,null,null,null,null,null,null,null,null,null,null,null,null,null,null,null,null,null,4,"Personal docente en actividad, por sector, ámbito y lugar de origen de la designación, según departamento","Docente, sector, ámbito, lugar de origen de la designación y dpto."]
[5,{"$f":"N2","v":"Unidades educativas, alumnos, docentes, sector y dependencia"},63,null,null,null,null,null,null,null,null,null,null,null,null,null,null,null,null,null,null,null,null,null,null,null,null,null,null,null,null,null,null,null,null,null,null,null,null,null,null,null,5,"Unidades educativas, alumnos y personal docente en actividad, por sector y dependencia","Unidades educativas, alumnos, docentes, sector y dependencia"]
[5,{"$f":"N3","v":"Bases, anexos, alumnos, docentes, sector y dpto."},64,null,null,null,null,null,null,null,null,null,null,null,null,null,null,null,null,null,null,null,null,null,null,null,null,null,null,null,null,null,null,null,null,null,null,null,null,null,null,null,5,"Bases, anexos, alumnos y personal docente en actividad, por sector, según departamento","Bases, anexos, alumnos, docentes, sector y dpto."]
[5,"Alumnos, sector, sexo y tipo de formación.",65,null,null,null,null,null,null,null,null,null,null,null,null,null,null,null,null,null,null,null,null,null,null,null,null,null,null,null,null,null,null,null,null,null,null,null,null,null,null,null,5,"Alumnos por sector y sexo, según el tipo de formación","Alumnos, sector, sexo y tipo de formación."]
[5,"Alumnos, sector, sexo y dpto.",66,null,null,null,null,null,null,null,null,null,null,null,null,null,null,null,null,null,null,null,null,null,null,null,null,null,null,null,null,null,null,null,null,null,null,null,null,null,null,null,5,"Alumnos por sector y sexo, según departamento","Alumnos, sector, sexo y dpto."]
[5,"Ingresantes a 1° año, sector, sexo y dpto",67,null,null,null,null,null,null,null,null,null,null,null,null,null,null,null,null,null,null,null,null,null,null,null,null,null,null,null,null,null,null,null,null,null,null,null,null,null,null,null,5,"Alumnos ingresantes a 1° año, por sector y sexo, según departamento","Ingresantes a 1° año, sector, sexo y dpto"]
[5,"Alumnos, sector, tipo de carrera y tipo de rama ",68,null,null,null,null,null,null,null,null,null,null,null,null,null,null,null,null,null,null,null,null,null,null,null,null,null,null,null,null,null,null,null,null,null,null,null,null,null,null,null,5,"Alumnos por sector, según tipo de carrera y rama ","Alumnos, sector, tipo de carrera y tipo de rama "]
[5,"Egresados ciclo 2018, sector, sexo y dpto.",69,null,null,null,null,null,null,null,null,null,null,null,null,null,null,null,null,null,null,null,null,null,null,null,null,null,null,null,null,null,null,null,null,null,null,null,null,null,null,null,5,"Alumnos egresados del ciclo lectivo 2018, por sector y sexo, según departamento","Egresados ciclo 2018, sector, sexo y dpto."]
[5,"Docentes, lugar de origen, forma de designación y sector",70,null,null,null,null,null,null,null,null,null,null,null,null,null,null,null,null,null,null,null,null,null,null,null,null,null,null,null,null,null,null,null,null,null,null,null,null,null,null,null,5,"Personal docente en actividad, por lugar de origen y forma de designación, según sector","Docentes, lugar de origen, forma de designación y sector"]
[5,"Docentes, sexo y dpto.",71,null,null,null,null,null,null,null,null,null,null,null,null,null,null,null,null,null,null,null,null,null,null,null,null,null,null,null,null,null,null,null,null,null,null,null,null,null,null,null,5,"Personal docente en actividad, por sexo, según departamento","Docentes, sexo y dpto."]
[5,"Docentes, sector, ámbito, origen de la designación y dpto.",72,null,null,null,null,null,null,null,null,null,null,null,null,null,null,null,null,null,null,null,null,null,null,null,null,null,null,null,null,null,null,null,null,null,null,null,null,null,null,null,5,"Personal docente en actividad, por sector, ámbito y origen de la designación, según departamento","Docentes, sector, ámbito, origen de la designación y dpto."]
[6,{"$f":"O2","v":"Establecimientos, alumnos, docentes, y sector "},73,null,null,null,null,null,null,null,null,null,null,null,null,null,null,null,null,null,null,null,null,null,null,null,null,null,null,null,null,null,null,null,null,null,null,null,null,null,null,null,6,"Establecimientos, alumnos y personal docente en actividad, por sector ","Establecimientos, alumnos, docentes, y sector "]
[6,"Bases, anexos, alumnos, docentes, sector y dpto.",74,null,null,null,null,null,null,null,null,null,null,null,null,null,null,null,null,null,null,null,null,null,null,null,null,null,null,null,null,null,null,null,null,null,null,null,null,null,null,null,6,"Bases, anexos, alumnos y personal docente en actividad, por sector, según departamento","Bases, anexos, alumnos, docentes, sector y dpto."]
[6,"Alumnos, sector, sexo y dpto.",75,null,null,null,null,null,null,null,null,null,null,null,null,null,null,null,null,null,null,null,null,null,null,null,null,null,null,null,null,null,null,null,null,null,null,null,null,null,null,null,6,"Alumnos por sector y sexo, según departamento","Alumnos, sector, sexo y dpto."]
[6,"Alumnos, nivel de la educación formal y dpto.",76,null,null,null,null,null,null,null,null,null,null,null,null,null,null,null,null,null,null,null,null,null,null,null,null,null,null,null,null,null,null,null,null,null,null,null,null,null,null,null,6,"Alumnos por nivel de la educación formal, según departamento","Alumnos, nivel de la educación formal y dpto."]
[6,"Promovidos de 6° grado de primario, egresados de secundario y dpto.",76,null,null,null,null,null,null,null,null,null,null,null,null,null,null,null,null,null,null,null,null,null,null,null,null,null,null,null,null,null,null,null,null,null,null,null,null,null,null,null,6,"Alumnos promovidos del nivel primario y egresados del nivel secundario, según departamento","Promovidos de 6° grado de primario, egresados de secundario y dpto."]
[6,"Alumnos de educación no formal, sector y dpto.",77,null,null,null,null,null,null,null,null,null,null,null,null,null,null,null,null,null,null,null,null,null,null,null,null,null,null,null,null,null,null,null,null,null,null,null,null,null,null,null,6,"Alumnos de educación no formal por sector, según departamento","Alumnos de educación no formal, sector y dpto."]
[6,{"$f":"O8","v":"Alumnos integrados, sector de la escuela de origen y ciclo lectivo (2014-2019)"},78,null,null,null,null,null,null,null,null,null,null,null,null,null,null,null,null,null,null,null,null,null,null,null,null,null,null,null,null,null,null,null,null,null,null,null,null,null,null,null,6,"Evolución del total de alumnos integrados, por sector de la escuela de origen. Años 2014-2019","Alumnos integrados, sector de la escuela de origen y ciclo lectivo (2014-2019)"]
[6,"Cargos cubiertos de maestro integrador, sector y ciclo lectivo (2014 - 2019)",78,null,null,null,null,null,null,null,null,null,null,null,null,null,null,null,null,null,null,null,null,null,null,null,null,null,null,null,null,null,null,null,null,null,null,null,null,null,null,null,6,"Evolución del total de cargos cubiertos de maestro integrador, por sector. Años 2014 - 2019","Cargos cubiertos de maestro integrador, sector y ciclo lectivo (2014 - 2019)"]
[6,"Alumnos, tipo de integración y ciclo lectivo (2014 -2019)",78,null,null,null,null,null,null,null,null,null,null,null,null,null,null,null,null,null,null,null,null,null,null,null,null,null,null,null,null,null,null,null,null,null,null,null,null,null,null,null,6,"Evolución del total de alumnos por tipo de integración. Años 2014 -2019","Alumnos, tipo de integración y ciclo lectivo (2014 -2019)"]
[6,"Alumnos integrados, tipo de discapacidad y ciclo (2014 - 2019)",79,null,null,null,null,null,null,null,null,null,null,null,null,null,null,null,null,null,null,null,null,null,null,null,null,null,null,null,null,null,null,null,null,null,null,null,null,null,null,null,6,"Evolución del total de alumnos integrados, por tipo de discapacidad. Años 2014 - 2019","Alumnos integrados, tipo de discapacidad y ciclo (2014 - 2019)"]
[6,"Alumnos integrados, sector de la escuela de origen, tipo de discapacidad y ciclo (2014 - 2019)",80,null,null,null,null,null,null,null,null,null,null,null,null,null,null,null,null,null,null,null,null,null,null,null,null,null,null,null,null,null,null,null,null,null,null,null,null,null,null,null,6,"Evolución del total de alumnos integrados por sector de la escuela de origen y tipo de discapacidad. Años 2014 - 2019","Alumnos integrados, sector de la escuela de origen, tipo de discapacidad y ciclo (2014 - 2019)"]
[6,"Alumnos con discapacidad, tipo de seguimiento que reciben, modalidad y nivel",81,null,null,null,null,null,null,null,null,null,null,null,null,null,null,null,null,null,null,null,null,null,null,null,null,null,null,null,null,null,null,null,null,null,null,null,null,null,null,null,6,"Alumnos con discapacidad, por tipo de seguimiento que reciben, según modalidad y nivel en el que cursan","Alumnos con discapacidad, tipo de seguimiento que reciben, modalidad y nivel"]
[6,"Docentes, sector y dpto. ",82,null,null,null,null,null,null,null,null,null,null,null,null,null,null,null,null,null,null,null,null,null,null,null,null,null,null,null,null,null,null,null,null,null,null,null,null,null,null,null,6,"Personal docente en actividad, por sector, según departamento ","Docentes, sector y dpto. "]
[6,"Cargos docentes cubiertos frente a alumnos, sector y dpto.",83,null,null,null,null,null,null,null,null,null,null,null,null,null,null,null,null,null,null,null,null,null,null,null,null,null,null,null,null,null,null,null,null,null,null,null,null,null,null,null,6,"Cargos docentes cubiertos frente a alumnos, por sector, según departamento","Cargos docentes cubiertos frente a alumnos, sector y dpto."]
[7,{"$f":"P2","v":"Establecimientos, alumnos, docentes, sector y dependencia"},84,null,null,null,null,null,null,null,null,null,null,null,null,null,null,null,null,null,null,null,null,null,null,null,null,null,null,null,null,null,null,null,null,null,null,null,null,null,null,null,7,"Establecimientos, alumnos y personal docente en actividad, por sector y dependencia","Establecimientos, alumnos, docentes, sector y dependencia"]
[7,{"$f":"P3","v":"Alumnos, sexo, modalidad y nivel "},85,null,null,null,null,null,null,null,null,null,null,null,null,null,null,null,null,null,null,null,null,null,null,null,null,null,null,null,null,null,null,null,null,null,null,null,null,null,null,null,7,"Alumnos por sexo, según modalidad y nivel  ","Alumnos, sexo, modalidad y nivel "]
[7,{"$f":"P4","v":"Alumnos, tipo de atención, modalidad y nivel "},86,null,null,null,null,null,null,null,null,null,null,null,null,null,null,null,null,null,null,null,null,null,null,null,null,null,null,null,null,null,null,null,null,null,null,null,null,null,null,null,7,"Alumnos por tipo de atención, según modalidad y nivel ","Alumnos, tipo de atención, modalidad y nivel "]
[8,{"$f":"Q2","v":"Primario y secundario. Unidades educativas, alumnos, docentes, sector y ámbito"},87,null,null,null,null,null,null,null,null,null,null,null,null,null,null,null,null,null,null,null,null,null,null,null,null,null,null,null,null,null,null,null,null,null,null,null,null,null,null,null,8,"Primario y secundario. Unidades educativas, alumnos y personal docente en actividad, por sector, según ámbito","Primario y secundario. Unidades educativas, alumnos, docentes, sector y ámbito"]
[8,{"$f":"Q3","v":"Primario y secundario. Contexto de privación de la libertad. Alumnos, sexo y nivel "},88,null,null,null,null,null,null,null,null,null,null,null,null,null,null,null,null,null,null,null,null,null,null,null,null,null,null,null,null,null,null,null,null,null,null,null,null,null,null,null,8,"Primario y secundario. Alumnos matriculados en contexto de privación de la libertad, por sexo, según nivel al que asisten ","Primario y secundario. Contexto de privación de la libertad. Alumnos, sexo y nivel "]
[8,"Primario. Unidades educativas, alumnos, docentes, sector, dependencia y ámbito ",89,null,null,null,null,null,null,null,null,null,null,null,null,null,null,null,null,null,null,null,null,null,null,null,null,null,null,null,null,null,null,null,null,null,null,null,null,null,null,null,8,"Primario. Unidades educativas, alumnos y personal docente en actividad, por sector y dependencia, según ámbito ","Primario. Unidades educativas, alumnos, docentes, sector, dependencia y ámbito "]
[8,"Primario. Bases, anexos, alumnos, docentes, ámbito y dpto.",90,null,null,null,null,null,null,null,null,null,null,null,null,null,null,null,null,null,null,null,null,null,null,null,null,null,null,null,null,null,null,null,null,null,null,null,null,null,null,null,8,"Primario. Bases, anexos, alumnos y personal docente en actividad, por ámbito, según departamento","Primario. Bases, anexos, alumnos, docentes, ámbito y dpto."]
[8,"Primario. Alumnos, ámbito, sexo y dpto.",91,null,null,null,null,null,null,null,null,null,null,null,null,null,null,null,null,null,null,null,null,null,null,null,null,null,null,null,null,null,null,null,null,null,null,null,null,null,null,null,8,"Primario. Alumnos por ámbito y sexo, según departamento","Primario. Alumnos, ámbito, sexo y dpto."]
[8,"Primario. Secciones, tipo de sección, ámbito y dpto.",92,null,null,null,null,null,null,null,null,null,null,null,null,null,null,null,null,null,null,null,null,null,null,null,null,null,null,null,null,null,null,null,null,null,null,null,null,null,null,null,8,"Primario. Secciones por ámbito y tipo, según departamento","Primario. Secciones, tipo de sección, ámbito y dpto."]
[8,"Primario. Docentes, ámbito y dpto.",93,null,null,null,null,null,null,null,null,null,null,null,null,null,null,null,null,null,null,null,null,null,null,null,null,null,null,null,null,null,null,null,null,null,null,null,null,null,null,null,8,"Primario. Personal docente en actividad, por ámbito, según departamento","Primario. Docentes, ámbito y dpto."]
[8,"Secundario. Unidades educativas, alumnos, docentes, sector y ámbito",94,null,null,null,null,null,null,null,null,null,null,null,null,null,null,null,null,null,null,null,null,null,null,null,null,null,null,null,null,null,null,null,null,null,null,null,null,null,null,null,8,"Secundario. Unidades educativas, alumnos y personal docente en actividad, por sector, según ámbito","Secundario. Unidades educativas, alumnos, docentes, sector y ámbito"]
[8,"Secundario. Unidades educativas, alumnos, docentes, sector y dpto.",95,null,null,null,null,null,null,null,null,null,null,null,null,null,null,null,null,null,null,null,null,null,null,null,null,null,null,null,null,null,null,null,null,null,null,null,null,null,null,null,8,"Secundario. Unidades educativas, alumnos y personal docente en actividad, por sector, según departamento","Secundario. Unidades educativas, alumnos, docentes, sector y dpto."]
[8,"Secundario. Bases, anexos, sector, ámbito y dpto.",96,null,null,null,null,null,null,null,null,null,null,null,null,null,null,null,null,null,null,null,null,null,null,null,null,null,null,null,null,null,null,null,null,null,null,null,null,null,null,null,8,"Secundario. Bases y anexos, por sector y ámbito, según departamento","Secundario. Bases, anexos, sector, ámbito y dpto."]
[8,"Secundario. Alumno, sector, ámbito, sexo y dpto.",97,null,null,null,null,null,null,null,null,null,null,null,null,null,null,null,null,null,null,null,null,null,null,null,null,null,null,null,null,null,null,null,null,null,null,null,null,null,null,null,8,"Secundario. Alumnos por sector, ámbito y sexo, según departamento","Secundario. Alumno, sector, ámbito, sexo y dpto."]
[8,"Secundario. Alumnos, ciclo, sector y ámbito",98,null,null,null,null,null,null,null,null,null,null,null,null,null,null,null,null,null,null,null,null,null,null,null,null,null,null,null,null,null,null,null,null,null,null,null,null,null,null,null,8,"Secundario. Alumnos por ciclo y sector, según ámbito","Secundario. Alumnos, ciclo, sector y ámbito"]
[8,"Secundario. Alumnos, modalidad de dictado y ámbito",99,null,null,null,null,null,null,null,null,null,null,null,null,null,null,null,null,null,null,null,null,null,null,null,null,null,null,null,null,null,null,null,null,null,null,null,null,null,null,null,8,"Secundario. Alumnos por sector, según modalidad de dictado y ámbito","Secundario. Alumnos, modalidad de dictado y ámbito"]
[8,"Secundario. Alumnos, sexo, modalidad de dictado y ámbito",99,null,null,null,null,null,null,null,null,null,null,null,null,null,null,null,null,null,null,null,null,null,null,null,null,null,null,null,null,null,null,null,null,null,null,null,null,null,null,null,8,"Secundario. Alumnos por sexo, según modalidad de dictado y ámbito","Secundario. Alumnos, sexo, modalidad de dictado y ámbito"]
[8,"Secundario. Egresados 2018, sexo y modalidad de dictado",100,null,null,null,null,null,null,null,null,null,null,null,null,null,null,null,null,null,null,null,null,null,null,null,null,null,null,null,null,null,null,null,null,null,null,null,null,null,null,null,8,"Secundario. Alumnos egresados del ciclo lectivo 2018, por sexo, según modalidad de dictado","Secundario. Egresados 2018, sexo y modalidad de dictado"]
[8,"Secundario. Modalidad presencial. Egresados 2018, sexo, plan y orientación",101,null,null,null,null,null,null,null,null,null,null,null,null,null,null,null,null,null,null,null,null,null,null,null,null,null,null,null,null,null,null,null,null,null,null,null,null,null,null,null,8,"Secundario. Modalidad presencial Alumnos egresados del ciclo lectivo 2018, por sexo, según plan y orientación","Secundario. Modalidad presencial. Egresados 2018, sexo, plan y orientación"]
[8,"Secundario. Modalidad a distancia. Egresados 2018, sexo y orientación",101,null,null,null,null,null,null,null,null,null,null,null,null,null,null,null,null,null,null,null,null,null,null,null,null,null,null,null,null,null,null,null,null,null,null,null,null,null,null,null,8,"Secundario. Modalidad a distancia Alumnos egresados del ciclo lectivo 2018, por sexo, según orientación","Secundario. Modalidad a distancia. Egresados 2018, sexo y orientación"]
[8,"Secundario. Docentes, sector, lugar de origen y forma de designación",102,null,null,null,null,null,null,null,null,null,null,null,null,null,null,null,null,null,null,null,null,null,null,null,null,null,null,null,null,null,null,null,null,null,null,null,null,null,null,null,8,"Secundario. Personal docente en actividad, por sector, según lugar de origen y forma de designación","Secundario. Docentes, sector, lugar de origen y forma de designación"]
[8,"Secundario. Docentes, sexo y dpto.",103,null,null,null,null,null,null,null,null,null,null,null,null,null,null,null,null,null,null,null,null,null,null,null,null,null,null,null,null,null,null,null,null,null,null,null,null,null,null,null,8,"Secundario. Personal docente en actividad, por sexo, según departamento","Secundario. Docentes, sexo y dpto."]
[8,"Secundario. Docentes, sector, ámbito y dpto.",104,null,null,null,null,null,null,null,null,null,null,null,null,null,null,null,null,null,null,null,null,null,null,null,null,null,null,null,null,null,null,null,null,null,null,null,null,null,null,null,8,"Secundario. Personal docente en actividad, por sector y ámbito, según departamento","Secundario. Docentes, sector, ámbito y dpto."]
[9,{"$f":"R2","v":"Unidades educativas, alumnos, docentes y sector "},105,null,null,null,null,null,null,null,null,null,null,null,null,null,null,null,null,null,null,null,null,null,null,null,null,null,null,null,null,null,null,null,null,null,null,null,null,null,null,null,9,"Unidades educativas, alumnos y personal docente en actividad, por sector ","Unidades educativas, alumnos, docentes y sector "]
[9,{"$f":"R3","v":"Unidades educativas, alumnos, docentes, sector y dpto."},106,null,null,null,null,null,null,null,null,null,null,null,null,null,null,null,null,null,null,null,null,null,null,null,null,null,null,null,null,null,null,null,null,null,null,null,null,null,null,null,9,"Unidades educativas, alumnos y personal docente en actividad, por sector, según departamento","Unidades educativas, alumnos, docentes, sector y dpto."]
[9,{"$f":"R4","v":"Alumnos y tipo de por oferta"},107,null,null,null,null,null,null,null,null,null,null,null,null,null,null,null,null,null,null,null,null,null,null,null,null,null,null,null,null,null,null,null,null,null,null,null,null,null,null,null,9,"Alumnos tipo de por oferta a la que asisten","Alumnos y tipo de por oferta"]
[9,{"$f":"R5","v":"Alumnos, sector, sexo y especialidad"},108,null,null,null,null,null,null,null,null,null,null,null,null,null,null,null,null,null,null,null,null,null,null,null,null,null,null,null,null,null,null,null,null,null,null,null,null,null,null,null,9,"Alumnos por sector y sexo, según especialidad","Alumnos, sector, sexo y especialidad"]
[10,{"$f":"S2","v":"Unidades educativas, alumnos, docentes y organismo de dependencia"},109,null,null,null,null,null,null,null,null,null,null,null,null,null,null,null,null,null,null,null,null,null,null,null,null,null,null,null,null,null,null,null,null,null,null,null,null,null,null,null,10,"Unidades educativas, alumnos y personal docente en actividad, según organismo de dependencia","Unidades educativas, alumnos, docentes y organismo de dependencia"]
[10,{"$f":"S3","v":"Bases, anexos, alumnos, docentes y dpto."},110,null,null,null,null,null,null,null,null,null,null,null,null,null,null,null,null,null,null,null,null,null,null,null,null,null,null,null,null,null,null,null,null,null,null,null,null,null,null,null,10,"Bases, anexos, alumnos y personal docente, en actividad, según departamento","Bases, anexos, alumnos, docentes y dpto."]
[10,{"$f":"S4","v":"Alumnos, sexo y nivel"},111,null,null,null,null,null,null,null,null,null,null,null,null,null,null,null,null,null,null,null,null,null,null,null,null,null,null,null,null,null,null,null,null,null,null,null,null,null,null,null,10,"Alumnos por sexo, según niveles de estudio obligatorios","Alumnos, sexo y nivel"]
[10,{"$f":"S5","v":"Docentes, origen y forma de designación"},112,null,null,null,null,null,null,null,null,null,null,null,null,null,null,null,null,null,null,null,null,null,null,null,null,null,null,null,null,null,null,null,null,null,null,null,null,null,null,null,10,"Personal docente en actividad, por origen y forma de designación","Docentes, origen y forma de designación"]
[10,{"$f":"S6","v":"Docentes, por sexo y dpto."},113,null,null,null,null,null,null,null,null,null,null,null,null,null,null,null,null,null,null,null,null,null,null,null,null,null,null,null,null,null,null,null,null,null,null,null,null,null,null,null,10,"Personal docente en actividad, por sexo, según departamento","Docentes, por sexo y dpto."]

{"sheet":"Datos generales","index":1,"n_rows":17,"n_cols":12,"rows_kept":17,"cut":false,"hidden":true,"merged":[[1,1,1,11],[2,1,3,1],[2,2,3,2],[2,3,2,5],[2,6,2,8],[2,9,2,11],[16,1,16,11],[29,1,29,11],[4,1,7,1],[10,1,11,1],[14,1,14,11],[15,1,15,11]]}
[]
[null,"CUADRO 1.1. Unidades educativas o establecimientos, alumnos y personal docente en actividad, por sector, según modalidad y nivel",null,null,null,1]
[null,"Modalidad","Nivel","Unidades educativas/ establecimientos",null,null,"Alumnos",null,null,"Personal docente (*)"]
[null,null,null,"Total","Estatal","Privado","Total","Estatal","Privado","Total","Estatal","Privado"]
[null,"Común","Inicial",1780,1477,303,141894,103775,38119,9592,5941,3651]
[null,null,"Primario",2083,1777,306,357841,260025,97816,31452,23660,7792]
[null,null,"Secundario",891,485,406,332713,200020,132693,59919,40328,19591]
[null,null,"Superior",213,83,130,78984,46154,32830,11657,6462,5195]
[null,"Especial ","Todos los niveles (**)",101,59,42,6489,4022,2467,2747,1805,942]
[null,"Hospitalaria y domiciliaria","Todos los niveles (**)",3,2,1,278,253,25,81,68,13]
[null,"Jóvenes y Adultos","Primario",219,217,2,5363,5335,28,541,536,5]
[null,null,"Secundario",137,109,28,46222,40580,5642,7567,7054,513]
[null,"Artística",null,34,29,5,9788,8992,796,650,587,63]
[null,"Formación Profesional (***)",null,91,91,null,17922,17922,null,612,612]
[null,"(*) El personal docente en actividad hace referencia a todas las personas con designación docente que se desempeñan en las unidades educativas del nivel y/o modalidad correspondiente. Por esta razón, se cuentan tantas veces como ofertas en las que trabajan."]
[null,"(**) Aquí se consignan establecimientos y no unidades educativas (puesto que ellas se vinculan a las formas de implementación del nivel). Esto es así porque en la Provincia, las modalidades especial y hospitalaria y domiciliaria se organizan en establecimientos (ver glosario) con una máxima autoridad pedagógica y con una única partida presupuestaria, en los que se imparte distintos niveles de enseñanza. De allí que en un mismo establecimiento coexisten varias unidades educativas y en la medida que los docentes son parte de la misma planta funcional, no es posible discriminar quién trabaja para cada una de ellas (salvo raras excepciones)"]
[null,"(***) En esta tabla se presenta información referida únicamente a los cursos o trayectos que no forman parte de los diseños curriculares de los niveles obligatorios del sistema y que son brindados por el Ministerio de Educación provincial y la Secretaría de Equidad y Promoción del Empleo. Por ello, no figuran los cursos dictados por otros ministerios (provinciales o nacionales), por la municipalidad de Córdoba u otros municipios ni por las universidades. De igual manera, sólo están contabilizadas las unidades educativas que estaban dictando cursos al momento del relevamiento 2019."]

{"sheet":"C 2.1","index":2,"n_rows":16,"n_cols":8,"rows_kept":16,"cut":false,"hidden":true,"merged":[[1,1,1,7],[10,1,12,1],[13,1,13,7],[14,1,14,7],[15,1,15,7],[2,2,3,2],[2,3,3,3],[2,4,2,6],[4,1,6,1],[7,1,9,1]]}
[]
[null,"CUADRO 2.1 Unidades educativas, alumnos y personal docente en actividad, por sector y dependencia, según ámbito"]
[null,null,"Ámbito","Total ","Estatal",null,null,"Privado"]
[null,null,null,null,"Provincial (**)","Municipal (***)","Nacional (***)","Provincial"]
[null,"Unidades educativas","Total",1780,1400,75,2,303]
[null,null,"Urbano",1047,670,75,2,300]
[null,null,"Rural",733,730,null,null,3]
[null,"Alumnos","Total",141894,96740,6636,399,38119]
[null,null,"Urbano",129748,84659,6636,399,38054]
[null,null,"Rural",12146,12081,null,null,65]
[null,"Personal docente (*)","Total",9592,5229,663,49,3651]
[null,null,"Urbano",8819,4468,663,49,3639]
[null,null,"Rural",773,761,null,null,12]
[null,"(*) El personal docente en actividad hace referencia a todas las personas con designación docente que se desempeñan en las unidades educativas del nivel. Por esta razón, se cuentan tantas veces como ofertas en las que trabajan."]
[null,"(**)  Se incluyen 459 escuelas en las que funcionan 459 secciones multinivel, donde se atienden simultáneamente a niños de nivel primario e inicial. Se trata de escuelas primarias provinciales (estatales y privadas) de zonas rurales y urbanas. Los docentes que atienden las secciones multinivel no se incluyen en las cifras de este cuadro."]
[null,"(***) Los jardines municipales dependen de la Municipalidad de Córdoba; los nacionales, de la Universidad Nacional de Río Cuarto y del Ministerio de Defensa."]

{"sheet":"C 2.2","index":3,"n_rows":33,"n_cols":11,"rows_kept":33,"cut":false,"hidden":true,"merged":[[32,1,32,10],[1,1,1,10],[2,1,3,1],[2,2,2,4],[2,5,2,7],[2,8,2,10],[31,1,31,10]]}
[]
[null,"CUADRO 2.2 Unidades educativas, alumnos y personal docente en actividad, por sector, según departamento"]
[null,"Departamento","Total ",null,null,"Estatal",null,null,"Privado"]
[null,null,"Unidades educativas","Alumnos","Personal docente (*)","Unidades educativas","Alumnos","Personal docente ","Unidades educativas","Alumnos","Personal docente "]
[null,"Total Córdoba",1780,141894,9592,1477,103775,5941,303,38119,3651]
[null,"Calamuchita ",50,2573,173,44,2104,123,6,469,50]
[null,"Capital",431,55499,4256,301,36506,2329,130,18993,1927]
[null,"Colón",86,9992,638,65,7149,350,21,2843,288]
[null,"Cruz del Eje",66,2508,139,62,1993,105,4,515,34]
[null,"General Roca",30,1426,94,29,1334,88,1,92,6]
[null,"General San Martín",75,6519,383,67,4237,200,8,2282,183]
[null,"Ischilín",35,1576,90,34,1516,80,1,60,10]
[null,"Juárez Celman",45,2774,149,42,2429,119,3,345,30]
[null,"Marcos Juárez",70,4310,277,58,3299,197,12,1011,80]
[null,"Minas",14,161,13,14,161,13]
[null,"Pocho",22,130,11,22,130,11]
[null,"Pte. Roque Sáenz Peña",29,1661,96,27,1515,81,2,146,15]
[null,"Punilla",69,7099,442,47,5034,243,22,2065,199]
[null,"Río Cuarto",133,9930,647,109,7186,390,24,2744,257]
[null,"Río Primero",56,2304,142,52,1984,106,4,320,36]
[null,"Río Seco",30,653,36,30,653,36]
[null,"Río Segundo",61,4312,250,52,3489,183,9,823,67]
[null,"San Alberto",37,1449,87,35,1298,70,2,151,17]
[null,"San Javier",40,2498,154,36,2101,113,4,397,41]
[null,"San Justo",138,8848,554,119,7129,396,19,1719,158]
[null,"Santa María",60,4611,294,49,3611,201,11,1000,93]
[null,"Sobremonte",10,150,9,10,150,9]
[null,"Tercero Arriba",61,4831,291,51,3798,208,10,1033,83]
[null,"Totoral",25,832,53,25,832,53]
[null,"Tulumba",26,537,37,26,537,37]
[null,"Unión",81,4711,277,71,3600,200,10,1111,77]
[null,"(*) El personal docente en actividad hace referencia a todas las personas con designación docente que se ndesempeñan en las unidades educativas del nivel. Por esta razón, se cuentan tantas veces como ofertas en las que trabajan."]
[null,"En el departamento Capital están incluidas, además de las provinciales, las unidades educativas municipales y nacionales, al igual que sus alumnos y personal docente. En el departamento Río Cuarto están incluidas, además de las provinciales, las unidades educativas nacionales con sus alumnos y personal. "]

{"sheet":"C 2.3","index":4,"n_rows":33,"n_cols":10,"rows_kept":33,"cut":false,"hidden":true,"merged":[[32,1,32,9],[1,1,1,9],[2,1,4,1],[2,2,3,3],[2,4,2,7],[2,8,2,9],[3,4,3,5],[3,6,3,7]]}
[]
[null,"CUADRO 2.3 Bases y anexos, por sector y ámbito, según departamento"]
[null,"Departamento","Total ",null,"Estatal",null,null,null,"Privado"]
[null,null,null,null,"Urbano",null,"Rural",null,"Urbano","Rural"]
[null,null,"Bases","Anexos","Bases","Anexos","Bases","Anexos","Bases","Bases"]
[null,"Total Córdoba",1780,142,747,11,730,131,300,3]
[null,"Calamuchita ",50,6,12,null,32,6,6]
[null,"Capital",431,2,301,2,null,null,130]
[null,"Colón",86,9,44,1,21,8,21]
[null,"Cruz del Eje",66,7,15,null,47,7,4]
[null,"General Roca ",30,1,10,null,19,1,1]
[null,"General San Martín",75,3,27,1,40,2,8]
[null,"Ischilín",35,3,12,null,22,3,1]
[null,"Juárez Celman",45,2,17,null,25,2,3]
[null,"Marcos Juárez",70,2,32,null,26,2,12]
[null,"Minas",14,5,null,null,14,5]
[null,"Pocho",22,4,null,null,22,4]
[null,"Pte. Roque Sáenz Peña",29,1,10,null,17,1,2]
[null,"Punilla",69,9,35,4,12,5,20,2]
[null,"Río Cuarto",133,9,53,null,56,9,24]
[null,"Río Primero",56,10,11,null,41,10,4]
[null,"Río Seco",30,3,3,null,27,3]
[null,"Río Segundo",61,null,21,null,31,null,9]
[null,"San Alberto",37,12,6,null,29,12,2]
[null,"San Javier",40,10,12,2,24,8,4]
[null,"San Justo",138,21,42,null,77,21,18,1]
[null,"Santa María",60,5,21,1,28,4,11]
[null,"Sobremonte",10,null,1,null,9]
[null,"Tercero Arriba",61,5,32,null,19,5,10]
[null,"Totoral",25,3,2,null,23,3]
[null,"Tulumba",26,5,2,null,24,5]
[null,"Unión",81,5,26,null,45,5,10]
[null,"En el departamento Capital están incluidas, además de las provinciales, las bases municipales y nacionales (y sus anexos, en el caso que correspondan). En el departamento Río Cuarto están incluidas, además de las provinciales, las bases nacionales. "]

{"sheet":"C 2.4","index":5,"n_rows":31,"n_cols":5,"rows_kept":31,"cut":false,"hidden":true,"merged":[[1,1,1,4],[30,1,30,4]]}
[]
[null,"CUADRO 2.4 Alumnos por sexo, según departamento"]
[null,"Departamento","Total","Mujeres","Varones"]
[null,"Total Córdoba",141894,70063,71831]
[null,"Calamuchita",2573,1231,1342]
[null,"Capital",55499,27464,28035]
[null,"Colón",9992,4941,5051]
[null,"Cruz del Eje",2508,1187,1321]
[null,"General Roca  ",1426,705,721]
[null,"General San Martín",6519,3201,3318]
[null,"Ischilín",1576,741,835]
[null,"Juárez Celman",2774,1413,1361]
[null,"Marcos Juárez",4310,2095,2215]
[null,"Minas",161,80,81]
[null,"Pocho",130,63,67]
[null,"Pte. Roque Sáenz Peña",1661,783,878]
[null,"Punilla",7099,3466,3633]
[null,"Río Cuarto",9930,5009,4921]
[null,"Río Primero",2304,1114,1190]
[null,"Río Seco",653,344,309]
[null,"Río Segundo",4312,2161,2151]
[null,"San Alberto",1449,689,760]
[null,"San Javier",2498,1213,1285]
[null,"San Justo",8848,4396,4452]
[null,"Santa María",4611,2271,2340]
[null,"Sobremonte",150,69,81]
[null,"Tercero Arriba",4831,2443,2388]
[null,"Totoral",832,397,435]
[null,"Tulumba",537,250,287]
[null,"Unión",4711,2337,2374]
[null,"En el departamento Capital están incluidas, además de las provinciales, las unidades educativas municipales y nacionales, al igual que sus alumnos y personal docente. En el departamento Río Cuarto están incluidas, además de las unidades educativas provinciales, las nacionales con sus alumnos y personal."]

{"sheet":"C 2.4 A.","index":6,"n_rows":32,"n_cols":8,"rows_kept":32,"cut":false,"hidden":true,"merged":[[1,1,1,7],[2,1,3,1],[2,2,2,4],[2,5,2,7],[31,1,31,7]]}
[]
[null,"CUADRO 2.4.A Sector estatal. Alumnos por ámbito y sexo, según departamento"]
[null,"Departamento ","Urbano",null,null,"Rural"]
[null,null,"Total","Mujeres","Varones","Total","Mujeres","Varones"]
[null,"Total Córdoba",91694,45036,46658,12081,5905,6176]
[null,"Calamuchita",1537,747,790,567,273,294]
[null,"Capital",36506,17984,18522]
[null,"Colón",6120,3013,3107,1029,518,511]
[null,"Cruz del Eje",1453,690,763,540,252,288]
[null,"General Roca ",1058,510,548,276,145,131]
[null,"General San Martín",3636,1775,1861,601,290,311]
[null,"Ischilín",1329,612,717,187,99,88]
[null,"Juárez Celman",1967,1010,957,462,234,228]
[null,"Marcos Juárez",3138,1500,1638,161,78,83]
[null,"Minas",null,null,null,161,80,81]
[null,"Pocho",null,null,null,130,63,67]
[null,"Pte. Roque Sáenz Peña",1292,619,673,223,102,121]
[null,"Punilla",4492,2167,2325,542,254,288]
[null,"Río Cuarto",6599,3301,3298,587,285,302]
[null,"Río Primero",1549,756,793,435,200,235]
[null,"Río Seco",398,209,189,255,135,120]
[null,"Río Segundo",2990,1501,1489,499,238,261]
[null,"San Alberto",795,381,414,503,238,265]
[null,"San Javier",1388,639,749,713,363,350]
[null,"San Justo",5703,2832,2871,1426,685,741]
[null,"Santa María",2838,1376,1462,773,380,393]
[null,"Sobremonte",123,60,63,27,9,18]
[null,"Tercero Arriba",3403,1707,1696,395,204,191]
[null,"Totoral",401,190,211,431,207,224]
[null,"Tulumba",216,99,117,321,151,170]
[null,"Unión",2763,1358,1405,837,422,415]
[null,"En el departamento Capital están incluidas, además de las provinciales, las unidades educativas municipales y nacionales, al igual que sus alumnos y personal docente. En el departamento Río Cuarto están incluidas, además de las unidades educativas provinciales, las nacionales con sus alumnos y personal. "]

{"sheet":"C 2.4 B. ","index":7,"n_rows":31,"n_cols":8,"rows_kept":31,"cut":false,"hidden":true,"merged":[[1,1,1,7],[2,1,3,1],[2,2,2,4],[2,5,2,7],[32,1,32,7]]}
[]
[null,"CUADRO 2.4.B Sector privado. Alumnos por ámbito y sexo, según departamento"]
[null,"Departamento ","Urbano",null,null,"Rural"]
[null,null,"Total","Mujeres","Varones","Total","Mujeres","Varones"]
[null,"Total Córdoba",38054,19091,18963,65,31,34]
[null,"Calamuchita",469,211,258]
[null,"Capital",18993,9480,9513]
[null,"Colón",2843,1410,1433]
[null,"Cruz del Eje",515,245,270]
[null,"General Roca ",92,50,42]
[null,"General San Martín",2282,1136,1146]
[null,"Ischilín",60,30,30]
[null,"Juárez Celman",345,169,176]
[null,"Marcos Juárez",1011,517,494]
[null,"Minas"]
[null,"Pocho"]
[null,"Pte. Roque Sáenz Peña",146,62,84]
[null,"Punilla",2045,1034,1011,20,11,9]
[null,"Río Cuarto",2744,1423,1321]
[null,"Río Primero",320,158,162]
[null,"Río Seco"]
[null,"Río Segundo",823,422,401]
[null,"San Alberto",151,70,81]
[null,"San Javier",397,211,186]
[null,"San Justo",1674,859,815,45,20,25]
[null,"Santa María",1000,515,485]
[null,"Sobremonte"]
[null,"Tercero Arriba",1033,532,501]
[null,"Totoral"]
[null,"Tulumba"]
[null,"Unión",1111,557,554]

{"sheet":"C 2.5","index":8,"n_rows":26,"n_cols":8,"rows_kept":26,"cut":false,"hidden":true,"merged":[[1,1,1,7],[4,1,6,1],[2,1,3,1],[2,2,3,2],[2,3,3,3],[2,4,3,4],[2,5,2,7],[25,1,25,7],[28,8,28,13],[7,1,9,1],[10,1,12,1],[13,1,15,1],[16,1,18,1],[19,1,21,1],[22,1,24,1]]}
[]
[null,"CUADRO 2. 5  Alumnos de jardín maternal y de jardín de infantes, por salas de 3, 4 y 5, según año de relevamiento y sector"]
[null,"Año de relevamiento","Sector","Total ","Jardín maternal (*)","Jardín de infantes"]
[null,null,null,null,null,"Sala de 3","Sala de 4","Sala de 5"]
[null,2013,"Total Córdoba",126103,653,13133,53450,58867]
[null,null,"Estatal",91994,364,9009,39302,43319]
[null,null,"Privado",34109,289,4124,14148,15548]
[null,2014,"Total Córdoba",129364,709,14218,53949,60488]
[null,null,"Estatal",93719,404,9793,39289,44233]
[null,null,"Privado",35645,305,4425,14660,16255]
[null,2015,"Total Córdoba",128944,749,15034,53887,59274]
[null,null,"Estatal",93272,428,10569,39114,43161]
[null,null,"Privado",35672,321,4465,14773,16113]
[null,2016,"Total Córdoba",130096,817,16741,53834,58704]
[null,null,"Estatal",94072,476,11953,39185,42458]
[null,null,"Privado",36024,341,4788,14649,16246]
[null,2017,"Total Córdoba",132799,808,19600,55114,57277]
[null,null,"Estatal",96276,439,14102,40220,41515]
[null,null,"Privado",36523,369,5498,14894,15762]
[null,2018,"Total Córdoba",137396,843,21831,56148,58574]
[null,null,"Estatal",99882,457,15846,41170,42409]
[null,null,"Privado",37514,386,5985,14978,16165]
[null,2019,"Total Córdoba",141894,880,23401,58180,59433]
[null,null,"Estatal",103775,488,17036,42952,43299]
[null,null,"Privado",38119,392,6365,15228,16134]
[null,"(*) A partir del año 2008 comienza a incluirse dentro del nivel inicial la oferta correspondiente a jardines maternales."]

{"sheet":"CI cuadro 2.6. estatal","index":9,"n_rows":36,"n_cols":8,"rows_kept":36,"cut":false,"hidden":true,"merged":[[33,2,33,7],[34,2,34,7],[35,2,35,7],[1,2,1,7],[2,2,4,2],[2,3,2,6],[2,7,4,7],[3,3,4,3],[3,4,3,6]]}
[]
[null,null,"CUADRO 2.6 A Sector estatal. Alumnos en secciones independientes de jardín maternal y de jardín de infantes, por salas de 3, 4 y 5 y alumnos en secciones múltiples, según departamento"]
[null,null,"Departamento","En secciones independientes",null,null,null," En secciones múltiples (**)"]
[null,null,null,"Jardín maternal (*)","Jardín de infantes"]
[null,null,null,null,"Sala de 3","Sala de 4","Sala de 5"]
[null,null,"Total Córdoba",488,15863,38736,39603,9085]
[null,null,"Calamuchita",null,277,703,791,333]
[null,null,"Capital",488,5908,14829,14999,282]
[null,null,"Colón",null,444,3041,3201,463]
[null,null,"Cruz del Eje",null,154,615,720,504]
[null,null,"General Roca",null,288,396,447,203]
[null,null,"General San Martín",null,627,1421,1505,684]
[null,null,"Ischilín",null,317,464,516,219]
[null,null,"Juárez Celman",null,526,825,861,217]
[null,null,"Marcos Juárez",null,835,1031,1106,327]
[null,null,"Minas",null,16,18,22,105]
[null,null,"Pocho",null,null,null,13,117]
[null,null,"Pte. Roque Sáenz Peña",null,389,482,474,170]
[null,null,"Punilla",null,450,2003,2158,423]
[null,null,"Río Cuarto",null,863,2793,2825,705]
[null,null,"Río Primero",null,394,604,629,357]
[null,null,"Río Seco",null,105,143,150,255]
[null,null,"Río Segundo",null,480,1355,1384,270]
[null,null,"San Alberto",null,124,412,403,359]
[null,null,"San Javier",null,285,740,679,397]
[null,null,"San Justo",null,1046,2634,2592,857]
[null,null,"Santa María",null,409,1423,1393,386]
[null,null,"Sobremonte",null,20,42,61,27]
[null,null,"Tercero Arriba",null,778,1217,1193,610]
[null,null,"Totoral",null,183,275,241,133]
[null,null,"Tulumba",null,117,146,148,126]
[null,null,"Unión",null,828,1124,1092,556]
[]
[null,null,"(*)  A partir del año 2008 comienza a incluirse dentro del nivel inicial la oferta correspondiente a jardines maternales."]
[null,null,"(**) En la categoría “múltiple” está incluida la matrícula que asiste tanto a secciones multisala (donde niños de varias salas cursan con el mismo maestro) como a las multinivel."]
[null,null,"En el departamento Capital están incluidas además de las provinciales, las unidades educativas municipales y nacionales, al igual que sus alumnos y personal docente. En el departamento Río Cuarto están incluidas, además de las provinciales, las unidades educativas nacionales con sus alumnos y personal. "]

{"sheet":"CI cuadro 2.6. privado","index":10,"n_rows":35,"n_cols":7,"rows_kept":35,"cut":false,"hidden":true,"merged":[[33,1,33,6],[34,1,34,6],[1,1,1,6],[2,1,4,1],[2,2,2,5],[2,6,4,6],[3,2,4,2],[3,3,3,5]]}
[]
[null,"CUADRO 2.6 B Sector privado. Alumnos en secciones independientes de jardín maternal y de jardín de infantes, por salas de 3, 4 y 5 y alumnos en secciones múltiples, según departamento"]
[null,"Departamento","En secciones independientes",null,null,null," En secciones múltiples (**)"]
[null,null,"Jardín maternal (*)","Jardín de infantes"]
[null,null,null,"Sala de 3","Sala de 4","Sala de 5"]
[null,"Total Córdoba",392,6359,15224,16119,25]
[null,"Calamuchita",null,97,170,202]
[null,"Capital",203,2802,7645,8343]
[null,"Colón",33,310,1207,1288,5]
[null,"Cruz del Eje",null,95,209,211]
[null,"General Roca  ",null,27,34,31]
[null,"General San Martín",156,607,760,759]
[null,"Ischilín",null,null,30,30]
[null,"Juárez Celman",null,44,160,141]
[null,"Marcos Juárez",null,318,355,338]
[null,"Minas"]
[null,"Pocho"]
[null,"Pte. Roque Sáenz Peña",null,37,57,52]
[null,"Punilla",null,221,895,929,20]
[null,"Río Cuarto",null,408,1158,1178]
[null,"Río Primero",null,73,103,144]
[null,"Río Seco"]
[null,"Río Segundo",null,187,323,313]
[null,"San Alberto",null,null,70,81]
[null,"San Javier",null,29,174,194]
[null,"San Justo",null,438,640,641]
[null,"Santa María",null,123,430,447]
[null,"Sobremonte"]
[null,"Tercero Arriba",null,281,377,375]
[null,"Totoral"]
[null,"Tulumba"]
[null,"Unión",null,262,427,422]
[]
[null,"(*)  A partir del año 2008 comienza a incluirse dentro del nivel inicial la oferta correspondiente a jardines maternales."]
[null,"(**) En la categoría “múltiple” está incluida la matrícula que asiste tanto a secciones multisala (donde niños de varias salas cursan con el mismo maestro) como a las multinivel."]

{"sheet":"CI cuadro 2.7","index":11,"n_rows":11,"n_cols":8,"rows_kept":11,"cut":false,"hidden":true,"merged":[[9,1,9,7],[10,1,10,7],[1,1,1,7],[2,1,4,1],[2,2,4,2],[2,3,2,6],[2,7,4,7],[3,3,4,3],[3,4,3,6]]}
[]
[null,"CUADRO 2.7 Secciones independientes de jardín maternal y de jardín de infantes, por salas de 3, 4 y 5 y secciones múltiples, según sector"]
[null,"Sector","Total ","Secciones independientes",null,null,null,"Secciones múltiples (**)"]
[null,null,null,"Jardín maternal (*)","Jardín de infantes"]
[null,null,null,null,"Sala de 3","Sala de 4","Sala de 5"]
[null,"Total Córdoba",6690,66,1157,2275,2253,939]
[null,"Estatal",5113,41,831,1665,1640,936]
[null,"Privado",1577,25,326,610,613,3]
[]
[null,"(*)  A partir del año 2008 comienza a incluirse dentro del nivel inicial la oferta correspondiente a jardines maternales."]
[null,"(**) En la categoría “múltiple” está incluida la matrícula que asiste tanto a secciones multisala (donde niños de varias salas cursan con el mismo maestro) como a las multinivel."]

{"sheet":"C 2.8","index":12,"n_rows":37,"n_cols":12,"rows_kept":37,"cut":false,"hidden":true,"merged":[[34,1,34,11],[35,1,35,11],[36,1,36,11],[1,1,1,11],[2,1,5,1],[2,2,2,6],[2,7,2,11],[3,2,3,5],[3,6,5,6],[3,7,3,10],[3,11,5,11],[4,2,5,2],[4,3,4,5],[4,7,5,7],[4,8,4,10]]}
[]
[null,"CUADRO 2.8 Secciones independientes de jardín maternal y jardín de infantes, por salas de 3, 4 y 5 y secciones múltiples por sector, según departamento"]
[null,"Departamento","Estatal",null,null,null,null,"Privado"]
[null,null,"Secciones independientes",null,null,null,"Secciones múltiples (**)","Secciones independientes",null,null,null," Secciones múltiples (**)"]
[null,null,"Jardín maternal (*)","Jardín de infantes",null,null,null,"Jardín maternal (*)","Jardín de infantes"]
[null,null,null,"Sala de 3","Sala de 4","Sala de 5",null,null,"Sala de 3","Sala de 4","Sala de 5"]
[null,"Total Córdoba",41,831,1665,1640,936,25,326,610,613,3]
[null,"Calamuchita",null,14,33,34,39,null,5,7,7]
[null,"Capital",41,317,665,620,14,16,158,308,315]
[null,"Colón",null,25,123,128,27,2,17,49,48,1]
[null,"Cruz del Eje",null,8,27,31,57,null,6,7,7]
[null,"General Roca  ",null,16,21,21,21,null,1,1,1]
[null,"General San Martín",null,28,54,54,55,7,23,27,27]
[null,"Ischilín",null,16,18,24,28,null,null,1,1]
[null,"Juárez Celman",null,26,35,35,26,null,3,7,7]
[null,"Marcos Juárez",null,42,47,49,36,null,13,15,14]
[null,"Minas",null,1,1,2,18]
[null,"Pocho",null,null,null,1,26]
[null,"Pte. Roque Sáenz Peña",null,19,20,20,19,null,2,2,2]
[null,"Punilla",null,25,83,82,23,null,13,34,34,2]
[null,"Río Cuarto",null,47,116,115,77,null,19,45,45]
[null,"Río Primero",null,19,24,25,52,null,4,6,6]
[null,"Río Seco",null,5,6,8,32]
[null,"Río Segundo",null,24,54,56,31,null,8,12,11]
[null,"San Alberto",null,7,17,16,41,null,null,3,3]
[null,"San Javier",null,16,29,30,31,null,2,9,9]
[null,"San Justo",null,56,110,111,97,null,21,27,27]
[null,"Santa María",null,22,60,58,33,null,6,18,18]
[null,"Sobremonte",null,1,2,2,9]
[null,"Tercero Arriba",null,39,51,51,40,null,13,17,15]
[null,"Totoral",null,11,13,12,23]
[null,"Tulumba",null,7,9,7,26]
[null,"Unión",null,40,47,48,55,null,12,15,16]
[]
[null,"(*)  A partir del año 2008 comienza a incluirse dentro del nivel inicial la oferta correspondiente a jardines maternales."]
[null,"(**) En la categoría “múltiple” está incluida la matrícula que asiste tanto a secciones multisala (donde niños de varias salas cursan con el mismo maestro) como a las multinivel."]
[null,"En el departamento Capital están incluidas además de las provinciales, las unidades educativas municipales y nacionales, al igual que sus alumnos y personal docente. En el departamento Río Cuarto están incluidas, además de las provinciales, las unidades educativas nacionales con sus alumnos y personal. "]

{"sheet":"C2.9","index":13,"n_rows":34,"n_cols":16,"rows_kept":34,"cut":false,"hidden":true,"merged":[[3,13,3,15],[32,1,32,15],[33,1,33,15],[1,1,1,15],[2,1,4,1],[2,2,4,2],[2,3,2,9],[2,10,2,15],[3,3,4,3],[3,4,3,6],[3,7,3,9],[3,10,4,10],[3,11,3,12]]}
[]
[null,"CUADRO 2.9 Secciones por sector, ámbito y tipo , según departamento"]
[null,"Departamento","Total general","Estatal",null,null,null,null,null,null,"Privado "]
[null,null,null,"Total","Urbano",null,null,"Rural",null,null,"Total","Urbano",null,"Rural"]
[null,null,null,null,"Indep.","Múltiple","Multiniv.","Indep.","Múltiple","Multiniv.",null,"Indep.","Múltiple","Indep.","Múltiple","Multiniv."]
[null,"Total Córdoba",6690,5113,3838,149,3,339,329,455,1577,1571,1,null,3,1]
[null,"Calamuchita",139,120,65,4,1,16,14,20,19,19]
[null,"Capital",2454,1657,1643,14,null,null,null,null,797,797]
[null,"Colón",420,303,241,6,null,35,16,5,117,116,1]
[null,"Cruz del Eje",143,123,55,7,null,11,16,34,20,20]
[null,"General Roca",82,79,45,4,null,13,6,11,3,3]
[null,"General San Martín",275,191,123,14,null,13,21,20,84,84]
[null,"Ischilín",88,86,57,2,null,1,10,16,2,2]
[null,"Juárez Celman",139,122,76,4,null,20,5,17,17,17]
[null,"Marcos Juárez",216,174,133,10,null,5,7,19,42,42]
[null,"Minas",22,22,null,null,null,4,11,7]
[null,"Pocho",27,27,null,null,null,1,7,19]
[null,"Pte. Roque Sáenz Peña",84,78,53,2,null,6,7,10,6,6]
[null,"Punilla",296,213,173,11,null,17,8,4,83,81,null,null,null,1]
[null,"Río Cuarto",464,355,266,13,2,12,24,38,109,109]
[null,"Río Primero",136,120,61,2,null,7,19,31,16,16]
[null,"Río Seco",51,51,19,null,null,null,12,20]
[null,"Río Segundo",196,165,117,4,null,17,9,18,31,31]
[null,"San Alberto",87,81,31,1,null,9,19,21,6,6]
[null,"San Javier",126,106,59,3,null,16,16,12,20,20]
[null,"San Justo",449,374,232,12,null,45,41,44,75,72,null,null,3]
[null,"Santa María",215,173,115,7,null,25,14,12,42,42]
[null,"Sobremonte",14,14,5,null,null,null,3,6]
[null,"Tercero Arriba",226,181,129,18,null,12,12,10,45,45]
[null,"Totoral",59,59,18,null,null,18,8,15]
[null,"Tulumba",49,49,12,null,null,11,9,17]
[null,"Unión",233,190,110,11,null,25,15,29,43,43]
[null,"Indep.: independiente,  Multiniv.: multinivel"]
[null,"En el departamento Capital están incluidas, además de las provinciales, las unidades educativas municipales y nacionales, al igual que sus secciones, alumnos y personal docente. En el departamento Río Cuarto está incluida, además de las unidades educativas provinciales, la nacional con sus secciones, alumnos y personal."]

{"sheet":"C.2.10","index":14,"n_rows":32,"n_cols":5,"rows_kept":32,"cut":false,"hidden":true,"merged":[[30,1,30,4],[31,1,31,4],[1,1,1,4]]}
[]
[null,"CUADRO 2.10  Personal docente en actividad, por sexo, según departamento "]
[null,"Departamento","Total","Mujeres","Varones"]
[null,"Total Córdoba",9592,9071,521]
[null,"Calamuchita",8,163,10]
[null,"Capital",4256,4010,246]
[null,"Colón",638,613,25]
[null,"Cruz del Eje",139,127,12]
[null,"General Roca",94,83,11]
[null,"General San Martín",383,365,18]
[null,"Ischilín",90,81,9]
[null,"Juárez Celman",149,143,6]
[null,"Marcos Juárez",277,258,19]
[null,"Minas",13,13]
[null,"Pocho",11,7,4]
[null,"Pte. Roque Sáenz Peña",96,96]
[null,"Punilla",442,417,25]
[null,"Río Cuarto",647,610,37]
[null,"Río Primero",142,135,7]
[null,"Río Seco",36,36]
[null,"Río Segundo",250,230,20]
[null,"San Alberto",87,83,4]
[null,"San Javier",154,146,8]
[null,"San Justo",554,533,21]
[null,"Santa María",294,283,11]
[null,"Sobremonte",9,8,1]
[null,"Tercero Arriba",291,285,6]
[null,"Totoral",53,53]
[null,"Tulumba",37,34,3]
[null,"Unión",277,259,18]
[null,"(*) El personal docente en actividad hace referencia a todas las personas con designación docente que se desempeñan en las unidades educativas del nivel. Por esta razón, se cuentan tantas veces como ofertas en las que trabajan."]
[null,"En el departamento Capital están incluidas además de las provinciales, las unidades educativas municipales y nacionales, al igual que sus alumnos y personal docente. En el departamento Río Cuarto están incluidas, además de las provinciales, las unidades educativas nacionales con sus alumnos y personal. "]

{"sheet":"C.2.11","index":15,"n_rows":33,"n_cols":7,"rows_kept":33,"cut":false,"hidden":true,"merged":[[1,1,1,6],[2,8,6,12],[31,1,31,6],[32,1,32,6],[2,1,3,1],[2,2,3,2],[2,3,2,4],[2,5,2,6]]}
[]
[null,"CUADRO 2.11 Personal docente en actividad, por sector y ámbito, según departamento"]
[null,"Departamento","Total  (*)","Estatal",null,"Privado"]
[null,null,null,"Urbano","Rural","Urbano","Rural"]
[null,"Total Córdoba",9592,5180,761,3639,12]
[null,"Calamuchita",173,84,39,50]
[null,"Capital",4256,2329,null,1927]
[null,"Colón",638,292,58,288]
[null,"Cruz del Eje",139,74,31,34]
[null,"General Roca",94,66,22,6]
[null,"General San Martín",383,171,29,183]
[null,"Ischilín",90,67,13,10]
[null,"Juárez Celman",149,90,29,30]
[null,"Marcos Juárez",277,187,10,80]
[null,"Minas",13,null,13]
[null,"Pocho",11,null,11]
[null,"Pte. Roque Sáenz Peña",96,66,15,15]
[null,"Punilla",442,217,26,192,7]
[null,"Río Cuarto",647,352,38,257]
[null,"Río Primero",142,75,31,36]
[null,"Río Seco",36,21,15]
[null,"Río Segundo",250,148,35,67]
[null,"San Alberto",87,39,31,17]
[null,"San Javier",154,74,39,41]
[null,"San Justo",554,301,95,153,5]
[null,"Santa María",294,153,48,93]
[null,"Sobremonte",9,5,4]
[null,"Tercero Arriba",291,179,29,83]
[null,"Totoral",53,26,27]
[null,"Tulumba",37,13,24]
[null,"Unión",277,151,49,77]
[null,"(*)  El personal docente en actividad hace referencia a todas las personas con designación docente que se desempeñan en las unidades educativas del nivel. Por esta razón, se cuentan tantas veces como ofertas en las que trabajan."]
[null,"En el departamento Capital están incluidas además de las provinciales, las unidades educativas municipales y nacionales, al igual que sus alumnos y personal docente. En el departamento Río Cuarto están incluidas, además de las provinciales, las unidades educativas nacionales con sus alumnos y personal."]

{"sheet":"C2,12","index":16,"n_rows":35,"n_cols":13,"rows_kept":35,"cut":false,"hidden":true,"merged":[[32,1,32,11],[33,1,33,11],[34,1,34,12],[1,1,1,12],[2,1,4,1],[2,2,4,2],[2,3,2,5],[2,6,2,8],[2,9,2,12],[3,3,3,4],[3,6,3,7],[3,9,3,10],[3,11,3,12]]}
[]
[null,"CUADRO 2.12 Cargos docentes cubiertos frente a alumnos, por tipo de cargo, sector y ámbito, según departamento "]
[null,"Departamento","Total ","Director personal único (*)",null,null,"Director con clase anexa (*)",null,null,"Maestro de sala  (**)"]
[null,null,null,"Estatal",null,"Privado","Estatal",null,"Privado","Estatal",null,"Privado"]
[null,null,null,"Urbano","Rural","Urbano","Urbano","Rural","Urbano","Urbano","Rural","Urbano","Rural"]
[null,"Total Córdoba",6431,25,111,null,69,70,2,3988,428,1734,4]
[null,"Calamuchita",121,2,8,null,1,1,null,67,20,22]
[null,"Capital",2614,1,null,null,18,null,1,1702,null,892]
[null,"Colón",438,3,9,null,6,2,null,243,43,132]
[null,"Cruz del Eje",111,2,7,null,3,5,null,59,14,21]
[null,"General Roca",65,1,3,null,1,1,null,47,9,3]
[null,"General San Martín",257,2,2,null,2,6,null,132,20,93]
[null,"Ischilín",72,null,4,null,3,2,null,56,5,2]
[null,"Juárez Celman",118,null,1,null,3,4,null,77,16,17]
[null,"Marcos Juárez",194,null,3,null,8,1,1,135,4,42]
[null,"Minas",11,null,2,null,null,1,null,null,8]
[null,"Pocho",7,null,1,null,null,null,null,null,6]
[null,"Pte. Roque Sáenz Peña",73,null,4,null,null,2,null,55,6,6]
[null,"Punilla",308,3,4,null,3,1,null,176,21,99,1]
[null,"Río Cuarto",431,1,10,null,4,3,null,278,19,116]
[null,"Río Primero",104,null,7,null,1,1,null,62,17,16]
[null,"Río Seco",31,null,4,null,null,2,null,19,6]
[null,"Río Segundo",181,null,5,null,null,5,null,127,14,30]
[null,"San Alberto",67,null,2,null,1,6,null,31,21,6]
[null,"San Javier",117,2,7,null,1,2,null,62,21,22]
[null,"San Justo",404,1,9,null,2,7,null,248,57,77,3]
[null,"Santa María",203,1,6,null,3,6,null,118,25,44]
[null,"Sobremonte",7,null,2,null,null,null,null,5]
[null,"Tercero Arriba",220,2,2,null,5,2,null,143,16,50]
[null,"Totoral",41,null,3,null,null,1,null,18,19]
[null,"Tulumba",31,null,1,null,null,4,null,12,14]
[null,"Unión",205,4,5,null,4,5,null,116,27,44]
[null,"(*)  En 2018, el sector privado  no cuenta con designaciones de director personal único y  con clase anexa, en el ámbito rural."]
[null,"(**) Se incluye dentro de este universo a los maestros auxiliares de sala."]
[null,"En el departamento Capital están incluidas además de las provinciales, las unidades educativas municipales y nacionales, al igual que sus alumnos y personal docente. En el departamento Río Cuarto están incluidas, además de las provinciales, las unidades educativas nacionales con sus alumnos y personal."]

{"sheet":"CP C3.1","index":17,"n_rows":16,"n_cols":8,"rows_kept":16,"cut":false,"hidden":true,"merged":[[13,1,13,7],[14,1,14,7],[15,1,15,7],[17,1,18,1],[17,2,17,3],[17,4,17,5],[1,1,1,7],[7,1,9,1],[10,1,12,1],[2,2,3,2],[2,3,3,3],[2,4,2,6],[4,1,6,1]]}
[]
[null,"Cuadro 3.1 Unidades educativas, alumnos y personal docente en actividad, por sector y dependencia, según ámbito"]
[null,null,"Ámbito","Total ","Estatal",null,null,"Privado"]
[null,null,null,null,"Provincial (**)","Municipal (***)","Nacional (***)","Provincial"]
[null,"Unidades educativas","Total",2083,1737,37,3,306]
[null,null,"Urbano",1036,694,37,3,302]
[null,null,"Rural",1047,1043,null,null,4]
[null,"Alumnos","Total",357841,249779,9293,953,97816]
[null,null,"Urbano",326965,219094,9293,953,97625]
[null,null,"Rural",30876,30685,null,null,191]
[null,"Personal docente (*)","Total",31452,22593,915,152,7792]
[null,null,"Urbano",26576,17741,915,152,7768]
[null,null,"Rural",4876,4852,null,null,24]
[null,"(*)  El personal docente en actividad hace referencia a todas las personas con designación docente que se desempeñan en las unidades educativas del nivel. Por esta razón, se cuentan tantas veces como ofertas en las que trabajan."]
[null,"(**)  Se incluyen 459 escuelas en las que funcionan 459 secciones multinivel, donde se atienden simultáneamente a niños de nivel primario e inicial. Se trata de escuelas primarias provinciales (estatales y privadas) de zonas rurales y urbanas. Los docentes que atienden las secciones multinivel no se incluyen en las cifras de este cuadro."]
[null,"(***) Las unidades educativas municipales dependen de la Municipalidad de Córdoba; las nacionales, de la Universidad Nacional de Córdoba y del Ministerio de Defensa. Dos unidades educativas de dependencia nacional poseen alumnos matriculados en el 1° año del nivel secundario que son equivalentes a los alumnos del 6° grado del nivel primario; motivo por el cual se los cuenta dentro de este nivel de enseñanza."]

{"sheet":"CP C3.2","index":18,"n_rows":33,"n_cols":11,"rows_kept":33,"cut":false,"hidden":true,"merged":[[31,1,31,10],[32,1,32,10],[1,1,1,10],[2,1,3,1],[2,2,2,4],[2,5,2,7],[2,8,2,10]]}
[]
[null,"CUADRO 3.2 Unidades educativas, alumnos y personal docente en actividad, por sector, según departamento"]
[null,"Departamento","Total ",null,null,"Estatal",null,null,"Privado"]
[null,null,"Unidades educativas","Alumnos","Personal docente (*)","Unidades educativas","Alumnos","Personal docente ","Unidades educativas","Alumnos","Personal docente "]
[null,"Total Córdoba",2083,357841,31452,1777,260025,23660,306,97816,7792]
[null,"Calamuchita",70,6781,627,62,5480,491,8,1301,136]
[null,"Capital ",404,142105,11740,274,91559,7702,130,50546,4038]
[null,"Colón",97,28324,2098,75,20428,1463,22,7896,635]
[null,"Cruz del Eje",84,6383,691,80,5145,593,4,1238,98]
[null,"General Roca                          ",36,3243,328,35,3068,316,1,175,12]
[null,"General San Martín",80,14428,1252,72,9864,912,8,4564,340]
[null,"Ischilín",44,3703,416,43,3490,397,1,213,19]
[null,"Juárez Celman",56,6338,584,53,5479,512,3,859,72]
[null,"Marcos Juárez",81,9324,955,69,7371,792,12,1953,163]
[null,"Minas",27,410,111,27,410,111]
[null,"Pocho",29,351,110,29,351,110]
[null,"Pte. Roque Sáenz Peña",34,3474,363,32,3154,330,2,320,33]
[null,"Punilla",79,19885,1456,57,13968,1011,22,5917,445]
[null,"Río Cuarto",153,25989,2117,128,18777,1545,25,7212,572]
[null,"Río Primero",76,5451,579,72,4526,500,4,925,79]
[null,"Río Seco",37,1638,203,37,1638,203]
[null,"Río Segundo",76,10667,961,67,8915,829,9,1752,132]
[null,"San Alberto",56,3900,427,54,3325,387,2,575,40]
[null,"San Javier",52,6561,688,48,5482,599,4,1079,89]
[null,"San Justo",170,21505,2041,153,17870,1733,17,3635,308]
[null,"Santa María",68,12322,1025,57,9367,804,11,2955,221]
[null,"Sobremonte",16,442,64,16,442,64]
[null,"Tercero Arriba",73,10950,1087,63,8645,901,10,2305,186]
[null,"Totoral",38,2019,247,38,2019,247]
[null,"Tulumba",47,1242,222,47,1242,222]
[null,"Unión",100,10406,1060,89,8010,886,11,2396,174]
[null,"(*) El personal docente en actividad hace referencia a todas las personas con designación docente que se desempeñan en las unidades educativas del nivel. Por esta razón, se cuentan tantas veces como ofertas en las que trabajan."]
[null,"En el departamento Capital están incluidas además de las provinciales, las unidades educativas municipales y nacionales, al igual que sus alumnos y personal docente."]

{"sheet":"CP C3.3","index":19,"n_rows":34,"n_cols":11,"rows_kept":34,"cut":false,"hidden":true,"merged":[[32,1,32,10],[33,1,33,10],[34,1,34,10],[1,1,1,10],[2,1,4,1],[2,2,3,3],[2,4,2,7],[2,8,2,10],[3,4,3,5],[3,6,3,7],[3,8,3,9]]}
[]
[null,"CUADRO 3.3 Bases y anexos, por sector y ámbito, según departamento"]
[null,"Departamento","Total ",null,"Estatal",null,null,null,"Privado (*)"]
[null,null,null,null,"Urbano",null,"Rural",null,"Urbano",null,"Rural"]
[null,null,"Bases","Anexos","Bases","Anexos","Bases","Anexos","Bases","Anexos","Bases"]
[null,"Total Córdoba",2083,5,734,2,1043,3,302,null,4]
[null,"Calamuchita",70,null,12,null,50,null,7,null,1]
[null,"Capital",404,1,274,1,null,null,130]
[null,"Colón",97,1,45,null,30,1,22]
[null,"Cruz del Eje",84,null,15,null,65,null,4]
[null,"General Roca       ",36,null,10,null,25,null,1]
[null,"General San Martín",80,null,29,null,43,null,8]
[null,"Ischilín",44,null,13,null,30,null,1]
[null,"Juárez Celman",56,null,18,null,35,null,3]
[null,"Marcos Juárez",81,null,33,null,36,null,12]
[null,"Minas",27,null,null,null,27]
[null,"Pocho",29,null,null,null,29]
[null,"Pte. Roque Sáenz Peña",34,null,10,null,22,null,2]
[null,"Punilla",79,2,37,1,20,1,20,null,2]
[null,"Río Cuarto ",153,null,52,null,76,null,25]
[null,"Río Primero",76,null,11,null,61,null,4]
[null,"Río Seco",37,null,3,null,34]
[null,"Río Segundo",76,null,22,null,45,null,9]
[null,"San Alberto",56,null,6,null,48,null,2]
[null,"San Javier",52,null,16,null,32,null,4]
[null,"San Justo",170,1,43,null,110,1,16,null,1]
[null,"Santa María",68,null,22,null,35,null,11]
[null,"Sobremonte",16,null,1,null,15]
[null,"Tercero Arriba",73,null,32,null,31,null,10]
[null,"Totoral",38,null,2,null,36]
[null,"Tulumba",47,null,2,null,45]
[null,"Unión",100,null,26,null,63,null,11]
[null,"(*) El sector privado no cuenta con anexos en el nivel primario en el ámbito rural."]
[null,"En el departamento Capital están incluidas además de las provinciales, las bases municipales y nacionales (y sus anexos, en el caso que correspondan).\n"]

{"sheet":"CP C3.4","index":20,"n_rows":31,"n_cols":5,"rows_kept":31,"cut":false,"hidden":true,"merged":[[1,1,1,4],[30,1,30,4]]}
[]
[null,"CUADRO 3.4 Alumnos por sexo, según departamento "]
[null,"Departamento","Total","Mujeres","Varones"]
[null,"Total Córdoba",357841,175241,182600]
[null,"Calamuchita",6781,3316,3465]
[null,"Capital",142105,69792,72313]
[null,"Colón",28324,13853,14471]
[null,"Cruz del Eje",6383,3183,3200]
[null,"General Roca  ",3243,1631,1612]
[null,"General San Martín",14428,7106,7322]
[null,"Ischilín",3703,1807,1896]
[null,"Juárez Celman",6338,3010,3328]
[null,"Marcos Juárez",9324,4512,4812]
[null,"Minas",410,175,235]
[null,"Pocho",351,164,187]
[null,"Pte. Roque Sáenz Peña",3474,1729,1745]
[null,"Punilla",19885,9757,10128]
[null,"Río Cuarto",25989,12679,13310]
[null,"Río Primero",5451,2673,2778]
[null,"Río Seco",1638,759,879]
[null,"Río Segundo",10667,5258,5409]
[null,"San Alberto",3900,1858,2042]
[null,"San Javier",6561,3300,3261]
[null,"San Justo",21505,10426,11079]
[null,"Santa María",12322,5971,6351]
[null,"Sobremonte",442,222,220]
[null,"Tercero Arriba",10950,5331,5619]
[null,"Totoral",2019,1021,998]
[null,"Tulumba",1242,598,644]
[null,"Unión",10406,5110,5296]
[null,"En el departamento Capital están incluidas además de las provinciales, las unidades educativas municipales y nacionales, al igual que sus alumnos y personal docente."]

{"sheet":"CP C3.4. A estatal","index":21,"n_rows":32,"n_cols":8,"rows_kept":32,"cut":false,"hidden":true,"merged":[[34,1,35,1],[34,2,34,4],[34,5,34,7],[1,1,1,7],[2,1,3,1],[2,2,2,4],[2,5,2,7],[31,1,31,7]]}
[]
[null,"CUADRO 3.4 A Sector estatal. Alumnos por ámbito y sexo, según departamento"]
[null,"Departamento","Urbano",null,null,"Rural"]
[null,null,"Total","Mujeres","Varones","Total","Mujeres","Varones"]
[null,"Total Córdoba",229340,111020,118320,30685,14833,15852]
[null,"Calamuchita",3756,1841,1915,1724,821,903]
[null,"Capital",91559,44081,47478]
[null,"Colón",17657,8568,9089,2771,1321,1450]
[null,"Cruz del Eje",3691,1849,1842,1454,709,745]
[null,"General Roca  ",2425,1201,1224,643,327,316]
[null,"General San Martín",8493,4155,4338,1371,656,715]
[null,"Ischilín",3001,1481,1520,489,217,272]
[null,"Juárez Celman",4408,2110,2298,1071,491,580]
[null,"Marcos Juárez",6886,3299,3587,485,240,245]
[null,"Minas",null,null,null,410,175,235]
[null,"Pocho",null,null,null,351,164,187]
[null,"Pte. Roque Sáenz Peña",2640,1304,1336,514,254,260]
[null,"Punilla",12555,6117,6438,1413,663,750]
[null,"Río Cuarto",17281,8337,8944,1496,745,751]
[null,"Río Primero",3375,1629,1746,1151,565,586]
[null,"Río Seco",896,423,473,742,336,406]
[null,"Río Segundo",7639,3755,3884,1276,620,656]
[null,"San Alberto",2039,984,1055,1286,592,694]
[null,"San Javier",3643,1777,1866,1839,952,887]
[null,"San Justo",14430,6958,7472,3440,1691,1749]
[null,"Santa María",7333,3498,3835,2034,1029,1005]
[null,"Sobremonte",299,150,149,143,72,71]
[null,"Tercero Arriba",7821,3802,4019,824,378,446]
[null,"Totoral",1014,520,494,1005,501,504]
[null,"Tulumba",480,235,245,762,363,399]
[null,"Unión",6019,2946,3073,1991,951,1040]
[null,"En el departamento Capital están incluidas además de las provinciales, las unidades educativas municipales y nacionales, al igual que sus alumnos y personal docente. \n"]

{"sheet":"CP C3.4 B privado","index":22,"n_rows":31,"n_cols":8,"rows_kept":31,"cut":false,"hidden":true,"merged":[[2,1,3,1],[2,2,2,4],[2,5,2,7],[31,1,31,7],[1,1,1,7]]}
[]
[null,"CUADRO 3.4 B Sector privado. Alumnos por ámbito y sexo, según departamento"]
[null,"Departamento","Urbano",null,null,"Rural"]
[null,null,"Total","Mujeres","Varones","Total","Mujeres","Varones"]
[null,"Total Córdoba",97625,49297,48328,191,91,100]
[null,"Calamuchita",1295,650,645,6,4,2]
[null,"Capital",50546,25711,24835]
[null,"Colón",7896,3964,3932]
[null,"Cruz del Eje",1238,625,613]
[null,"General Roca                          ",175,103,72]
[null,"General San Martín",4564,2295,2269]
[null,"Ischilín",213,109,104]
[null,"Juárez Celman",859,409,450]
[null,"Marcos Juárez",1953,973,980]
[null,"Minas"]
[null,"Pocho"]
[null,"Pte. Roque Sáenz Peña",320,171,149]
[null,"Punilla",5856,2944,2912,61,33,28]
[null,"Río Cuarto",7212,3597,3615]
[null,"Río Primero",925,479,446]
[null,"Río Seco"]
[null,"Río Segundo",1752,883,869]
[null,"San Alberto",575,282,293]
[null,"San Javier",1079,571,508]
[null,"San Justo",3511,1723,1788,124,54,70]
[null,"Santa María",2955,1444,1511]
[null,"Sobremonte"]
[null,"Tercero Arriba",2305,1151,1154]
[null,"Totoral"]
[null,"Tulumba"]
[null,"Unión",2396,1213,1183]

{"sheet":"CP C 3.5","index":23,"n_rows":31,"n_cols":9,"rows_kept":31,"cut":false,"hidden":true,"merged":[[1,1,1,8],[30,1,30,8]]}
[]
[null,"CUADRO 3.5 Alumnos por grado, según departamento"]
[null,"Departamento","Total ","1°","2°","3°","4°","5°","6°"]
[null,"Total Córdoba",357841,58969,58449,59827,60360,60978,59258]
[null,"Calamuchita",6781,1092,1143,1103,1105,1176,1162]
[null,"Capital",142105,23448,23081,24058,23895,24338,23285]
[null,"Colón",28324,4583,4638,4835,4790,4780,4698]
[null,"Cruz del Eje",6383,1014,1035,1121,1094,1091,1028]
[null,"General Roca   ",3243,504,562,484,551,572,570]
[null,"General San Martín",14428,2429,2445,2342,2457,2338,2417]
[null,"Ischilín",3703,551,579,637,625,655,656]
[null,"Juárez Celman",6338,1005,1038,1098,1093,1075,1029]
[null,"Marcos Juárez",9324,1539,1470,1514,1626,1661,1514]
[null,"Minas",410,70,52,78,70,71,69]
[null,"Pocho",351,45,64,49,65,59,69]
[null,"Pte. Roque Sáenz Peña",3474,591,546,582,593,595,567]
[null,"Punilla",19885,3257,3300,3326,3367,3391,3244]
[null,"Río Cuarto",25989,4334,4242,4208,4432,4448,4325]
[null,"Río Primero",5451,934,872,898,943,925,879]
[null,"Río Seco",1638,270,266,269,263,299,271]
[null,"Río Segundo",10667,1774,1772,1782,1787,1803,1749]
[null,"San Alberto",3900,660,629,635,679,650,647]
[null,"San Javier",6561,1113,1094,1080,1077,1092,1105]
[null,"San Justo",21505,3563,3487,3541,3547,3658,3709]
[null,"Santa María",12322,2117,2003,1998,2092,2086,2026]
[null,"Sobremonte",442,77,56,81,75,75,78]
[null,"Tercero Arriba",10950,1879,1840,1767,1804,1844,1816]
[null,"Totoral",2019,337,328,338,344,331,341]
[null,"Tulumba",1242,162,204,234,218,214,210]
[null,"Unión",10406,1621,1703,1769,1768,1751,1794]
[null,"En el departamento Capital están incluidas además de las provinciales, las unidades educativas municipales y nacionales, al igual que sus alumnos y personal docente."]

{"sheet":"CP 3.6","index":24,"n_rows":32,"n_cols":8,"rows_kept":32,"cut":false,"hidden":true,"merged":[[2,1,3,1],[2,2,2,4],[2,5,2,7],[1,1,1,7],[31,1,32,7]]}
[]
[null,"Cuadro 3.6 Alumnos por sector y tipo de sección, según departamento "]
[null,"Departamento","Estatal",null,null,"Privado"]
[null,null,"Independiente","Múltiple","Multinivel","Independiente","Múltiple","Multinivel"]
[null,"Total Córdoba",246985,10092,2948,97728,75,13]
[null,"Calamuchita",4827,507,146,1295,6]
[null,"Capital ",91303,256,null,50546]
[null,"Colón",19691,689,48,7884,12]
[null,"Cruz del Eje",4385,518,242,1238]
[null,"General Roca",2887,135,46,175]
[null,"General San Martín",9145,574,145,4564]
[null,"Ischilín",3090,311,89,213]
[null,"Juárez Celman",5210,161,108,859]
[null,"Marcos Juárez",7093,189,89,1953]
[null,"Minas",188,171,51,0]
[null,"Pocho",99,158,94,0]
[null,"Pte. Roque Sáenz Peña",2972,126,56,320]
[null,"Punilla",13392,551,25,5856,48,13]
[null,"Río Cuarto",17915,611,251,7212]
[null,"Río Primero",3840,518,168,925]
[null,"Río Seco",1148,335,155,0]
[null,"Río Segundo",8514,272,129,1752]
[null,"San Alberto",2697,487,141,575]
[null,"San Javier",4694,707,81,1079]
[null,"San Justo",16445,1109,316,3635]
[null,"Santa María",8766,524,77,2955]
[null,"Sobremonte",311,91,40,0]
[null,"Tercero Arriba",8328,255,62,2305]
[null,"Totoral",1727,203,89,0]
[null,"Tulumba",908,233,101,0]
[null,"Unión",7410,401,199,2387,9]
[null,"En el departamento Capital están incluidas además de las provinciales, las unidades educativas municipales y nacionales, al igual que sus alumnos y personal docente."]

{"sheet":"CP C 3.7","index":25,"n_rows":31,"n_cols":7,"rows_kept":31,"cut":false,"hidden":true,"merged":[[30,1,30,6],[1,1,1,6]]}
[]
[null,"CUADRO 3.7 Total de alumnos, total y porcentaje de alumnos repitentes y con sobreedad, según departamento"]
[null,"Departamento","Alumnos ","Alumnos repitentes","Porcentaje de repitentes","Alumnos con sobreedad","Porcentaje de sobreedad"]
[null,"Total Córdoba",357841,2288,{"$f":"D4/C4*100","v":0.63939012019304664},10202,{"$f":"F4/C4*100","v":2.8509868908258138}]
[null,"Calamuchita",6781,110,1.6221796195251437,288,4.2471611856658313]
[null,"Capital",142105,844,0.59392702579078849,4160,2.9274128285422751]
[null,"Colón",28324,375,1.3239655415901708,1368,4.8298262957209435]
[null,"Cruz del Eje",6383,41,0.64233119222935919,233,3.6503211655961145]
[null,"General Roca              ",3243,3,9.2506938020351537E-2,11,0.33919210607462225]
[null,"General San Martín",14428,64,0.44358192403659552,250,1.7327418907679513]
[null,"Ischilín",3703,6,0.16203078584931138,108,2.9165541452876047]
[null,"Juárez Celman",6338,18,0.28400126222783212,96,1.514673398548438]
[null,"Marcos Juárez",9324,45,0.4826254826254826,188,2.0163020163020162]
[null,"Minas",410,7,1.7073170731707319,17,4.1463414634146343]
[null,"Pocho",351,8,2.2792022792022792,14,3.9886039886039883]
[null,"Pte. Roque Sáenz Peña",3474,4,0.11514104778353484,8,0.23028209556706969]
[null,"Punilla",19885,106,0.53306512446567766,441,2.2177520744279611]
[null,"Río Cuarto",25989,73,0.28088806802878141,474,1.8238485513101694]
[null,"Río Primero",5451,27,0.49532195927352773,91,1.6694184553292974]
[null,"Río Seco",1638,7,0.42735042735042739,32,1.9536019536019535]
[null,"Río Segundo",10667,92,0.86247304771725886,271,2.5405456079497517]
[null,"San Alberto",3900,17,0.4358974358974359,98,2.5128205128205128]
[null,"San Javier",6561,71,1.0821521109586953,319,4.862063709800335]
[null,"San Justo",21505,96,0.44640781213671238,543,2.5249941873982795]
[null,"Santa María",12322,52,0.42200941405615966,334,2.7105989287453336]
[null,"Sobremonte",442,1,0.22624434389140274,2,0.45248868778280549]
[null,"Tercero Arriba",10950,89,0.81278538812785384,296,2.7031963470319633]
[null,"Totoral",2019,3,0.14858841010401189,49,2.4269440316988611]
[null,"Tulumba",1242,0,0,10,0.80515297906602246]
[null,"Unión",10406,129,1.2396694214876034,501,4.8145300788006917]
[null,"En el departamento Capital están incluidas además de las provinciales, las unidades educativas municipales y nacionales, al igual que sus alumnos y personal docente."]

{"sheet":"CP C3,8 y 3.9 ","index":26,"n_rows":24,"n_cols":11,"rows_kept":24,"cut":false,"hidden":true,"merged":[[19,5,19,6],[20,5,20,6],[21,5,21,6],[2,12,3,12],[2,1,3,1],[2,2,2,4],[2,5,2,7],[2,8,2,10],[5,12,8,12],[14,1,15,1],[14,2,15,2],[22,5,22,6],[13,1,13,6],[23,1,23,6],[1,1,1,10],[14,3,15,4],[14,5,15,6],[16,3,16,4],[17,3,17,4],[18,3,18,4],[19,3,19,4],[20,3,20,4],[21,3,21,4],[22,3,22,4],[16,5,16,6],[17,5,17,6],[18,5,18,6]]}
[]
[null,"CUADRO 3.8 Total de alumnos, total y porcentaje de alumnos repitentes por sexo, según grado"]
[null,"Grado","Alumnos ",null,null,"Alumnos repetidores",null,null,"Porcentaje de repetidores"]
[null,null,"Total ","Mujeres","Varones","Total ","Mujeres","Varones","Total ","Mujeres","Varones"]
[null,"Total Córdoba",357841,175241,182600,2288,974,1314,{"$f":"F5/C5*100","v":0.63939012019304664},0.55580600430264604,0.71960569550930997]
[null,"1°",58969,28818,30151,47,19,28,7.970289474130475E-2,6.5931015337636206E-2,9.2865908261749189E-2]
[null,"2°",58449,28620,29829,577,212,365,0.98718540950230116,0.74074074074074081,1.2236414227764927]
[null,"3°",59827,29300,30527,575,225,350,0.96110451802697783,0.76791808873720135,1.1465260261407932]
[null,"4°",60360,29433,30927,445,199,246,0.73724320742213378,0.67611184724628826,0.79542147637986227]
[null,"5°",60978,30150,30828,359,175,184,0.58873692151267676,0.58043117744610273,0.59685999740495654]
[null,"6°",59258,28920,30338,285,144,141,0.48094772013905296,0.49792531120331945,0.46476366273320591]
[]
[]
[null,"CUADRO 3.9 Total de alumnos, total y porcentaje de alumnos con sobreedad, según grado"]
[null,"Grado","Alumnos ","Alumnos con sobreedad",null,"Porcentaje con sobreedad"]
[]
[null,"Total Córdoba",{"$f":"SUM(C18:C23)","v":357841},{"$f":"SUM(D18:D23)","v":10202},null,{"$f":"D17/C17*100","v":2.8509868908258138}]
[null,"1°",58969,365,null,0.61896928894843051,null," "]
[null,"2°",58449,971,null,1.6612773529059524]
[null,"3°",59827,1530,null,2.5573737610109148]
[null,"4°",60360,2034,null,3.3697813121272366]
[null,"5°",60978,2315,null,3.7964511791137787]
[null,"6°",59258,2987,null,5.0406696142293024]
[null,"El dato de sobreedad no puede desagregarse por sexo debido a que en el Relevamiento Anual no se capta la información de los alumnos de cada edad discriminados por esa variable."]

{"sheet":"CP C 3.10","index":27,"n_rows":16,"n_cols":10,"rows_kept":16,"cut":false,"hidden":true,"merged":[[4,1,6,1],[7,1,9,1],[10,1,12,1],[13,1,15,1],[1,1,1,9]]}
[]
[null,"CUADRO 3.10 Tasa de promoción, de no promoción y de abandono anual, por grado, según ciclo lectivo"]
[null,"Ciclo lectivo","Indicadores","Total ","1°","2°","3°","4°","5°","6°"]
[]
[null,2015,"Tasa de promoción",99.4,100.1,98.7,99.1,99.3,99.4,99.6]
[null,null,"Tasa de no promoción",0.7,0.1,1.5,1.2,0.8,0.6,0.2]
[null,null,"Tasa de abandono",-0.1,-0.2,-0.2,-0.3,-0.1,0,0.2]
[null,2016,"Tasa de promoción",98.2,98.9,97.3,97.7,98.1,98.2,98.8]
[null,null,"Tasa de no promoción",1,0.1,1.9,1.5,1.1000000000000001,0.9,0.3]
[null,null,"Tasa de abandono",0.9,1,0.7,0.8,0.8,1,1]
[null,2017,"Tasa de promoción",99,100.1,98.1,98.9,98.8,99,99.3]
[null,null,"Tasa de no promoción",0.6,0.1,1.4,0.9,0.7,0.6,0.2]
[null,null,"Tasa de abandono",0.3,-0.1,0.5,0.2,0.5,0.4,0.5]
[null,2018,"Tasa de promoción",98.708364888316325,97.530906069290651,101.37213639241047,99.764320457318604,100.07620941020544,96.190429335170052,97.384319416787605]
[null,null,"Tasa de no promoción",0.48932347047990593,8.1398701012396352E-2,1.0504884600249791,0.82069968408912364,0.50033134526176282,0.33946669290563808,0.15019069155219547]
[null,null,"Tasa de abandono",0.80231164120377474,2.3876952296969596,-2.4226248524354563,-0.58502014140772562,-0.57654075546719685,3.470103971924301,2.4654898916601975]

{"sheet":"CP C 3.11","index":28,"n_rows":36,"n_cols":16,"rows_kept":36,"cut":false,"hidden":true,"merged":[[1,1,1,15],[2,1,4,1],[2,2,4,2],[2,3,2,9],[2,10,2,15],[3,3,4,3],[3,4,3,6],[32,1,32,15],[33,1,33,15],[34,1,34,15],[35,1,35,15],[3,7,3,9],[3,10,4,10],[3,11,3,12],[3,13,3,15]]}
[]
[null,"CUADRO 3.11 Secciones por sector, ámbito y tipo, según departamento"]
[null,"Departamento","Total general","Estatal",null,null,null,null,null,null,"Privado (*)"]
[null,null,null,"Total","Urbano",null,null,"Rural",null,null,"Total","Urbano",null,"Rural"]
[null,null,null,null,"Indep.","Múltiple","Multiniv.","Indep.","Múltiple","Multiniv.",null,"Indep.","Múltiple","Indep.","Múltiple","Multiniv."]
[null,"Total Córdoba",15845,12461,10102,93,3,1113,695,455,3384,3372,2,6,3,1]
[null,"Calamuchita",320,269,159,3,1,54,32,20,51,50,null,null,1]
[null,"Capital",5776,4097,4083,14,null,0,0,0,1679,1679]
[null,"Colón",1106,843,690,12,null,111,25,5,263,262,1]
[null,"Cruz del Eje",362,320,191,2,null,51,42,34,42,42]
[null,"General Roca           ",186,180,125,2,null,29,13,11,6,6]
[null,"General San Martín",600,452,354,8,null,39,31,20,148,148]
[null,"Ischilín",199,193,143,4,null,11,19,16,6,6]
[null,"Juárez Celman",313,271,191,2,null,49,12,17,42,42]
[null,"Marcos Juárez",504,421,366,null,null,19,17,19,83,83]
[null,"Minas",42,42,null,null,null,12,23,7,0,0]
[null,"Pocho",41,41,null,null,null,6,16,19,0,0]
[null,"Pte. Roque Sáenz Peña",191,179,132,1,null,23,13,10,12,12]
[null,"Punilla",771,571,491,8,null,48,20,4,200,197,null,null,2,1]
[null,"Río Cuarto",1145,886,733,13,2,61,39,38,259,259]
[null,"Río Primero",289,251,152,null,null,27,41,31,38,38]
[null,"Río Seco",108,108,43,null,null,16,29,20,0,0]
[null,"Río Segundo",500,437,341,null,null,52,26,18,63,63]
[null,"San Alberto",215,197,93,null,null,42,41,21,18,18]
[null,"San Javier",317,276,152,10,null,69,33,12,41,41]
[null,"San Justo",1006,861,620,2,null,112,83,44,145,139,null,6]
[null,"Santa María",512,408,292,5,null,72,27,12,104,104]
[null,"Sobremonte",40,40,16,null,null,8,10,6,0,0]
[null,"Tercero Arriba",536,447,362,7,null,51,17,10,89,89]
[null,"Totoral",124,124,43,null,null,44,22,15,0,0]
[null,"Tulumba",99,99,27,null,null,27,28,17,0,0]
[null,"Unión",543,448,303,null,null,80,36,29,95,94,1]
[null,"(*) El sector privado no cuenta con secciones multinivel en el nivel primario en el ámbito urbano."]
[null,"Indep.: Independiente"]
[null,"Multiniv.: Multinivel"]
[null,"En el departamento Capital están incluidas además de las provinciales, las unidades educativas municipales y nacionales, al igual que sus secciones, alumnos y personal docente."]

{"sheet":"CP 3.12","index":29,"n_rows":32,"n_cols":5,"rows_kept":32,"cut":false,"hidden":true,"merged":[[30,1,30,4],[31,1,31,4],[1,1,1,4]]}
[]
[null,"CUADRO 3.12 Personal docente en actividad, por sexo, según departamento "]
[null,"Departamento","Total","Mujeres","Varones"]
[null,"Total Córdoba",31452,27724,3728]
[null,"Calamuchita",627,566,61]
[null,"Capital",11740,10339,1401]
[null,"Colón",2098,1894,204]
[null,"Cruz del Eje",691,595,96]
[null,"General Roca",328,289,39]
[null,"General San Martín",1252,1125,127]
[null,"Ischilín",416,340,76]
[null,"Juárez Celman",584,500,84]
[null,"Marcos Juárez",955,874,81]
[null,"Minas",111,86,25]
[null,"Pocho",110,62,48]
[null,"Pte. Roque Sáenz Peña",363,318,45]
[null,"Punilla",1456,1284,172]
[null,"Río Cuarto",2117,1898,219]
[null,"Río Primero",579,506,73]
[null,"Río Seco",203,157,46]
[null,"Río Segundo",961,861,100]
[null,"San Alberto",427,356,71]
[null,"San Javier",688,589,99]
[null,"San Justo",2041,1825,216]
[null,"Santa María",1025,893,132]
[null,"Sobremonte",64,53,11]
[null,"Tercero Arriba",1087,993,94]
[null,"Totoral",247,222,25]
[null,"Tulumba",222,151,71]
[null,"Unión",1060,948,112]
[null,"(*) El personal docente en actividad hace referencia a todas las personas con designación docente que se desempeñan en\nlas unidades educativas del nivel. Por esta razón, se cuentan tantas veces como ofertas en las que trabajan."]
[null,"En el departamento Capital están incluidas además de las provinciales, las unidades educativas municipales y nacionales, al igual que sus alumnos y personal docente."]

{"sheet":"CP C3.13","index":30,"n_rows":33,"n_cols":7,"rows_kept":33,"cut":false,"hidden":true,"merged":[[1,1,1,6],[5,9,5,10],[31,1,31,6],[32,1,32,6],[2,1,3,1],[2,2,3,2],[2,3,2,4],[2,5,2,6]]}
[]
[null,"CUADRO 3.13 Personal docente en actividad, por sector y ámbito, según departamento"]
[null,"Departamento","Total   (*)","Estatal",null,"Privado"]
[null,null,null,"Urbano","Rural","Urbano","Rural"]
[null,"Total Córdoba",{"$f":"D5+E5+F5+G5","v":31452},18808,4852,7768,24]
[null,"Calamuchita",627,284,207,135,1]
[null,"Capital",11740,7702,0,4038]
[null,"Colón",2098,1197,266,635]
[null,"Cruz del Eje",691,359,234,98]
[null,"General Roca",328,216,100,12]
[null,"General San Martín",1252,687,225,340]
[null,"Ischilín",416,283,114,19]
[null,"Juárez Celman",584,353,159,72]
[null,"Marcos Juárez",955,680,112,163]
[null,"Minas",111,null,111]
[null,"Pocho",110,null,110]
[null,"Pte. Roque Sáenz Peña",363,241,89,33]
[null,"Punilla",1456,856,155,433,12]
[null,"Río Cuarto",2117,1233,312,572]
[null,"Río Primero",579,277,223,79]
[null,"Río Seco",203,76,127]
[null,"Río Segundo",961,620,209,132]
[null,"San Alberto",427,166,221,40]
[null,"San Javier",688,340,259,89]
[null,"San Justo",2041,1222,511,297,11]
[null,"Santa María",1025,546,258,221]
[null,"Sobremonte",64,30,34]
[null,"Tercero Arriba",1087,718,183,186]
[null,"Totoral",247,81,166]
[null,"Tulumba",222,51,171]
[null,"Unión",1060,590,296,174]
[null,"(*) El personal docente en actividad hace referencia a todas las personas con designación docente que se desempeñan en las unidades educativas del nivel. Por esta razón, se cuentan tantas veces como ofertas en las que trabajan."]
[null,"En el departamento Capital están incluidas además de las provinciales, las unidades educativas municipales y nacionales, al igual que sus alumnos y personal docente."]

{"sheet":"CP C3.14","index":31,"n_rows":34,"n_cols":15,"rows_kept":34,"cut":false,"hidden":true,"merged":[[33,1,33,13],[36,1,36,14],[1,1,1,14],[2,1,4,1],[2,2,4,2],[2,3,2,6],[2,7,2,10],[2,11,2,14],[3,3,3,4],[3,5,3,6],[3,7,3,8],[3,9,3,10],[3,11,3,12],[3,13,3,14]]}
[]
[null,"CUADRO 3.14 Cargos docentes cubiertos frente a alumnos, por tipo de cargo, sector y ámbito, según departamento "]
[null,"Departamento","Total ","Director personal único",null,null,null,"Director con clase anexa",null,null,null,"Maestro de grado  (*)"]
[null,null,null,"Estatal",null,"Privado",null,"Estatal",null,"Privado",null,"Estatal",null,"Privado"]
[null,null,null,"Urbano","Rural","Urbano","Rural","Urbano","Rural","Urbano","Rural","Urbano","Rural","Urbano","Rural"]
[null,"Total Córdoba",16003,11,628,4,1,17,249,5,2,10168,1386,3523,9]
[null,"Calamuchita",328,1,33,null,1,1,5,null,null,166,67,54]
[null,"Capital",5884,1,null,2,null,2,null,1,null,4089,null,1789]
[null,"Colón",1128,null,8,null,null,2,8,1,null,701,127,281]
[null,"Cruz del Eje",364,null,35,null,null,2,23,null,null,191,71,42]
[null,"General Roca  ",190,null,18,null,null,1,4,null,null,127,34,6]
[null,"General San Martín",608,1,29,null,null,1,6,null,null,364,56,151]
[null,"Ischilín",201,2,6,null,null,2,21,null,null,145,19,6]
[null,"Juárez Celman",314,1,27,null,null,null,1,null,null,192,51,42]
[null,"Marcos Juárez",490,1,28,1,null,null,6,null,null,352,19,83]
[null,"Minas",41,null,19,null,null,null,6,null,null,null,16]
[null,"Pocho",41,null,22,null,null,null,5,null,null,null,14]
[null,"Pte. Roque Sáenz Peña",191,null,13,null,null,null,5,null,null,133,28,12]
[null,"Punilla",773,null,5,null,null,1,10,null,null,499,60,195,3]
[null,"Río Cuarto",1145,3,55,null,null,null,11,1,2,739,70,264]
[null,"Río Primero",289,null,42,null,null,null,11,null,null,152,44,40]
[null,"Río Seco",112,null,20,null,null,null,11,null,null,43,38]
[null,"Río Segundo",499,1,32,null,null,null,4,null,null,337,61,64]
[null,"San Alberto",215,null,26,null,null,null,17,null,null,93,61,18]
[null,"San Javier",319,null,11,null,null,2,14,1,null,160,89,42]
[null,"San Justo",1012,null,64,null,null,null,28,null,null,626,148,140,6]
[null,"Santa María",519,null,15,null,null,2,9,1,null,295,89,108]
[null,"Sobremonte",35,null,11,null,null,null,4,null,null,16,4]
[null,"Tercero Arriba",534,null,22,null,null,1,5,null,null,372,45,89]
[null,"Totoral",122,null,15,null,null,null,16,null,null,43,48]
[null,"Tulumba",99,null,33,null,null,null,7,null,null,27,32]
[null,"Unión",550,null,39,1,null,null,12,null,null,306,95,97]
[null,"(*)  Se incluye dentro de este universo a los maestros auxiliares de grado y maestros de área."]
[null,"En el departamento Capital están incluidas además de las provinciales, las unidades educativas municipales y nacionales, al igual que sus alumnos y personal docente."]

{"sheet":"CSC4.1","index":32,"n_rows":17,"n_cols":9,"rows_kept":17,"cut":false,"hidden":true,"merged":[[2,2,3,2],[2,3,3,3],[1,1,1,6],[14,1,14,6],[2,4,2,5],[15,1,15,6],[16,1,16,6],[4,1,6,1],[7,1,9,1],[10,1,12,1]]}
[]
[null,"CUADRO 4.1  Unidades educativas, alumnos y personal docente en actividad, por sector y dependencia, según ámbito"]
[null,null,"Ámbito","Total ","Estatal",null,"Privado"]
[null,null,null,null,"Provincial","Nacional (**)","Provincial"]
[null,"Unidades educativas","Total",891,482,3,406,855,450]
[null,null,"Urbano",771,397,3,371,739,369]
[null,null,"Rural",120,85,null,35,116,81]
[null,"Alumnos","Total",332713,196639,3381,132693,329729,194102]
[null,null,"Urbano",306461,175093,3381,127987,303751,172774]
[null,null,"Rural",26252,21546,null,4706,25978,21328]
[null,"Personal docente (*)","Total",59919,39603,725,19591,59130,38916]
[null,null,"Urbano",52908,33642,725,18541,52224,33054]
[null,null,"Rural",7011,5961,null,1050,6906,5862]
[]
[null,"(*) El personal docente en actividad hace referencia a todas las personas con designación docente que se desempeñan en las unidades educativas del nivel. Por esta razón, se cuentan tantas veces como ofertas en las que trabajan."]
[null,"(**)  Las unidades educativas nacionales de nivel secundario dependen de la Universidad Nacional de Córdoba y del Ministerio de Defensa."]
[null,"  "]

{"sheet":"CSC4.2","index":33,"n_rows":33,"n_cols":11,"rows_kept":33,"cut":false,"hidden":true,"merged":[[31,1,31,10],[32,1,32,10],[1,1,1,10],[2,1,3,1],[2,2,2,4],[2,5,2,7],[2,8,2,10]]}
[]
[null,"CUADRO 4.2 Unidades educativas, alumnos y personal docente en actividad, por sector, según departamento"]
[null,"Departamento","Total ",null,null,"Estatal",null,null,"Privado"]
[null,null,"Unidades educativas ","Alumnos","Personal docente (*)","Unidades educativas ","Alumnos","Personal docente ","Unidades educativas ","Alumnos","Personal docente "]
[null,"Total Córdoba",891,332713,59919,485,200020,40328,406,132693,19591]
[null,"Calamuchita",21,6467,1094,12,4007,762,9,2460,332]
[null,"Capital ",288,129446,22055,140,72588,14168,148,56858,7887]
[null,"Colón",56,25265,4078,33,16366,2894,23,8899,1184]
[null,"Cruz del Eje",19,6259,1321,14,4550,1029,5,1709,292]
[null,"General Roca                          ",13,3187,673,8,2546,523,5,641,150]
[null,"General San Martín",33,12984,2176,16,6089,1160,17,6895,1016]
[null,"Ischilín",5,3545,535,3,2738,422,2,807,113]
[null,"Juárez Celman",21,6372,1116,11,3426,653,10,2946,463]
[null,"Marcos Juárez",34,8546,1777,16,4655,1044,18,3891,733]
[null,"Minas",2,491,197,2,491,197]
[null,"Pocho",2,403,134,2,403,134]
[null,"Pte. Roque Sáenz Peña",11,3549,713,8,2683,579,3,866,134]
[null,"Punilla",51,19111,3086,25,11082,1892,26,8029,1194]
[null,"Río Cuarto",69,23253,4336,35,13072,2770,34,10181,1566]
[null,"Río Primero",16,5616,1070,10,3806,796,6,1810,274]
[null,"Río Seco",5,1597,275,5,1597,275]
[null,"Río Segundo",37,10455,2180,21,6248,1521,16,4207,659]
[null,"San Alberto",14,3866,941,10,2916,765,4,950,176]
[null,"San Javier",15,6386,1269,9,4794,971,6,1592,298]
[null,"San Justo",62,20362,3802,34,12945,2714,28,7417,1088]
[null,"Santa María",31,11636,2070,22,8119,1575,9,3517,495]
[null,"Sobremonte",1,481,106,1,481,106]
[null,"Tercero Arriba",35,10197,2033,18,5623,1267,17,4574,766]
[null,"Totoral",8,1977,484,7,1782,453,1,195,31]
[null,"Tulumba",5,1094,290,5,1094,290]
[null,"Unión",37,10168,2108,18,5919,1368,19,4249,740]
[null,"(*) El personal docente en actividad hace referencia a todas las personas con designación docente que se desempeñan en las unidades educativas del nivel. Por esta razón, se cuentan tantas veces como ofertas en las que trabajan."]
[null,"En el departamento Capital están incluidas además de las provinciales, las unidades educativas nacionales, al igual que sus alumnos y personal docente.\n"]

{"sheet":"CSC4.3","index":34,"n_rows":33,"n_cols":12,"rows_kept":33,"cut":false,"hidden":true,"merged":[[32,1,32,11],[1,1,1,11],[2,1,4,1],[2,2,3,3],[2,4,2,7],[2,8,2,11],[3,4,3,5],[3,6,3,7],[3,8,3,9],[3,10,3,11]]}
[]
[null,"CUADRO 4.3 Bases y anexos, por sector y ámbito, según departamento"]
[null,"Departamento","Total ",null,"Estatal",null,null,null,"Privado"]
[null,null,null,null,"Urbano",null,"Rural",null,"Urbano ",null,"Rural"]
[null,null,"Bases","Anexos","Bases","Anexos","Bases","Anexos","Bases","Anexos","Bases","Anexos"]
[null,"Total Córdoba",891,139,400,13,85,123,371,2,35,1]
[null,"Calamuchita",21,5,9,1,3,4,7,null,2]
[null,"Capital ",288,2,140,2,null,null,148]
[null,"Colón",56,7,27,2,6,5,23]
[null,"Cruz del Eje",19,3,8,null,6,3,4,null,1]
[null,"General Roca               ",13,2,7,null,1,2,2,null,3]
[null,"General San Martín",33,1,12,null,4,1,13,null,4]
[null,"Ischilín",5,5,3,null,null,5,2]
[null,"Juárez Celman",21,3,9,1,2,1,6,1,4]
[null,"Marcos Juárez",34,1,16,null,null,1,16,null,2]
[null,"Minas",2,7,null,null,2,7]
[null,"Pocho",2,3,null,null,2,3]
[null,"Pte. Roque Sáenz Peña",11,4,5,null,3,4,3]
[null,"Punilla",51,2,21,1,4,1,25,null,1]
[null,"Río Cuarto",69,12,29,2,6,9,32,1,2]
[null,"Río Primero",16,12,7,1,3,11,6]
[null,"Río Seco",5,3,3,null,2,3]
[null,"Río Segundo",37,9,15,1,6,8,14,null,2]
[null,"San Alberto",14,8,6,null,4,8,4]
[null,"San Javier",15,4,5,1,4,3,5,null,1]
[null,"San Justo",62,22,26,null,8,21,22,null,6,1]
[null,"Santa María",31,8,16,1,6,7,9]
[null,"Sobremonte",1,2,1,null,null,2]
[null,"Tercero Arriba",35,4,15,null,3,4,15,null,2]
[null,"Totoral",8,3,4,null,3,3,null,null,1]
[null,"Tulumba",5,2,1,null,4,2]
[null,"Unión",37,5,15,null,3,5,15,null,4]
[null,"En el departamento Capital están incluidas además de las provinciales, las bases nacionales (y sus anexos, en el caso que correspondan)."]

{"sheet":"CSC4.4","index":35,"n_rows":31,"n_cols":5,"rows_kept":31,"cut":false,"hidden":true,"merged":[[1,1,1,4],[30,1,31,4]]}
[]
[null,"CUADRO 4.4 Alumnos por sexo, según departamento"]
[null,"Departamento","Total","Mujeres","Varones"]
[null,"Total Córdoba",332713,166398,166315]
[null,"Calamuchita",6467,3163,3304]
[null,"Capital",129446,64479,64967]
[null,"Colón",25265,12640,12625]
[null,"Cruz del Eje",6259,3238,3021]
[null,"General Roca  ",3187,1693,1494]
[null,"General San Martín",12984,6324,6660]
[null,"Ischilín",3545,1716,1829]
[null,"Juárez Celman",6372,3153,3219]
[null,"Marcos Juárez",8546,4150,4396]
[null,"Minas",491,244,247]
[null,"Pocho",403,193,210]
[null,"Pte. Roque Sáenz Peña",3549,1797,1752]
[null,"Punilla",19111,9526,9585]
[null,"Río Cuarto",23253,11730,11523]
[null,"Río Primero",5616,2843,2773]
[null,"Río Seco",1597,833,764]
[null,"Río Segundo",10455,5178,5277]
[null,"San Alberto",3866,1873,1993]
[null,"San Javier",6386,3222,3164]
[null,"San Justo",20362,10340,10022]
[null,"Santa María",11636,5816,5820]
[null,"Sobremonte",481,265,216]
[null,"Tercero Arriba",10197,5179,5018]
[null,"Totoral",1977,987,990]
[null,"Tulumba",1094,543,551]
[null,"Unión",10168,5273,4895]
[null,"En el departamento Capital están incluidas además de las provinciales, las unidades educativas nacionales, al igual que sus alumnos y personal docente."]

{"sheet":"CSC4.4 A","index":36,"n_rows":32,"n_cols":8,"rows_kept":32,"cut":false,"hidden":true,"merged":[[31,1,31,7],[1,1,1,7],[2,1,3,1],[2,2,2,4],[2,5,2,7]]}
[]
[null,"CUADRO 4.4. A Sector estatal.  Alumnos por ámbito y sexo, según departamento"]
[null,"Departamento","Urbano",null,null,"Rural"]
[null,null,"Total","Mujeres","Varones","Total","Mujeres","Varones"]
[null,"Total Córdoba",178474,84520,93954,21546,10734,10812]
[null,"Calamuchita",3402,1473,1929,605,302,303]
[null,"Capital",72588,34757,37831]
[null,"Colón",13933,6557,7376,2433,1219,1214]
[null,"Cruz del Eje",3509,1718,1791,1041,530,511]
[null,"General Roca                          ",2328,1223,1105,218,115,103]
[null,"General San Martín",5426,2280,3146,663,294,369]
[null,"Ischilín",2461,1119,1342,277,131,146]
[null,"Juárez Celman",3082,1417,1665,344,192,152]
[null,"Marcos Juárez",4639,2027,2612,16,8,8]
[null,"Minas",null,null,null,491,244,247]
[null,"Pocho",null,null,null,403,193,210]
[null,"Pte. Roque Sáenz Peña",2263,1121,1142,420,219,201]
[null,"Punilla",9847,4722,5125,1235,618,617]
[null,"Río Cuarto",11710,5582,6128,1362,721,641]
[null,"Río Primero",2550,1195,1355,1256,573,683]
[null,"Río Seco",1120,583,537,477,250,227]
[null,"Río Segundo",5223,2306,2917,1025,514,511]
[null,"San Alberto",1667,790,877,1249,617,632]
[null,"San Javier",3441,1657,1784,1353,663,690]
[null,"San Justo",10735,4999,5736,2210,1158,1052]
[null,"Santa María",6424,3182,3242,1695,773,922]
[null,"Sobremonte",383,203,180,98,62,36]
[null,"Tercero Arriba",5138,2437,2701,485,223,262]
[null,"Totoral",1205,562,643,577,297,280]
[null,"Tulumba",483,247,236,611,296,315]
[null,"Unión",4917,2363,2554,1002,522,480]
[null,"En el departamento Capital están incluidas además de las provinciales, las unidades educativas nacionales, al igual que sus alumnos y personal docente."]

{"sheet":"CSC4.4 B","index":37,"n_rows":32,"n_cols":8,"rows_kept":32,"cut":false,"hidden":true,"merged":[[31,1,31,7],[1,1,1,7],[2,1,3,1],[2,2,2,4],[2,5,2,7]]}
[]
[null,"CUADRO 4.4. B Sector privado. Alumnos por ámbito y sexo, según departamento"]
[null,"Departamento","Urbano",null,null,"Rural"]
[null,null,"Total","Mujeres","Varones","Total","Mujeres","Varones"]
[null,"Total Córdoba",127987,68743,59244,4706,2401,2305]
[null,"Calamuchita",2250,1267,983,210,121,89]
[null,"Capital",56858,29722,27136]
[null,"Colón",8899,4864,4035]
[null,"Cruz del Eje",1501,881,620,208,109,99]
[null,"General Roca                          ",334,193,141,307,162,145]
[null,"General San Martín",6344,3475,2869,551,275,276]
[null,"Ischilín",807,466,341,0,0,0]
[null,"Juárez Celman",2437,1281,1156,509,263,246]
[null,"Marcos Juárez",3672,2035,1637,219,80,139]
[null,"Minas"]
[null,"Pocho"]
[null,"Pte. Roque Sáenz Peña",866,457,409]
[null,"Punilla",8009,4176,3833,20,10,10]
[null,"Río Cuarto",9884,5347,4537,297,80,217]
[null,"Río Primero",1810,1075,735]
[null,"Río Seco"]
[null,"Río Segundo",3964,2214,1750,243,144,99]
[null,"San Alberto",950,466,484]
[null,"San Javier",1424,790,634,168,112,56]
[null,"San Justo",6394,3687,2707,1023,496,527]
[null,"Santa María",3517,1861,1656]
[null,"Sobremonte"]
[null,"Tercero Arriba",4333,2396,1937,241,123,118]
[null,"Totoral",null,null,null,195,128,67]
[null,"Tulumba"]
[null,"Unión",3734,2090,1644,515,298,217]
[null,"Los departamento de Minas, Pocho, Río Seco, Sobremonte y Tulumba no cuentan con oferta del sector privado."]

{"sheet":"CSC4.5","index":38,"n_rows":31,"n_cols":10,"rows_kept":31,"cut":false,"hidden":true,"merged":[[1,1,1,8],[30,1,30,9]]}
[]
[null,"CUADRO 4.5 Alumnos por año de estudio, según departamento"]
[null,"Departamento","Total ","1º                                       ","2º                                       ","3º                                       ","4º                                       ","5º                                       ","6º                                       ","7º                                       "]
[null,"Total Córdoba",332713,64843,63105,61151,53563,44770,39456,5825]
[null,"Calamuchita",6467,1316,1249,1190,1011,810,723,168]
[null,"Capital",129446,25199,24405,24009,21153,17727,15791,1162]
[null,"Colón",25265,5053,4706,4656,4001,3389,2975,485]
[null,"Cruz del Eje",6259,1232,1195,1181,1041,799,691,120]
[null,"General Roca  ",3187,646,640,525,483,452,389,52]
[null,"General San Martín",12984,2567,2461,2292,2119,1752,1552,241]
[null,"Ischilín",3545,739,678,658,528,432,388,122]
[null,"Juárez Celman",6372,1203,1183,1142,1030,859,715,240]
[null,"Marcos Juárez",8546,1698,1660,1480,1343,1110,1007,248]
[null,"Minas",491,87,80,107,84,69,54,10]
[null,"Pocho",403,84,69,87,69,46,35,13]
[null,"Pte. Roque Sáenz Peña",3549,678,640,652,591,457,415,116]
[null,"Punilla",19111,3625,3712,3447,3143,2633,2226,325]
[null,"Río Cuarto",23253,4674,4494,4248,3688,2976,2746,427]
[null,"Río Primero",5616,1064,969,1008,938,775,689,173]
[null,"Río Seco",1597,317,285,310,248,233,163,41]
[null,"Río Segundo",10455,1932,1952,1999,1621,1445,1258,248]
[null,"San Alberto",3866,698,761,720,612,505,474,96]
[null,"San Javier",6386,1228,1182,1262,1042,811,780,81]
[null,"San Justo",20362,4048,3993,3653,3147,2726,2373,422]
[null,"Santa María",11636,2305,2248,2140,1849,1536,1299,259]
[null,"Sobremonte",481,108,107,78,72,64,42,10]
[null,"Tercero Arriba",10197,1895,1918,1885,1620,1442,1170,267]
[null,"Totoral",1977,359,407,355,311,247,227,71]
[null,"Tulumba",1094,185,214,207,180,140,99,69]
[null,"Unión",10168,1903,1897,1860,1639,1335,1175,359]
[null,"En el departamento Capital están incluidas además de las provinciales, las unidades educativas nacionales, al igual que sus alumnos y personal docente."]

{"sheet":"CSC4.5. A","index":39,"n_rows":33,"n_cols":10,"rows_kept":33,"cut":false,"hidden":true,"merged":[[32,1,32,9],[31,1,31,9],[1,1,1,9],[2,1,3,1],[2,2,2,3],[2,4,2,5],[2,6,2,7],[2,8,2,9]]}
[]
[null,"CUADRO 4.5. A Ciclo básico. Alumnos por año de estudio y sexo, según departamento"]
[null,"Departamento","Total (*)",null,"1°",null,"2°",null,"3°"]
[null,null,"Mujeres","Varones","Mujeres","Varones","Mujeres","Varones","Mujeres","Varones"]
[null,"Total Córdoba",92850,96249,31082,33761,31132,31973,30636,30515]
[null,"Calamuchita",1794,1961,599,717,621,628,574,616]
[null,"Capital",36190,37423,12205,12994,12062,12343,11923,12086]
[null,"Colón",7037,7378,2406,2647,2298,2408,2333,2323]
[null,"Cruz del Eje",1807,1801,598,634,602,593,607,574]
[null,"General Roca  ",945,866,295,351,345,295,305,220]
[null,"General San Martín",3483,3837,1183,1384,1150,1311,1150,1142]
[null,"Ischilín",1010,1065,346,393,344,334,320,338]
[null,"Juárez Celman",1724,1804,586,617,562,621,576,566]
[null,"Marcos Juárez",2356,2482,816,882,830,830,710,770]
[null,"Minas",121,153,41,46,33,47,47,60]
[null,"Pocho",115,125,41,43,30,39,44,43]
[null,"Pte. Roque Sáenz Peña",1002,968,315,363,341,299,346,306]
[null,"Punilla",5333,5451,1772,1853,1824,1888,1737,1710]
[null,"Río Cuarto",6619,6797,2207,2467,2219,2275,2193,2055]
[null,"Río Primero",1513,1528,512,552,484,485,517,491]
[null,"Río Seco",467,445,158,159,155,130,154,156]
[null,"Río Segundo",2848,3035,893,1039,973,979,982,1017]
[null,"San Alberto",1000,1179,297,401,356,405,347,373]
[null,"San Javier",1776,1896,587,641,588,594,601,661]
[null,"San Justo",5830,5864,2004,2044,1977,2016,1849,1804]
[null,"Santa María",3227,3466,1093,1212,1064,1184,1070,1070]
[null,"Sobremonte",166,127,51,57,63,44,52,26]
[null,"Tercero Arriba",2828,2870,906,989,966,952,956,929]
[null,"Totoral",536,585,169,190,199,208,168,187]
[null,"Tulumba",282,324,67,118,107,107,108,99]
[null,"Unión",2841,2819,935,968,939,958,967,893]
[null,"(*) Cabe aclarar que la suma de los alumnos matriculados en el ciclo básico y de los alumnos del ciclo orientado corresponde al total de la matrícula en el nivel secundario."]
[null,"En el departamento Capital están incluidas además de las provinciales, las unidades educativas nacionales, al igual que sus alumnos y personal docente."]

{"sheet":"CSC4.5.B","index":40,"n_rows":33,"n_cols":12,"rows_kept":33,"cut":false,"hidden":true,"merged":[[1,1,1,9],[1,10,1,11],[31,1,31,11],[32,1,32,11],[2,1,3,1],[2,2,2,3],[2,4,2,5],[2,6,2,7],[2,8,2,9],[2,10,2,11]]}
[]
[null,"CUADRO 4.5. B Ciclo orientado. Alumnos por año de estudio y sexo, según departamento"]
[null,"Departamento","Total (*)",null,"4°",null,"5°",null,"6°",null,"7°"]
[null,null,"Mujeres","Varones","Mujeres","Varones","Mujeres","Varones","Mujeres","Varones","Mujeres","Varones"]
[null,"Total Córdoba",73548,70066,26949,26614,23372,21398,21147,18309,2080,3745]
[null,"Calamuchita",1369,1343,503,508,412,398,379,344,75,93]
[null,"Capital",28289,27544,10548,10605,9148,8579,8331,7460,262,900]
[null,"Colón",5603,5247,2025,1976,1789,1600,1626,1349,163,322]
[null,"Cruz del Eje",1431,1220,523,518,453,346,390,301,65,55]
[null,"General Roca ",748,628,258,225,257,195,219,170,14,38]
[null,"General San Martín",2841,2823,1033,1086,907,845,814,738,87,154]
[null,"Ischilín",706,764,261,267,201,231,199,189,45,77]
[null,"Juárez Celman",1429,1415,507,523,436,423,383,332,103,137]
[null,"Marcos Juárez",1794,1914,641,702,566,544,503,504,84,164]
[null,"Minas",123,94,40,44,43,26,33,21,7,3]
[null,"Pocho",78,85,30,39,22,24,19,16,7,6]
[null,"Pte. Roque Sáenz Peña",795,784,295,296,231,226,228,187,41,75]
[null,"Punilla",4193,4134,1545,1598,1340,1293,1211,1015,97,228]
[null,"Río Cuarto",5111,4726,1903,1785,1558,1418,1483,1263,167,260]
[null,"Río Primero",1330,1245,486,452,394,381,361,328,89,84]
[null,"Río Seco",366,319,129,119,130,103,82,81,25,16]
[null,"Río Segundo",2330,2242,827,794,742,703,687,571,74,174]
[null,"San Alberto",873,814,320,292,253,252,263,211,37,59]
[null,"San Javier",1446,1268,555,487,436,375,432,348,23,58]
[null,"San Justo",4510,4158,1611,1536,1442,1284,1311,1062,146,276]
[null,"Santa María",2589,2354,960,889,829,707,674,625,126,133]
[null,"Sobremonte",99,89,37,35,38,26,22,20,2,8]
[null,"Tercero Arriba",2351,2148,807,813,767,675,669,501,108,159]
[null,"Totoral",451,405,163,148,130,117,129,98,29,42]
[null,"Tulumba",261,227,94,86,86,54,47,52,34,35]
[null,"Unión",2432,2076,848,791,762,573,652,523,170,189]
[null,"(*) Cabe aclarar que la suma de los alumnos matriculados en el ciclo básico y de los alumnos del ciclo orientado corresponde al total de la matrícula en el nivel secundario."]
[null,"En el departamento Capital están incluidas además de las provinciales, las unidades educativas nacionales, al igual que sus alumnos y personal docente."]

{"sheet":"CSC4.6","index":41,"n_rows":31,"n_cols":7,"rows_kept":31,"cut":false,"hidden":true,"merged":[[1,1,1,6],[30,22,30,25],[31,1,31,6],[30,1,30,6],[30,7,30,9],[30,10,30,13],[30,14,30,17],[30,18,30,21]]}
[]
[null,"CUADRO 4.6 Total de alumnos, total y porcentaje de alumnosrepetidores y con sobreedad, según departamento"]
[null,"Departamento","Alumnos ","Alumnos repetidores","Porcentaje de repetidores","Alumnos con sobreedad","Porcentaje de sobreedad"]
[null,"Total Córdoba",332713,22484,6.7577762215483022,76637,23.033966211118891]
[null,"Calamuchita",6467,368,5.6904283284366786,1579,24.41626720272151]
[null,"Capital",129446,8883,6.8623209678166956,31716,24.501336464626174]
[null,"Colón",25265,1664,6.5861864239065895,5999,23.744310310706513]
[null,"Cruz del Eje",6259,446,7.125738935932258,1560,24.924109282633008]
[null,"General Roca",3187,304,9.5387511766551629,647,20.301223721368057]
[null,"General San Martín",12984,837,6.4463955637707944,2908,22.396796056685151]
[null,"Ischilín",3545,244,6.8829337094499303,890,25.105782792665725]
[null,"Juárez Celman",6372,358,5.6183301946013815,1348,21.155053358443187]
[null,"Marcos Juárez",8546,571,6.6814884156330452,1689,19.763632108588812]
[null,"Minas",491,54,10.997963340122199,179,36.456211812627295]
[null,"Pocho",403,32,7.9404466501240698,87,21.588089330024815]
[null,"Pte. Roque Sáenz Peña",3549,201,5.66356720202874,603,16.990701606086223]
[null,"Punilla",19111,1265,6.6192245303751767,3977,20.810004709329704]
[null,"Río Cuarto",23253,1477,6.3518685760977078,4986,21.442394529738099]
[null,"Río Primero",5616,319,5.6801994301994299,1000,17.806267806267805]
[null,"Río Seco",1597,81,5.0720100187852228,348,21.790857858484657]
[null,"Río Segundo",10455,584,5.5858440937350551,2024,19.359158297465328]
[null,"San Alberto",3866,318,8.2255561303673055,1139,29.461976202793583]
[null,"San Javier",6386,541,8.4716567491387416,2004,31.381146257438147]
[null,"San Justo",20362,1280,6.2862194283469206,3761,18.470680679697477]
[null,"Santa María",11636,1005,8.6369886558954967,2936,25.232038501203164]
[null,"Sobremonte",481,61,12.681912681912683,168,34.927234927234927]
[null,"Tercero Arriba",10197,702,6.8843777581641659,2170,21.280768853584387]
[null,"Totoral",1977,173,8.7506322711178566,536,27.111785533636823]
[null,"Tulumba",1094,95,8.6837294332723953,295,26.96526508226691]
[null,"Unión",10168,621,6.1073957513768686,2088,20.535011801730921]
[null,"En el departamento Capital están incluidas, además de las provinciales, las unidades educativas nacionales, al igual que sus alumnos y personal docente."]

{"sheet":"CSC4.7 ","index":42,"n_rows":12,"n_cols":11,"rows_kept":12,"cut":false,"hidden":true,"merged":[[1,1,1,10],[12,1,12,10],[13,1,13,10],[2,1,3,1],[2,2,2,4],[2,5,2,7],[2,8,2,10]]}
[]
[null,"CUADRO 4.7 Total de alumnos, total y porcentaje de alumnos repetidores, por sexo, según año de estudio"]
[null,"Año de estudio","Alumnos ",null,null,"Alumnos repetidores",null,null,"Porcentaje de repetidores"]
[null,null,"Total","Mujeres","Varones","Total","Mujeres","Varones","Total","Mujeres","Varones"]
[null,"Total Córdoba",332713,166398,166315,22484,9428,13056,6.7577762215483022,5.6659334847774616,7.8501638457144569]
[null,"1°",64843,31082,33761,5024,1885,3139,7.7479450364727116,6.0646033073804775,9.297710375877493]
[null,"2°",63105,31132,31973,6331,2694,3637,10.032485539973061,8.6534755235770273,11.375222844274857]
[null,"3°",61151,30636,30515,5500,2388,3112,8.994129286520252,7.7947512730121433,10.198263149270851]
[null,"4°",53563,26949,26614,3633,1502,2131,6.782667139629968,5.5734906675572375,8.0070639513038255]
[null,"5°",44770,23372,21398,1574,726,848,3.5157471521107881,3.1062810200239603,3.9629871950649589]
[null,"6°",39456,21147,18309,412,225,187,1.0442011354420113,1.0639807064831892,1.021355617455896]
[null,"7° ",5825,2080,3745,10,8,2,0.17167381974248927,0.38461538461538464,5.3404539385847799E-2]

{"sheet":"CSC4.8","index":43,"n_rows":12,"n_cols":5,"rows_kept":12,"cut":false,"hidden":true,"merged":[[12,1,12,4],[1,1,1,4],[2,1,3,1],[2,2,3,2],[2,3,3,3],[2,4,3,4]]}
[]
[null,"CUADRO 4.8 Total de alumnos, total y porcentaje de alumnos con sobreedad, según año de estudio"]
[null,"Año de estudio","Alumnos","Alumnos con sobreedad","Porcentaje de sobreedad"]
[null,"Total Córdoba",332713,76637,23.033966211118891]
[null,"Total Córdoba",{"$f":"SUM(C6:C12)","v":332713},{"$f":"SUM(D6:D12)","v":76637},{"$f":"D5/C5*100","v":23.033966211118891}]
[null,"1°",64843,13056,20.134787101152014]
[null,"2°",63105,14660,23.231122731954677]
[null,"3°",61151,16480,26.949681934882502]
[null,"4°",53563,14066,26.26066501129511]
[null,"5°",44770,9380,20.951530042439135]
[null,"6°",39456,7939,20.121147607461477]
[null,"7°",5825,1056,18.128755364806867]

{"sheet":"CSC4.9","index":44,"n_rows":18,"n_cols":11,"rows_kept":18,"cut":false,"hidden":true,"merged":[[1,1,1,10],[15,1,17,1],[3,1,5,1],[6,1,8,1],[9,1,11,1],[12,1,14,1]]}
[]
[null,"CUADRO 3.4 Tasa de promoción, de no promoción y de abandono anual, por año de estudio, según ciclo lectivo"]
[null,"Ciclo lectivo","Indicadores","Total","1°","2°","3°","4°","5°","6°","7°"]
[null,2014,"Tasa de promoción",81.024889246878772,81.188870663993683,79.506865025007173,79.792562700224778,81.518833535844465,87.954631379962194,77.013399640834365]
[null,null,"Tasa de no promoción",13.467257349979864,11.300953769515825,14.28594183046096,13.931220021593301,13.14499797488862,8.2545683679899184,21.41732283464567]
[null,null,"Tasa de abandono",5.5078534031413611,7.510175566490493,6.207193144531872,6.2762172781819139,5.3361684892669095,3.7908002520478892,1.5692775245199613]
[null,2015,"Tasa de promoción",81.318024496642195,82.239078480561702,79.110916492320669,80.497059381521524,81.282190023848173,88.016528925619824,76.607304557802593,85.302430751837193]
[null,null,"Tasa de no promoción",13.675622899416062,11.622901420576842,14.852657357401192,13.889032614132216,13.102466983306279,8.325590493422661,21.537743873995005,16.355756547955529]
[null,null,"Tasa de abandono",5.0063526039417443,6.1380200988614604,6.0364261502781433,5.6139080043462508,5.6153429928455481,3.6578805809575039,1.8549515682023983,-1.6581872997927265]
[null,2016,"Tasa de promoción",81.244346414542562,81.801620332656967,79.713731733846188,80.441934519097131,81.492631288983333,88.262888093626074,75.659878833168747,83.379966424174583]
[null,null,"Tasa de no promoción",13.786384307505484,11.293452019491387,14.537257436511815,13.824528069527279,13.79493536391004,8.4050681884128071,22.648055726066882,15.388919977616117]
[null,null,"Tasa de abandono",4.9692692779519456,6.9049276478516521,5.7490108296420068,5.7335374113755915,4.7124333471066251,3.3320437179611182,1.6920654407643652,1.2311135982092893]
[null,2017,"Tasa de promoción",82.202888602187443,83.076877552228197,80.788740332529656,81.1861951427354,82.753139405499923,89.310328549848933,75.614490700663666,84.672757784821925]
[null,null,"Tasa de no promoción",13.213225176745311,10.575841865419896,13.932116354072081,13.504899872177248,12.460260689874424,7.8597054380664648,22.97946014008027,14.637329852694386]
[null,null,"Tasa de abandono",4.5838862210672442,6.347280582351897,5.2791433133982526,5.3089049850873451,4.786599904625656,2.8299660120845922,1.4060491592560531,0.68991236248368448]
[null,2018,"Tasa de promoción",84.1,85.3,83.5,83.5,84.5,90,77.099999999999994,83.3]
[null,null,"Tasa de no promoción",12.2,9.6999999999999993,12.1,12.5,11.5,7.6,21.9,16.399999999999999]
[null,null,"Tasa de abandono",3.7,5,4.4000000000000004,4,4,2.5,1,0.3]

{"sheet":"CSC4.10","index":45,"n_rows":32,"n_cols":11,"rows_kept":32,"cut":false,"hidden":true,"merged":[[1,1,1,10],[31,1,31,10],[2,1,3,1],[2,2,2,4],[2,5,2,7],[2,8,2,10]]}
[]
[null,"CUADRO 4.10 Alumnos egresados del ciclo lectivo 2018, por sector y sexo, según departamento"]
[null,"Departamento","Total general",null,null,"Estatal",null,null,"Privado"]
[null,null,"Total ","Mujeres","Varones","Total ","Mujeres","Varones","Total ","Mujeres","Varones"]
[null,"Total Córdoba",32390,18121,14269,16929,9153,7776,15461,8968,6493]
[null,"Calamuchita",531,301,230,253,140,113,278,161,117]
[null,"Capital",13102,7191,5911,6433,3434,2999,6669,3757,2912]
[null,"Colón",2324,1315,1009,1237,678,559,1087,637,450]
[null,"Cruz del Eje",643,359,284,433,230,203,210,129,81]
[null,"General Roca",311,185,126,253,139,114,58,46,12]
[null,"General San Martín",1321,737,584,500,240,260,821,497,324]
[null,"Ischilín",324,182,142,248,125,123,76,57,19]
[null,"Juárez Celman",565,298,267,270,123,147,295,175,120]
[null,"Marcos Juárez",812,435,377,401,218,183,411,217,194]
[null,"Minas",48,25,23,48,25,23]
[null,"Pocho",26,18,8,26,18,8]
[null,"Pte. Roque Sáenz Peña",290,159,131,186,93,93,104,66,38]
[null,"Punilla",1853,1077,776,835,475,360,1018,602,416]
[null,"Río Cuarto",2267,1257,1010,1035,563,472,1232,694,538]
[null,"Río Primero",536,327,209,297,178,119,239,149,90]
[null,"Río Seco",128,72,56,128,72,56]
[null,"Río Segundo",1045,604,441,544,287,257,501,317,184]
[null,"San Alberto",376,217,159,272,166,106,104,51,53]
[null,"San Javier",654,394,260,479,286,193,175,108,67]
[null,"San Justo",2026,1133,893,1170,605,565,856,528,328]
[null,"Santa María",929,539,390,548,317,231,381,222,159]
[null,"Sobremonte",54,31,23,54,31,23]
[null,"Tercero Arriba",1017,570,447,494,272,222,523,298,225]
[null,"Totoral",216,111,105,191,94,97,25,17,8]
[null,"Tulumba",102,61,41,102,61,41]
[null,"Unión",890,523,367,492,283,209,398,240,158]
[null,"En el departamento Capital están incluidas además de las provinciales, las unidades educativas nacionales, al igual que sus alumnos y personal docente."]

{"sheet":"CSC4.11 A sec orient","index":46,"n_rows":17,"n_cols":12,"rows_kept":17,"cut":false,"hidden":true,"merged":[[1,1,1,11],[6,1,15,1],[16,1,16,11],[4,1,4,2],[2,1,3,1],[2,2,3,2],[2,3,2,5],[2,6,2,8],[2,9,2,11]]}
[]
[null,"CUADRO 4.11 A Secundaria orientada. Alumnos por sector y ámbito, según ciclo y orientación"]
[null,"Ciclo","Orientación","Total general",null,null,"Estatal",null,null,"Privado"]
[null,null,null,"Total","Urbano","Rural","Total","Urbano","Rural","Total","Urbano","Rural"]
[null,"Total Córdoba",null,250581,232800,17781,131270,116701,14569,119311,116099,3212]
[null,"Ciclo Básico",null,138631,128604,10027,75007,66736,8271,63624,61868,1756]
[null,"Ciclo Orientado","Artística",4088,3902,186,2867,2681,186,1221,1221]
[null,null,"Humanidades y Ciencias Sociales",24821,24654,167,11707,11567,140,13114,13087,27]
[null,null,"Lenguas",1698,1698,null,522,522,null,1176,1176]
[null,null,"Ciencias Naturales",19880,19213,667,9499,9346,153,10381,9867,514]
[null,null,"Economía y Administración (*)",38498,36707,1791,17069,15625,1444,21429,21082,347]
[null,null,"Informática",4104,3704,400,2662,2262,400,1442,1442]
[null,null,"Comunicación",7104,6947,157,3617,3553,64,3487,3394,93]
[null,null,"Agro y Ambiente",5175,1669,3506,3457,426,3031,1718,1243,475]
[null,null,"Turismo",4522,3642,880,3539,2659,880,983,983]
[null,null,"Educación Física",2060,2060,null,1324,1324,null,736,736]
[null,"(*) Se incluyen 314 alumnos del sector estatal y del ámbito urbano que se encuentran matriculados en la orientación Economía y Gestión de las Organizaciones, dictada en establecimientos nacionales."]

{"sheet":"CSC4.11 B sec tecnica","index":47,"n_rows":61,"n_cols":12,"rows_kept":61,"cut":false,"hidden":true,"merged":[[4,1,4,2],[1,1,1,11],[2,1,3,1],[2,2,3,2],[2,3,2,5],[2,6,2,8],[2,9,2,11],[27,8,35,11],[5,1,5,2],[6,1,24,1],[25,1,25,11],[26,1,26,4]]}
[]
[null,"CUADRO 4.11 B Secundaria técnica. Alumnos por sector y ámbito, según ciclo y título"]
[null,"Ciclo","Título","Total general",null,null,"Estatal",null,null,"Privado"]
[null,null,null,"Total","Urbano","Rural","Total","Urbano","Rural","Total","Urbano","Rural"]
[null,"Total Córdoba",null,82059,73588,8471,68677,61700,6977,13382,11888,1494]
[null,"Ciclo Básico Técnico (*)",null,49867,45028,4839,42115,38113,4002,7752,6915,837]
[null,"Ciclo Orientado ","Maestro Mayor de Obras",3443,3313,130,2782,2652,130,661,661]
[null,null,"Técnico Aviónico",146,146,null,146,146]
[null,null,"Técnico Electricista",1077,948,129,1004,875,129,73,73]
[null,null,"Técnico en Aeronáutica",268,268,null,268,268]
[null,null,"Técnico en Automotores",1334,1334,null,1265,1265,null,69,69]
[null,null,"Técnico en Electrónica",2491,2491,null,2039,2039,null,452,452]
[null,null,"Técnico en Equipos e Instalaciones Electromecánicas",4591,4591,null,3961,3961,null,630,630]
[null,null,"Técnico en Industria de los Alimentos",3692,3328,364,3166,2915,251,526,413,113]
[null,null,"Técnico en Industrialización de la Madera y el Mueble",657,657,null,580,580,null,77,77]
[null,null,"Tecnico en Industrias de Procesos",1060,1060,null,898,898,null,162,162]
[null,null,"Técnico en Informática Profesional y Personal",1622,1522,100,1362,1262,100,260,260]
[null,null,"Técnico en Mantenimiento de Inmuebles en Zonas Turísticas",230,230,null,230,230]
[null,null,"Técnico en Mecanización Agropecuaria",455,357,98,455,357,98]
[null,null,"Técnico en Óptica Oftálmica e Instrumental",64,64,null,64,64]
[null,null,"Técnico en Producción Agropecuaria",6962,4426,2536,5473,3481,1992,1489,945,544]
[null,null,"Técnico en Programación",862,862,null,519,519,null,343,343]
[null,null,"Técnico Mecánico",1905,1819,86,1387,1301,86,518,518]
[null,null,"Técnico Minero",343,154,189,343,154,189]
[null,null,"Técnico Químico",990,990,null,620,620,null,370,370]
[null,"(*) Existen escuelas que ofrecen tanto secundaria orientada como técnica. En algunos casos, los estudiantes que luego proseguirán sus estudios en la secundaria orientada cursan el ciclo básico técnico. Por esta razón la matrícula de este ciclo está sobrerregistrada, sin que haya posibilidad de discriminarla."]
[]
[]
[]
[]
[]
[]
[null,null,null,null,null," "]
[]
[]
[]
[]
[]
[]
[]
[]
[]
[]
[]
[]
[]
[]
[]
[]
[]
[]
[]
[]
[]
[]
[]
[]
[]
[]
[]
[null,null,{"$f":"3/190","v":1.5789473684210527E-2}]

{"sheet":"CSC4.12 A sec orient","index":48,"n_rows":17,"n_cols":12,"rows_kept":17,"cut":false,"hidden":true,"merged":[[1,1,1,11],[2,1,3,1],[2,2,3,2],[2,3,2,5],[2,6,2,8],[2,9,2,11],[19,8,27,11],[6,1,15,1],[16,1,16,11],[17,1,17,11],[4,1,4,2]]}
[]
[null,"CUADRO 4.12 A Secundaria orientada. Alumnos por sector y sexo, según ciclo y orientación"]
[null,"Ciclo","Orientación","Total general",null,null,"Estatal",null,null,"Privado"]
[null,null,null,"Total","Mujeres","Varones","Total","Mujeres","Varones","Total","Mujeres","Varones"]
[null,"Total Córdoba",null,250581,136480,114101,131270,70001,61269,119311,66479,52832]
[null,"Ciclo Básico",null,138631,74149,64482,75007,38941,36066,63624,35208,28416]
[null,"Ciclo Orientado","Artística",4088,2421,1667,2867,1659,1208,1221,762,459]
[null,null,"Humanidades y Ciencias Sociales",24821,14294,10527,11707,6478,5229,13114,7816,5298]
[null,null,"Lenguas",1698,929,769,522,321,201,1176,608,568]
[null,null,"Ciencias Naturales",19880,11245,8635,9499,5247,4252,10381,5998,4383]
[null,null,"Economía y Administración (*)",38498,21003,17495,17069,9482,7587,21429,11521,9908]
[null,null,"Informática",4104,2008,2096,2662,1379,1283,1442,629,813]
[null,null,"Comunicación",7104,4145,2959,3617,2060,1557,3487,2085,1402]
[null,null,"Agro y Ambiente",5175,2695,2480,3457,1780,1677,1718,915,803]
[null,null,"Turismo",4522,2547,1975,3539,1966,1573,983,581,402]
[null,null,"Educación Física",2060,1044,1016,1324,688,636,736,356,380]
[null,"(*) Se incluyen 314 alumnos del sector estatal y del ámbito urbano que se encuentran matriculados en la orientación Economía y Gestión de las Organizaciones, dictada en establecimientos nacionales."]

{"sheet":"CSC4.12 B sec técnica","index":49,"n_rows":25,"n_cols":12,"rows_kept":25,"cut":false,"hidden":true,"merged":[[1,1,1,11],[2,1,3,1],[2,2,3,2],[2,3,2,5],[2,6,2,8],[2,9,2,11],[5,1,5,2],[6,1,24,1],[25,1,25,11],[27,8,35,11],[4,1,4,2]]}
[]
[null,"CUADRO 4.12 B Secundaria técnica. Alumnos por sector y sexo, según ciclo y título"]
[null,"Ciclo","Título","Total general",null,null,"Estatal",null,null,"Privado"]
[null,null,null,"Total","Mujeres","Varones","Total","Mujeres","Varones","Total","Mujeres","Varones"]
[null,"Total Córdoba",null,82059,29882,52177,68677,25217,43460,13382,4665,8717]
[null,"Ciclo Básico Técnico",null,49867,18388,31479,42115,15521,26594,7752,2867,4885]
[null,"Título","Maestro Mayor de Obras",3443,1279,2164,2782,1071,1711,661,208,453]
[null,null,"Técnico Aviónico",146,41,105,146,41,105,null,0]
[null,null,"Técnico Electricista",1077,363,714,1004,355,649,73,8,65]
[null,null,"Técnico en Aeronáutica",268,53,215,268,53,215,null,0]
[null,null,"Técnico en Automotores",1334,81,1253,1265,71,1194,69,10,59]
[null,null,"Técnico en Electrónica",2491,347,2144,2039,315,1724,452,32,420]
[null,null,"Técnico en Equipos e Instalaciones Electromecánicas",4591,1020,3571,3961,920,3041,630,100,530]
[null,null,"Técnico en Industria de los Alimentos",3692,2156,1536,3166,1823,1343,526,333,193]
[null,null,"Técnico en Industrialización de la Madera y el Mueble",657,202,455,580,179,401,77,23,54]
[null,null,"Tecnico en Industrias de Procesos",1060,505,555,898,444,454,162,61,101]
[null,null,"Técnico en Informática Profesional y Personal",1622,658,964,1362,589,773,260,69,191]
[null,null,"Técnico en Mantenimiento de Inmuebles en Zonas Turísticas",230,76,154,230,76,154,null,0]
[null,null,"Técnico en Mecanización Agropecuaria",455,160,295,455,160,295,null,0]
[null,null,"Técnico en Óptica Oftálmica e Instrumental",64,42,22,64,42,22,null,0]
[null,null,"Técnico en Producción Agropecuaria",6962,3210,3752,5473,2615,2858,1489,595,894]
[null,null,"Técnico en Programación",862,262,600,519,193,326,343,69,274]
[null,null,"Técnico Mecánico",1905,278,1627,1387,218,1169,518,60,458]
[null,null,"Técnico Minero",343,140,203,343,140,203,null,0]
[null,null,"Técnico Químico",990,621,369,620,391,229,370,230,140]

{"sheet":"CSC4.13 A","index":50,"n_rows":10,"n_cols":7,"rows_kept":10,"cut":false,"hidden":true,"merged":[[10,1,10,6],[11,1,11,6],[1,1,1,6]]}
[]
[null,"CUADRO 4.13 A Secundaria orientada. Total de alumnos, total y porcentaje de alumnos repetidores y con sobreedad, según año de estudio"]
[null,"Año de estudio","Total de alumnos ","Total de alumnos repetidores","Porcentaje de repetidores","Total de alumnos con sobreedad","Porcentaje de sobreedad"]
[null,"Total Córdoba",250581,15996,6.3835645958791769,56383,22.500907890063495]
[null,"1°",47394,3361,7.0916149723593707,9252,19.521458412457275]
[null,"2°",46078,4427,9.6076218585876116,10124,21.971439732627285]
[null,"3°",45687,3939,8.6217085823100668,12060,26.397005712784814]
[null,"4°",42004,2733,6.5065231882677832,10808,25.730882773069229]
[null,"5°",36382,1258,3.4577538343136718,7510,20.642075751745367]
[null,"6°",33036,278,0.84150623562174598,6629,20.065988618476812]

{"sheet":"CSC4.13 B","index":51,"n_rows":11,"n_cols":7,"rows_kept":11,"cut":false,"hidden":true,"merged":[[11,1,11,6],[12,1,12,6],[1,1,1,6]]}
[]
[null,"CUADRO 4.13. B Secundaria técnica. Total de alumnos, total y porcentaje de alumnos repetidores y con sobreedad, según año de estudio"]
[null,"Año de estudio","Total de alumnos ","Total de alumnos repetidores","Porcentaje de repetidores","Total de alumnos con sobreedad","Porcentaje de sobreedad"]
[null,"Total Córdoba",82059,6470,7.8845708575537117,20207,24.624964964233051]
[null,"1°",17429,1655,9.4956681393080498,3796,21.779792300189342]
[null,"2°",17000,1900,11.176470588235295,4514,26.55294117647059]
[null,"3°",15438,1555,10.072548257546314,4403,28.520533747894806]
[null,"4°",11559,900,7.7861406696080975,3258,28.185829223981312]
[null,"5°",8388,316,3.7672865999046254,1870,22.293752980448257]
[null,"6°",6420,135,2.1028037383177569,1310,20.404984423676012]
[null,"7°",5825,9,0.15450643776824036,1056,18.128755364806867]

{"sheet":"CSC 4.14 A egre orientada","index":52,"n_rows":17,"n_cols":11,"rows_kept":17,"cut":false,"hidden":true,"merged":[[16,1,16,10],[19,7,27,10],[5,11,14,11],[15,1,15,10],[1,1,1,10],[2,1,3,1],[2,2,2,4],[2,5,2,7],[2,8,2,10]]}
[]
[null,"CUADRO 4.14 A Secundaria orientada. Alumnos egresados del ciclo lectivo 2018 por sector y sexo, según orientación"]
[null,"Orientación","Total general",null,null,"Estatal",null,null,"Privado"]
[null,null,"Total","Mujeres","Varones","Total","Mujeres","Varones","Total","Mujeres","Varones"]
[null,"Total Córdoba",27226,16272,10954,12783,7628,5155,14443,8644,5799]
[null,"Artística",905,582,323,563,360,203,342,222,120]
[null,"Humanidades y Ciencias Sociales",6662,4053,2609,3122,1813,1309,3540,2240,1300]
[null,"Lenguas",459,273,186,122,83,39,337,190,147]
[null,"Ciencias Naturales",5167,3122,2045,2284,1394,890,2883,1728,1155]
[null,"Economía y Administración (*)",9172,5411,3761,3709,2233,1476,5463,3178,2285]
[null,"Informática",744,355,389,471,233,238,273,122,151]
[null,"Comunicación",1754,1073,681,872,536,336,882,537,345]
[null,"Agro y Ambiente",1083,631,452,757,444,313,326,187,139]
[null,"Turismo",860,539,321,621,374,247,239,165,74]
[null,"Educación Física",420,233,187,262,158,104,158,75,83]
[null,"(*) Se incluyen 276 alumnos egresados de la orientación Economía y Gestión de las Organizaciones"]
[null,"No se incluyen en este cuadro 66 egresados de planes con más de 20 años de antigüedad. Por lo tanto, la suma de este cuadro y el cuadro 4.14 B no coincide con el 4.10"]

{"sheet":"CSC 4.14 B egre técnica","index":53,"n_rows":26,"n_cols":11,"rows_kept":26,"cut":false,"hidden":true,"merged":[[1,1,1,10],[26,7,28,10],[2,1,3,1],[2,2,2,4],[2,5,2,7],[2,8,2,10],[25,1,25,10]]}
[]
[null,"CUADRO 4.14 B Secundaria técnica. Alumnos egresados del ciclo lectivo 2018 por sector y sexo, según título"]
[null,"Orientación/Título","Total general",null,null,"Estatal",null,null,"Privado"]
[null,null,"Total","Mujeres","Varones","Total","Mujeres","Varones","Total","Mujeres","Varones"]
[null,"Total Córdoba",5097,1809,3288,4103,1499,2604,994,310,684]
[null,"Orientación Producción de Bienes y Servicios (*)",231,69,162,197,56,141,34,13,21]
[null,"Maestro Mayor de Obras",474,168,306,358,143,215,116,25,91]
[null,"Técnico Aviónico",35,4,31,35,4,31]
[null,"Técnico Electricista",121,30,91,109,27,82,12,3,9]
[null,"Técnico en Aeronáutica",54,6,48,54,6,48]
[null,"Técnico en Automotores",206,9,197,200,8,192,6,1,5]
[null,"Técnico en Electrónica",383,51,332,315,47,268,68,4,64]
[null,"Técnico en Equipos e Instalaciones Electromecánicas",722,128,594,608,112,496,114,16,98]
[null,"Técnico en Industria de los Alimentos",548,354,194,439,278,161,109,76,33]
[null,"Técnico en Industrialización de la Madera y el Mueble",111,38,73,85,30,55,26,8,18]
[null,"Tecnico en Industrias de Procesos",145,85,60,145,85,60]
[null,"Técnico en Informática Profesional y Personal",179,98,81,156,91,65,23,7,16]
[null,"Técnico en Mantenimiento de Inmuebles en Zonas Turísticas",20,7,13,20,7,13]
[null,"Técnico en Mecanización Agropecuaria",56,15,41,56,15,41]
[null,"Técnico en Óptica Oftálmica e Instrumental",4,3,1,4,3,1]
[null,"Técnico en Producción Agropecuaria",1105,519,586,869,433,436,236,86,150]
[null,"Técnico en Programación",102,31,71,50,21,29,52,10,42]
[null,"Técnico Mecánico",371,46,325,243,29,214,128,17,111]
[null,"Técnico Minero",49,30,19,49,30,19]
[null,"Técnico Químico",182,118,64,112,74,38,70,44,26]
[null,"(*) Dentro de esta categoría se han incluido egresados de planes de estudio anteriores a los vigentes que corresponden, por un lado, a los títulos de “Bachiller y técnico de nivel medio” que brindaban las escuelas con orientación en Bienes y Servicios. Por el otro, también están contabilizados los egresados de las instituciones educativas que a partir de la Ley de Educación Técnica y Formación Profesional optaron por convertirse en escuelas técnicas y comenzaron a otorgar el título de “Técnico de nivel medio” en la especialización correspondiente (en lo que fue un plan de estudios de transición a la escuela técnica de siete años)."]

{"sheet":"CSC 4.15","index":54,"n_rows":7,"n_cols":9,"rows_kept":7,"cut":false,"hidden":true,"merged":[[1,1,1,8],[2,1,3,1],[2,2,3,2],[2,3,2,5],[2,6,2,8]]}
[]
[null,"CUADRO 4.15 Alumnos en el Programa de Inclusión y Terminalidad Educativa (PIT) por sector y sexo, según ámbito"]
[null,"Ámbito","Total General","Estatal",null,null,"Privado"]
[null,null,null,"Total","Mujeres","Varones","Total","Mujeres","Varones"]
[null,"Total Córdoba",4793,4409,1868,2541,384,188,196]
[null,"Urbano",4644,4260,1786,2474,384,188,196]
[null,"Rural",149,149,82,67]

{"sheet":"CSC 4.16","index":55,"n_rows":9,"n_cols":5,"rows_kept":9,"cut":false,"hidden":true,"merged":[[1,1,1,4]]}
[]
[null,"CUADRO 4. 16 Alumnos en el Programa de Inclusión y Terminalidad Educativa (PIT) por sexo, según ciclo lectivo "]
[null,"Ciclo lectivo","Total  ","Mujeres","Varones"]
[null,2014,4062,1763,2299]
[null,2015,4511,2072,2439]
[null,2016,4547,2022,2525]
[null,2017,4826,2095,2731]
[null,2018,4866,2133,2733]
[null,2019,4793,2056,2737]

{"sheet":"CSC 4.17","index":56,"n_rows":23,"n_cols":11,"rows_kept":23,"cut":false,"hidden":true,"merged":[[22,1,22,10],[1,1,2,10],[3,1,4,1],[3,2,3,4],[3,5,3,7],[3,8,3,10]]}
[]
[null,"CUADRO 4. 17 Alumnos egresados del ciclo lectivo 2018 del Programa de Inclusión  y Terminalidad Educativa (PIT) por sector y sexo, según departamento"]
[]
[null,"Departamento","Total general",null,null,"Estatal",null,null,"Privado"]
[null,null,"Total","Mujeres","Varones","Total","Mujeres","Varones","Total","Mujeres","Varones"]
[null,"Total Córdoba",579,271,308,550,252,298,29,19,10]
[null,"Capital",354,169,185,338,158,180,16,11,5]
[null,"Colón",34,15,19,34,15,19]
[null,"Cruz del Eje",29,5,24,29,5,24]
[null,"General San Martín",6,4,2,6,4,2]
[null,"Ischilín",12,4,8,12,4,8]
[null,"Marcos Juárez",8,4,4,null,null,null,8,4,4]
[null,"Punilla",20,12,8,20,12,8]
[null,"Río Cuarto",22,10,12,22,10,12]
[null,"Río Primero",11,6,5,11,6,5]
[null,"Río Seco",6,3,3,6,3,3]
[null,"Río Segundo",4,3,1,4,3,1]
[null,"San Alberto",22,8,14,22,8,14]
[null,"San Javier",19,10,9,17,8,9,2,2,0]
[null,"San Justo",6,3,3,3,1,2,3,2,1]
[null,"Santa María",9,6,3,9,6,3]
[null,"Tercero Arriba",17,9,8,17,9,8]
[null,"Los departamentos Calamuchita, General Roca, Juárez Celman, Minas, Pocho, Pte. Roque Saénz Peña, Sobremonte, Totoral, Tulumba y Unión no cuentan con sedes del Programa de Inclusión y Terminalidad Educativa (PIT)."]

{"sheet":"CSC 4.18","index":57,"n_rows":34,"n_cols":13,"rows_kept":34,"cut":false,"hidden":true,"merged":[[3,11,3,12],[32,1,32,11],[33,1,33,12],[1,1,1,12],[2,1,4,1],[2,2,4,2],[2,3,2,7],[2,8,2,12],[3,3,4,3],[3,4,3,5],[3,6,3,7],[3,8,4,8],[3,9,3,10]]}
[]
[null,"CUADRO 4.18 Secciones por sector, ámbito y tipo, según departamento"]
[null,"Departamento","Total general","Estatal",null,null,null,null,"Privado "]
[null,null,null,"Total","Urbano",null,"Rural",null,"Total","Urbano",null,"Rural"]
[null,null,null,null,"Indep.","Múltiple (*)","Indep.","Múltiple",null,"Indep.","Múltiple","Indep.","Múltiple"]
[null,"Total Córdoba",12799,8075,6774,176,1007,118,4724,4255,234,234,1]
[null,"Calamuchita",267,160,129,null,29,2,107,80,15,12]
[null,"Capital",4536,2767,2669,98,null,null,1769,1755,14]
[null,"Colón",877,607,493,14,100,null,270,270]
[null,"Cruz del Eje",264,199,133,4,61,1,65,45,10,10]
[null,"General Roca  ",160,114,103,null,6,5,46,16,12,18]
[null,"General San Martín",510,247,211,4,29,3,263,209,27,27]
[null,"Ischilín",129,102,78,4,16,4,27,27]
[null,"Juárez Celman",304,145,124,null,21,null,159,97,32,30]
[null,"Marcos Juárez",423,222,221,null,null,1,201,165,19,17]
[null,"Minas",40,40,null,null,34,6]
[null,"Pocho",28,28,null,null,26,2]
[null,"Pte. Roque Sáenz Peña",155,125,86,2,35,2,30,30]
[null,"Punilla",635,375,327,7,40,1,260,259,null,null,1]
[null,"Río Cuarto",947,566,479,9,71,7,381,361,7,13]
[null,"Río Primero",231,166,100,null,47,19,65,65]
[null,"Río Seco",69,69,43,null,24,2]
[null,"Río Segundo",460,289,227,3,51,8,171,147,12,12]
[null,"San Alberto",157,123,59,4,55,5,34,34]
[null,"San Javier",251,185,123,5,57,null,66,53,7,6]
[null,"San Justo",846,548,415,2,107,24,298,212,41,45]
[null,"Santa María",432,321,231,16,67,7,111,111]
[null,"Sobremonte",21,21,15,null,3,3]
[null,"Tercero Arriba",433,245,214,4,22,5,188,168,7,13]
[null,"Totoral",91,79,49,null,26,4,12,null,6,6]
[null,"Tulumba",60,60,23,null,35,2]
[null,"Unión",473,272,222,null,45,5,201,151,25,25]
[null,"Indep.: independiente"]
[null,"En el departamento Capital están incluidas además de las provinciales, las unidades educativas nacionales, al igual que sus alumnos y personal docente."]

{"sheet":"CSC 4.19","index":58,"n_rows":10,"n_cols":6,"rows_kept":10,"cut":false,"hidden":true,"merged":[[3,1,3,2],[4,1,6,1],[7,1,8,1],[9,1,9,5],[1,1,1,5]]}
[]
[null,"CUADRO 4.19 Personal docente en actividad,  por lugar de origen y forma de designación, según sector"]
[null,"Lugar de origen del personal","Forma de designación","Total (*)","Estatal","Privado"]
[null,"Total Córdoba",null,59919,40328,19591]
[null,"Personal designado en la planta del establecimiento","En actividad, designados sólo por cargo",8660,5963,2697]
[null,null,"En actividad, designados sólo por horas cátedra",47188,31720,15468]
[null,null,"En actividad, designados por cargo y horas cátedra",3526,2194,1332]
[null,"Personal que proviene de otra planta","Docentes frente a alumnos afectados a este establecimiento que no pertenecen a esta planta funcional",140,68,72]
[null,null,"Docentes en otras funciones afectados a este establecimiento que no pertenecen a esta planta funcional",405,383,22]
[null,"(*)   El personal docente en actividad hace referencia a todas las personas con designación docente que se desempeñan en las unidades educativas del nivel. Por esta razón, se cuentan tantas veces como ofertas en las que trabajan."]

{"sheet":"CSC 4.20","index":59,"n_rows":32,"n_cols":5,"rows_kept":32,"cut":false,"hidden":true,"merged":[[30,1,30,4],[31,1,31,4],[1,1,1,4]]}
[]
[null,"CUADRO 4.20 Personal docente en actividad, por sexo, según departamento"]
[null,"Departamento","Total","Mujeres","Varones"]
[null,"Total Córdoba",59919,42412,17507]
[null,"Calamuchita",1094,751,343]
[null,"Capital",22055,15288,6767]
[null,"Colón",4078,2834,1244]
[null,"Cruz del Eje",1321,937,384]
[null,"General Roca",673,469,204]
[null,"General San Martín",2176,1606,570]
[null,"Ischilín",535,353,182]
[null,"Juárez Celman",1116,799,317]
[null,"Marcos Juárez",1777,1288,489]
[null,"Minas",197,113,84]
[null,"Pocho",134,90,44]
[null,"Pte. Roque Sáenz Peña",713,523,190]
[null,"Punilla",3086,2159,927]
[null,"Río Cuarto",4336,3186,1150]
[null,"Río Primero",1070,774,296]
[null,"Río Seco",275,191,84]
[null,"Río Segundo",2180,1592,588]
[null,"San Alberto",941,674,267]
[null,"San Javier",1269,926,343]
[null,"San Justo",3802,2862,940]
[null,"Santa María",2070,1386,684]
[null,"Sobremonte",106,59,47]
[null,"Tercero Arriba",2033,1525,508]
[null,"Totoral",484,315,169]
[null,"Tulumba",290,173,117]
[null,"Unión",2108,1539,569]
[null,"(*) El personal docente en actividad hace referencia a todas las personas con designación docente que se desempeñan en las unidades educativas del nivel. Por esta razón, se cuentan tantas veces como ofertas en las que trabajan."]
[null,"En el departamento Capital están incluidas además de las provinciales, las unidades educativas nacionales, al igual que sus alumnos y personal docente."]

{"sheet":"CSC 4.21","index":60,"n_rows":32,"n_cols":4,"rows_kept":32,"cut":false,"hidden":true,"merged":[[1,1,1,3],[30,1,30,3],[31,1,31,3]]}
[]
[null,"CUADRO 4.21 Personal docente en actividad, por lugar de origen de la designación, según departamento"]
[null,"Departamento","Personal designado en la planta del establecimiento","Personal que proviene de otra planta"]
[null,"Total Córdoba (*)",59374,545]
[null,"Calamuchita",1083,11]
[null,"Capital",21848,207]
[null,"Colón",4038,40]
[null,"Cruz del Eje",1306,15]
[null,"General Roca",672,1]
[null,"General San Martín",2152,24]
[null,"Ischilín",526,9]
[null,"Juárez Celman",1115,1]
[null,"Marcos Juárez",1764,13]
[null,"Minas",194,3]
[null,"Pocho",134,0]
[null,"Pte. Roque Sáenz Peña",713,0]
[null,"Punilla",3046,40]
[null,"Río Cuarto",4296,40]
[null,"Río Primero",1066,4]
[null,"Río Seco",270,5]
[null,"Río Segundo",2165,15]
[null,"San Alberto",928,13]
[null,"San Javier",1260,9]
[null,"San Justo",3765,37]
[null,"Santa María",2044,26]
[null,"Sobremonte",106,0]
[null,"Tercero Arriba",2024,9]
[null,"Totoral",474,10]
[null,"Tulumba",289,1]
[null,"Unión",2096,12]
[null,"(*) El personal docente en actividad hace referencia a todas las personas con designación docente que se desempeñan en las unidades educativas del nivel. Por esta razón, se cuentan tantas veces como ofertas en las que trabajan."]
[null,"En el departamento Capital están incluidas además de las provinciales, las unidades educativas nacionales, al igual que sus alumnos y personal docente."]

{"sheet":"Cuadro 4.22","index":61,"n_rows":34,"n_cols":10,"rows_kept":34,"cut":false,"hidden":true,"merged":[[1,1,1,9],[32,1,32,9],[33,1,33,9],[2,1,4,1],[2,2,2,5],[2,6,2,9],[3,2,3,3],[3,4,3,5],[3,6,3,7],[3,8,3,9]]}
[]
[null,"CUADRO 4.22 Personal docente en actividad, por sector, ámbito y lugar de origen de la designación, según departamento"]
[null,"Departamento","Estatal",null,null,null,"Privado"]
[null,null,"Urbano",null,"Rural",null,"Urbano",null,"Rural"]
[null,null,"Personal designado en la planta del establecimiento","Personal que proviene de otra planta","Personal designado en la planta del establecimiento","Personal que proviene de otra planta","Personal designado en la planta del establecimiento","Personal que proviene de otra planta","Personal designado en la planta del establecimiento","Personal que proviene de otra planta"]
[null,"Total Córdoba (*)",34003,364,5874,87,18448,93,1049,1]
[null,"Calamuchita",596,7,155,4,287,null,45]
[null,"Capital",14053,115,null,null,7795,92]
[null,"Colón",2355,37,499,3,1184]
[null,"Cruz del Eje",685,9,329,6,236,null,56]
[null,"General Roca",468,1,54,null,76,null,74]
[null,"General San Martín",986,21,151,2,904,null,111,1]
[null,"Ischilín",317,8,96,1,113]
[null,"Juárez Celman",555,1,97,null,346,null,117]
[null,"Marcos Juárez",1021,13,10,null,659,null,74]
[null,"Minas",null,null,194,3]
[null,"Pocho",null,null,134]
[null,"Pte. Roque Sáenz Peña",407,null,172,null,134]
[null,"Punilla",1656,34,196,6,1181,null,13]
[null,"Río Cuarto",2351,23,379,17,1492,null,74]
[null,"Río Primero",438,3,354,1,274]
[null,"Río Seco",138,3,132,2]
[null,"Río Segundo",1132,10,374,5,613,null,46]
[null,"San Alberto",399,7,353,6,176]
[null,"San Javier",676,7,286,2,266,null,32]
[null,"San Justo",1983,30,694,7,875,null,213]
[null,"Santa María",1150,15,400,10,494,1]
[null,"Sobremonte",66,null,40]
[null,"Tercero Arriba",1099,4,159,5,711,null,55]
[null,"Totoral",274,5,169,5,null,null,31]
[null,"Tulumba",100,1,189]
[null,"Unión",1098,10,258,2,632,null,108]
[null,"(*) El personal docente en actividad hace referencia a todas las personas con designación docente que se desempeñan en las unidades educativas del nivel. Por esta razón, se cuentan tantas veces como ofertas en las que trabajan."]
[null,"En el departamento Capital están incluidas además de las provinciales, las unidades educativas nacionales, al igual que sus alumnos y personal docente."]

{"sheet":"S C5.1","index":62,"n_rows":10,"n_cols":6,"rows_kept":10,"cut":false,"hidden":true,"merged":[[2,1,2,5],[11,1,11,5],[3,2,4,2],[3,3,3,4],[8,1,8,5],[9,1,9,5],[10,1,10,5],[3,1,4,1]]}
[]
[]
[null,"CUADRO 5.1  Unidades educativas, alumnos y personal docente en actividad, por sector y dependencia"]
[null,null,"Total ","Estatal",null,"Privado"]
[null,null,null,"Provincial","Nacional (**)","Provincial"]
[null,"Unidades educativas",213,80,3,130]
[null,"Alumnos",78984,44114,2040,32830]
[null,"Personal docente (*)",11657,6261,201,5195]
[null,"(*) El personal docente en actividad hace referencia a todas las personas con designación docente que se desempeñan en las unidades educativas del nivel. Por esta razón, se cuentan tantas veces como ofertas en las que trabajan."]
[null,"(**) Las unidades educativas de nivel superior nacionales son los dos colegios universitarios de la Universidad Nacional de Córdoba (UNC) y uno que depende del Ministerio de Defensa de la Nación."]

{"sheet":"S C5.2","index":63,"n_rows":35,"n_cols":14,"rows_kept":35,"cut":false,"hidden":true,"merged":[[33,1,33,13],[34,1,34,13],[36,1,36,4],[2,1,2,13],[3,1,4,1],[3,2,3,5],[3,6,3,9],[3,10,3,13],[32,1,32,12]]}
[]
[]
[null,"CUADRO 5.2 Bases, anexos, alumnos y personal docente en actividad, por sector, según departamento"]
[null,"Departamento ","Total ",null,null,null,"Estatal",null,null,null,"Privado"]
[null,null,"Bases","Anexos","Alumnos","Personal docente (*)","Bases","Anexos","Alumnos","Personal docente","Bases","Anexos","Alumnos","Personal docente"]
[null,"Total Córdoba",213,69,78984,11657,83,60,46154,6462,130,9,32830,5195]
[null,"Calamuchita",3,1,399,104,2,1,300,75,1,null,99,29]
[null,"Capital",84,7,46815,5244,25,7,26411,2854,59,null,20404,2390]
[null,"Colón",8,6,2164,352,1,5,1459,167,7,1,705,185]
[null,"Cruz del Eje",7,3,1857,313,4,2,1258,194,3,1,599,119]
[null,"General Roca",2,3,465,86,1,3,256,65,1,null,209,21]
[null,"General San Martín",12,4,4726,828,3,3,1825,245,9,1,2901,583]
[null,"Ischilín",2,2,932,146,2,1,855,134,null,1,77,12]
[null,"Juárez Celman",5,1,423,146,3,1,198,91,2,null,225,55]
[null,"Marcos Juárez",9,8,1521,502,5,7,1070,325,4,1,451,177]
[null,"Minas",null,1,6,9,null,1,6,9]
[null,"Pocho"]
[null,"Pte. Roque Sáenz Peña",4,1,640,179,2,1,469,138,2,null,171,41]
[null,"Punilla",10,3,2531,454,5,2,1712,308,5,1,819,146]
[null,"Río Cuarto",12,5,3785,544,5,4,2411,288,7,1,1374,256]
[null,"Río Primero",1,4,435,90,null,4,273,46,1,null,162,44]
[null,"Río Seco",null,2,68,10,null,2,68,10]
[null,"Río Segundo",4,3,808,142,1,3,464,68,3,null,344,74]
[null,"San Alberto",2,null,464,113,2,null,464,113]
[null,"San Javier",5,2,1909,313,3,2,1410,216,2,null,499,97]
[null,"San Justo",14,9,4008,912,6,8,2556,544,8,1,1452,368]
[null,"Santa María",3,null,566,99,3,null,566,99]
[null,"Sobremonte",null,1,44,7,null,1,44,7]
[null,"Tercero Arriba",9,1,1651,342,3,null,609,101,6,1,1042,241]
[null,"Totoral",1,null,348,43,1,null,348,43]
[null,"Tulumba",null,1,17,7,null,1,17,7]
[null,"Unión",16,1,2402,672,6,1,1105,315,10,null,1297,357]
[null,"(*) El personal docente en actividad hace referencia a todas las personas con designación docente que se desempeñan en las unidades educativas del nivel. Por esta razón, se cuentan tantas veces como ofertas en las que trabajan."]
[null,"El nivel superior posee en el ámbito rural dos anexos localizados en los departamentos Tulumba y Minas (con un total de 23 alumnos). La oferta restante del nivel corresponde al ámbito urbano."]
[null,"En el departamento Capital, además de los que corresponden a los institutos superiores provinciales (ya sea que dependan de la UPC o del Ministerio de Educación), se incluyen los docentes y los alumnos de los dos colegios universitarios dependientes de UNC , más una institución que depende del Ministerio de Defensa de la Nación."]

{"sheet":"S C5.3.","index":64,"n_rows":8,"n_cols":11,"rows_kept":8,"cut":false,"hidden":true,"merged":[[8,1,8,10],[9,1,9,7],[10,1,10,6],[11,1,11,6],[1,1,1,10],[2,1,3,1],[2,2,2,4],[2,5,2,7],[2,8,2,10],[7,1,7,10]]}
[]
[null,"CUADRO 5.3 Alumnos por sector y sexo, según el tipo de formación"]
[null,"Tipo de formación","Total general",null,null,"Estatal",null,null,"Privado"]
[null,null,"Total","Mujeres","Varones","Total","Mujeres","Varones","Total","Mujeres","Varones"]
[null,"Total Córdoba (*)",78984,51933,27051,46154,31105,15049,32830,20828,12002]
[null,"Docente",36086,28106,7980,23126,18547,4579,12960,9559,3401]
[null,"Técnico-profesional",42898,23827,19071,23028,12558,10470,19870,11269,8601]
[null,"(*) Se encuentran incluidos los alumnos de los colegios universitarios de la UNC y los de las carreras superiores de la UPC."]

{"sheet":"S C5.4.","index":65,"n_rows":32,"n_cols":11,"rows_kept":32,"cut":false,"hidden":true,"merged":[[31,1,31,10],[1,1,1,10],[2,1,3,1],[2,2,2,4],[2,5,2,7],[2,8,2,10]]}
[]
[null,"CUADRO 5.4 Alumnos por sector y sexo, según departamento"]
[null,"Departamento","Total general",null,null,"Estatal",null,null,"Privado"]
[null,null,"Total","Mujeres","Varones","Total","Mujeres","Varones","Total","Mujeres","Varones"]
[null,"Total Córdoba",78984,51933,27051,46154,31105,15049,32830,20828,12002]
[null,"Calamuchita",399,298,101,300,202,98,99,96,3]
[null,"Capital",46815,29007,17808,26411,17521,8890,20404,11486,8918]
[null,"Colón",2164,1542,622,1459,941,518,705,601,104]
[null,"Cruz del Eje",1857,1413,444,1258,896,362,599,517,82]
[null,"General Roca ",465,383,82,256,183,73,209,200,9]
[null,"General San Martín",4726,3087,1639,1825,1097,728,2901,1990,911]
[null,"Ischilín",932,654,278,855,590,265,77,64,13]
[null,"Juárez Celman",423,300,123,198,155,43,225,145,80]
[null,"Marcos Juárez",1521,1150,371,1070,793,277,451,357,94]
[null,"Minas",6,4,2,6,4,2]
[null,"Pocho"]
[null,"Pte. Roque Sáenz Peña",640,495,145,469,334,135,171,161,10]
[null,"Punilla",2531,1549,982,1712,948,764,819,601,218]
[null,"Río Cuarto",3785,2390,1395,2411,1459,952,1374,931,443]
[null,"Río Primero",435,389,46,273,232,41,162,157,5]
[null,"Río Seco",68,54,14,68,54,14]
[null,"Río Segundo",808,603,205,464,275,189,344,328,16]
[null,"San Alberto",464,356,108,464,356,108]
[null,"San Javier",1909,1485,424,1410,1132,278,499,353,146]
[null,"San Justo",4008,2979,1029,2556,1820,736,1452,1159,293]
[null,"Santa María",566,501,65,566,501,65]
[null,"Sobremonte",44,43,1,44,43,1]
[null,"Tercero Arriba",1651,1153,498,609,396,213,1042,757,285]
[null,"Totoral",348,293,55,348,293,55]
[null,"Tulumba",17,16,1,17,16,1]
[null,"Unión",2402,1789,613,1105,864,241,1297,925,372]
[null,"En el departamento Capital, además de los que corresponden a los institutos superiores provinciales (ya sea que dependan de la UPC o del Ministerio de Educación), se incluyen los docentes y los alumnos de los dos colegios universitarios dependientes de UNC , más una institución que depende del Ministerio de Defensa de la Nación."]

{"sheet":"S C5.5.","index":66,"n_rows":30,"n_cols":11,"rows_kept":30,"cut":false,"hidden":true,"merged":[[1,1,1,10],[2,11,3,11],[28,1,28,10],[29,1,29,10],[30,1,30,10],[2,1,3,1],[2,2,2,4],[2,5,2,7],[2,8,2,10]]}
[]
[null,"CUADRO 5.5 Alumnos ingresantes a 1° año, por sector y sexo, según departamento"]
[null,"Departamento","Total general",null,null,"Estatal",null,null,"Privado"]
[null,null,"Total ","Mujeres","Varones","Total","Mujeres","Varones","Total","Mujeres","Varones"]
[null,"Total Córdoba",27246,18190,9056,14358,10123,4235,12888,8067,4821]
[null,"Calamuchita",216,158,58,174,116,58,42,42]
[null,"Capital",14955,9133,5822,6913,4671,2242,8042,4462,3580]
[null,"Colón",522,430,92,262,210,52,260,220,40]
[null,"Cruz del Eje",740,564,176,459,320,139,281,244,37]
[null,"General Roca",214,148,66,158,93,65,56,55,1]
[null,"General San Martín",1716,1185,531,562,417,145,1154,768,386]
[null,"Ischilín",354,232,122,327,208,119,27,24,3]
[null,"Juárez Celman",201,132,69,89,66,23,112,66,46]
[null,"Marcos Juárez",683,503,180,527,387,140,156,116,40]
[null,"Pte. Roque Sáenz Peña",311,236,75,213,146,67,98,90,8]
[null,"Punilla",964,675,289,639,423,216,325,252,73]
[null,"Río Cuarto",1129,838,291,577,449,128,552,389,163]
[null,"Río Primero",200,163,37,169,133,36,31,30,1]
[null,"Río Seco",46,36,10,46,36,10]
[null,"Río Segundo",402,306,96,276,185,91,126,121,5]
[null,"San Alberto",143,101,42,143,101,42]
[null,"San Javier",806,666,140,664,563,101,142,103,39]
[null,"San Justo",1510,1098,412,959,670,289,551,428,123]
[null,"Santa María",274,245,29,274,245,29]
[null,"Sobremonte",44,43,1,44,43,1]
[null,"Tercero Arriba",618,413,205,259,153,106,359,260,99]
[null,"Totoral",141,110,31,141,110,31]
[null,"Unión",1057,775,282,483,378,105,574,397,177]
[null,"Los departamentos Minas, Pocho y Tulumba no cuentan con alumnos ingresantes al Nivel Superior."]
[null,"En el departamento Capital, además de los que corresponden a los institutos superiores provinciales (ya sea que dependan de la UPC o del Ministerio de Educación), se incluyen los docentes y los alumnos de los dos colegios universitarios dependientes de UNC , más una institución que depende del Ministerio de Defensa de la Nación."]

{"sheet":"S C5.6","index":67,"n_rows":22,"n_cols":6,"rows_kept":22,"cut":false,"hidden":true,"merged":[[14,1,14,5],[15,1,15,5],[16,1,16,5],[1,1,1,5],[2,8,2,9],[3,1,3,2],[4,1,10,1],[11,1,13,1]]}
[]
[null,"CUADRO 5.6 Alumnos por sector, según tipo de carrera y rama "]
[null,"Tipo de carrera (*)","Rama"," Total ","Estatal","Privado"]
[null,"Total Córdoba",null,78984,46154,32830]
[null,"Grado","Total grado",74102,41683,32419]
[null,null,"Ciencias de la Salud",6513,2009,4504]
[null,null,"Ciencias Básicas",2651,2104,547]
[null,null,"Ciencias Aplicadas y Tecnología",14042,8494,5548]
[null,null,"Ciencias Sociales",20414,12339,8075]
[null,null,"Ciencias Humanas",30291,16737,13554]
[null,null,"Servicios personales, del hogar y la comunidad",191,null,191]
[null,"Postítulos (**)","Total postítulos",4882,4471,411]
[null,null,"Ciencias Aplicadas y Tecnología",199,199]
[null,null,"Ciencias Humanas",4683,4272,411]
[null,"(*) Incluye formación docente y tecnicaturas. "]
[null,"(**) Se incluye la oferta educativa de diplomaturas, especializaciones y postítulos."]
[]
[]
[]
[]
[]
[null,null,null," "]

{"sheet":"S C5.7","index":68,"n_rows":32,"n_cols":11,"rows_kept":32,"cut":false,"hidden":true,"merged":[[1,1,1,10],[31,1,31,10],[32,1,32,10],[2,1,3,1],[2,2,2,4],[2,5,2,7],[2,8,2,10],[30,1,30,10]]}
[]
[null,"CUADRO 5.7 Alumnos egresados del ciclo lectivo 2018, por sector y sexo, según departamento"]
[null,"Departamento","Total general",null,null,"Estatal",null,null,"Privado"]
[null,null,"Total","Mujeres","Varones","Total","Mujeres","Varones","Total","Mujeres","Varones"]
[null,"Total Córdoba",11323,8149,3174,6415,4780,1635,4908,3369,1539]
[null,"Calamuchita",55,46,9,47,38,9,8,8]
[null,"Capital",7323,4981,2342,4249,3072,1177,3074,1909,1165]
[null,"Colón",222,201,21,77,71,6,145,130,15]
[null,"Cruz del Eje",186,158,28,107,89,18,79,69,10]
[null,"General Roca",117,98,19,84,65,19,33,33]
[null,"General San Martín",773,583,190,224,171,53,549,412,137]
[null,"Ischilín",58,45,13,38,28,10,20,17,3]
[null,"Juárez Celman",39,37,2,30,29,1,9,8,1]
[null,"Marcos Juárez",169,139,30,97,83,14,72,56,16]
[null,"Pocho",7,5,2,7,5,2]
[null,"Pte. Roque Sáenz Peña",120,98,22,91,70,21,29,28,1]
[null,"Punilla",183,139,44,104,76,28,79,63,16]
[null,"Río Cuarto",430,368,62,310,282,28,120,86,34]
[null,"Río Primero",75,72,3,53,50,3,22,22]
[null,"Río Seco",13,7,6,13,7,6]
[null,"Río Segundo",125,80,45,73,30,43,52,50,2]
[null,"San Alberto",41,33,8,41,33,8]
[null,"San Javier",196,158,38,118,97,21,78,61,17]
[null,"San Justo",498,381,117,258,187,71,240,194,46]
[null,"Santa María",82,81,1,82,81,1]
[null,"Sobremonte",18,16,2,18,16,2]
[null,"Tercero Arriba",247,143,104,98,46,52,149,97,52]
[null,"Totoral",37,25,12,37,25,12]
[null,"Tulumba",10,10,null,10,10]
[null,"Unión",299,245,54,149,119,30,150,126,24]
[null,"El departamento Minas no cuenta con alumnos egresados del nivel superior."]
[null,"En el departamento Capital, además de los que corresponden a los institutos superiores provinciales (ya sea que dependan de la UPC o del Ministerio de Educación), se incluyen los docentes y los alumnos de los dos colegios universitarios dependientes de UNC , más una institución que depende del Ministerio de Defensa de la Nación."]

{"sheet":"CSC5.8.","index":69,"n_rows":11,"n_cols":6,"rows_kept":11,"cut":false,"hidden":true,"merged":[[4,1,6,1],[7,1,8,1],[10,1,10,5],[1,1,1,5]]}
[]
[null,"CUADRO 5.8 Personal docente en actividad, por lugar de origen y forma de designación, según sector"]
[null,"Lugar de origen","Forma de designación","Total (*)","Estatal","Privado"]
[null,"Total Córdoba",null,11657,6462,5195]
[null,"Personal designado en la planta del establecimiento","En actividad, designados sólo por cargo",1051,585,466]
[null,null,"En actividad, designados sólo por horas cátedra",10073,5624,4449]
[null,null,"En actividad, designados por cargo y horas cátedra",478,198,280]
[null,"Personal que proviene de otra planta","Docentes frente a alumnos, afectados a este establecimiento que no pertenecen a esta planta funcional",7,7]
[null,null,"Docentes en otras funciones, afectados a este establecimiento que no pertenecen a esta planta funcional",48,48]
[]
[null,"(*) El personal docente en actividad hace referencia a todas las personas con designación docente que se desempeñan en las unidades educativas del nivel. Por esta razón, secuentan tantas veces como ofertas en las que trabajan."]

{"sheet":"S.C5.9","index":70,"n_rows":32,"n_cols":5,"rows_kept":32,"cut":false,"hidden":true,"merged":[[30,1,30,4],[31,1,31,4],[1,1,1,4]]}
[]
[null,"CUADRO 5.9 Personal docente en actividad, por sexo, según departamento"]
[null,"Departamento","Total","Mujeres","Varones"]
[null,"Total Córdoba",11657,7900,3757]
[null,"Calamuchita",104,65,39]
[null,"Capital",5244,3423,1821]
[null,"Colón",352,230,122]
[null,"Cruz del Eje",313,224,89]
[null,"General Roca",86,60,26]
[null,"General San Martín",828,567,261]
[null,"Ischilín",146,103,43]
[null,"Juárez Celman",146,99,47]
[null,"Marcos Juárez",502,366,136]
[null,"Minas",9,7,2]
[null,"Pocho"]
[null,"Pte. Roque Sáenz Peña",179,132,47]
[null,"Punilla",454,289,165]
[null,"Río Cuarto",544,347,197]
[null,"Río Primero",90,67,23]
[null,"Río Seco",10,7,3]
[null,"Río Segundo",142,96,46]
[null,"San Alberto",113,72,41]
[null,"San Javier",313,222,91]
[null,"San Justo",912,641,271]
[null,"Santa María",99,81,18]
[null,"Sobremonte",7,5,2]
[null,"Tercero Arriba",342,229,113]
[null,"Totoral",43,25,18]
[null,"Tulumba",7,6,1]
[null,"Unión",672,537,135]
[null,"(*) El personal docente en actividad hace referencia a todas las personas con designación docente que se desempeñan en las unidades educativas del nivel. Por esta razón, se cuentan tantas veces como ofertas en las que trabajan."]
[null,"En el departamento Capital, además de los que corresponden a los institutos superiores provinciales (ya sea que dependan de la UPC o del Ministerio de Educación), se incluyen los docentes y los alumnos de los dos colegios universitarios dependientes de UNC , más una institución que depende del Ministerio de Defensa de la Nación."]

{"sheet":"S C 5.10","index":71,"n_rows":35,"n_cols":7,"rows_kept":35,"cut":false,"hidden":true,"merged":[[2,1,2,6],[4,8,7,10],[32,1,32,6],[33,1,33,6],[34,1,34,6],[3,1,4,1],[3,2,3,3],[3,4,3,5]]}
[]
[]
[null,"CUADRO 5.10 Personal docente en actividad, por sector, ámbito y origen de la designación, según departamento"]
[null,"Departamento ","Total ",null,"Estatal",null,"Privado(**)"]
[null,null,"Personal designado en la planta del establecimiento","Personal que proviene de otra planta","Personal designado en la planta del establecimiento","Personal que proviene de otra planta","Personal designado en la planta del establecimiento"]
[null,"Total Córdoba",11602,55,6407,55,5195]
[null,"Calamuchita",104,null,75,null,29]
[null,"Capital",5222,22,2832,22,2390]
[null,"Colón",351,1,166,1,185]
[null,"Cruz del Eje",309,4,190,4,119]
[null,"General Roca",86,null,65,null,21]
[null,"General San Martín",825,3,242,3,583]
[null,"Ischilín",146,null,134,null,12]
[null,"Juárez Celman",145,1,90,1,55]
[null,"Marcos Juárez",501,1,324,1,177]
[null,"Minas",8,1,8,1]
[null,"Pocho"]
[null,"Pte. Roque Sáenz Peña",179,null,138,null,41]
[null,"Punilla",454,null,308,null,146]
[null,"Río Cuarto",544,null,288,null,256]
[null,"Río Primero",89,1,45,1,44]
[null,"Río Seco",10,null,10]
[null,"Río Segundo",140,2,66,2,74]
[null,"San Alberto",109,4,109,4]
[null,"San Javier",312,1,215,1,97]
[null,"San Justo",909,3,541,3,368]
[null,"Santa María",97,2,97,2]
[null,"Sobremonte",7,null,7,null,0]
[null,"Tercero Arriba",342,null,101,null,241]
[null,"Totoral",43,null,43]
[null,"Tulumba",6,1,6,1]
[null,"Unión",664,8,307,8,357]
[null,"(*) El personal docente en actividad hace referencia a todas las personas con designación docente que se desempeñan en las unidades educativas del nivel. Por esta razón, se cuentan tantas veces como ofertas en las que trabajan."]
[null,"(**) El Sector privado no cuenta con docentes que provenga de otra planta. Todo el personal se encuentra designado en el establecimiento donde cumple funciones."]
[null,"En el departamento Capital, además de los que corresponden a los institutos superiores provinciales (ya sea que dependan de la UPC o del Ministerio de Educación), se incluyen los docentes y los alumnos de los dos colegios universitarios dependientes de UNC, más una institución que depende del Ministerio de Defensa de la Nación."]

{"sheet":"EC6.1","index":72,"n_rows":9,"n_cols":6,"rows_kept":9,"cut":false,"hidden":true,"merged":[[1,2,1,5],[12,1,12,5],[7,2,7,5],[8,2,8,5],[10,1,10,5],[11,1,11,5]]}
[]
[null,null,"CUADRO 6.1 Establecimientos, alumnos y personal docente en actividad, por sector "]
[null,null,null,"Total  ","Estatal","Privado"]
[null,null,"Establecimientos (*)",101,59,42]
[null,null,"Alumnos",6489,4022,2467]
[null,null,"Personal docente (**)",2747,1805,942]
[]
[null,null,"(*) Aquí se consignan establecimientos y no unidades educativas (puesto que ellas se vinculan a las formas de implementación del nivel). Esto es así porque en la Provincia, la modalidad especial se organiza en establecimientos (ver glosario) con una máxima autoridad pedagógica y con una única partida presupuestaria, en los que se imparte distintos niveles de enseñanza. De allí que en un mismo establecimiento coexisten varias unidades educativas y en la medida que los docentes son parte de la misma planta funcional, no es posible discriminar quién trabaja para cada una de ellas (salvo raras excepciones)."]
[null,null,"(**) El personal docente en actividad hace referencia a todas las personas con designación docente que se desempeñan en los establecimientos educativos de la modalidad. Por esta razón, se cuentan tantas veces como ofertas en las que trabajan."]

{"sheet":"EC6.2","index":73,"n_rows":35,"n_cols":13,"rows_kept":35,"cut":false,"hidden":true,"merged":[[2,1,2,12],[3,1,4,1],[3,2,3,5],[3,6,3,9],[3,10,3,12],[30,1,30,12],[31,1,31,12],[32,1,32,12],[33,1,33,12],[34,1,34,12]]}
[]
[]
[null,"CUADRO 6.2 Bases, anexos, alumnos y personal docente en actividad, por sector, según departamento"]
[null,"Departamento ","Total  ",null,null,null,"Estatal",null,null,null,"Privado"]
[null,null,"Bases (*)","Anexos (*)","Alumnos","Personal docente (**)","Bases","Anexos","Alumnos","Personal docente","Bases","Alumnos","Personal docente"]
[null,"Total Córdoba",101,23,6489,2747,59,23,4022,1805,42,2467,942]
[null,"Calamuchita",3,null,98,47,3,null,98,47]
[null,"Capital ",27,1,2692,990,14,1,1649,627,13,1043,363]
[null,"Colón",5,4,478,174,3,4,334,117,2,144,57]
[null,"Cruz del Eje",1,1,118,30,1,1,118,30]
[null,"General Roca",2,3,123,47,2,3,123,47]
[null,"General San Martín",3,1,210,105,2,1,142,65,1,68,40]
[null,"Ischilín",1,null,34,27,1,null,34,27]
[null,"Juárez Celman",4,1,102,91,3,1,76,72,1,26,19]
[null,"Marcos Juárez",6,3,146,109,3,3,80,67,3,66,42]
[null,"Minas (***)",null,1,12,7,null,1,12,7]
[null,"Pte. Roque Sáenz Peña",2,1,78,50,2,1,78,50]
[null,"Punilla",5,null,352,131,3,null,149,77,2,203,54]
[null,"Río Cuarto",11,null,396,238,8,null,283,182,3,113,56]
[null,"Río Primero",1,1,82,31,1,1,82,31]
[null,"Río Seco (***)",null,1,27,11,null,1,27,11]
[null,"Río Segundo ",5,null,252,94,2,null,129,49,3,123,45]
[null,"San Alberto",1,null,36,23,1,null,36,23]
[null,"San Javier",1,null,98,33,1,null,98,33]
[null,"San Justo",10,2,418,219,5,2,221,126,5,197,93]
[null,"Santa María",1,2,122,52,null,2,49,24,1,73,28]
[null,"Tercero Arriba",4,1,313,98,1,1,76,35,3,237,63]
[null,"Totoral",1,null,53,19,1,null,53,19]
[null,"Tulumba",1,null,25,15,1,null,25,15]
[null,"Unión",6,null,224,106,1,null,50,24,5,174,82]
[null,"(*)  Aquí se está contabilizado una escuela especial base de localidad de Córdoba (departamento Capital ) y un anexo de localidad de La Granja (departamento Colón), cuyos docentes realizan diferentes actividades como la aplicación de nuevos recursos educativos (en el base) y apoyo a la integración en una escuela común (en el anexo). Por ello se cuenta el personal docente de estas escuelas especiales, no así su matrícula."]
[null,"(**) El personal docente en actividad hace referencia a todas las personas con designación docente que se desempeñan en los establecimientos educativos de la modalidad. Por esta razón, se cuentan tantas veces como ofertas en las que trabajan."]
[null,"(***) En estos departamentos la oferta de educación especial corresponde a un anexo."]
[null,"Los departamentos Pocho y Sobremonte no cuentan con educación especial. Esta oferta posee en el ámbito rural solo tres anexos, localizados en los departamentos Colón, Marcos Juárez y Minas (con un total de 47 alumnos, de los cuales 28 son varones). El sector privado no posee oferta en el ámbito rural. "]
[null,"Se incluye la oferta de educación formal y no formal."]

{"sheet":"EC6.3","index":74,"n_rows":31,"n_cols":11,"rows_kept":31,"cut":false,"hidden":true,"merged":[[30,1,30,10],[1,1,1,10],[2,1,3,1],[2,2,2,4],[2,5,2,7],[2,8,2,10],[29,1,29,10]]}
[]
[null,"CUADRO 6.3 Alumnos por sector y sexo, según departamento"]
[null,"Departamento","Total general ",null,null,"Estatal",null,null,"Privado"]
[null,null,"Total","Mujeres","Varones","Total","Mujeres","Varones","Total","Mujeres","Varones"]
[null,"Total Córdoba",6489,2455,4034,4022,1504,2518,2467,951,1516]
[null,"Calamuchita",98,38,60,98,38,60]
[null,"Capital ",2692,1032,1660,1649,613,1036,1043,419,624]
[null,"Colón",478,174,304,334,128,206,144,46,98]
[null,"Cruz del Eje",118,48,70,118,48,70]
[null,"General Roca",123,49,74,123,49,74]
[null,"General San Martín",210,78,132,142,55,87,68,23,45]
[null,"Ischilín",34,16,18,34,16,18]
[null,"Juárez Celman",102,31,71,76,23,53,26,8,18]
[null,"Marcos Juárez",146,54,92,80,32,48,66,22,44]
[null,"Minas",12,5,7,12,5,7]
[null,"Pte. Roque Sáenz Peña",78,33,45,78,33,45]
[null,"Punilla",352,139,213,149,62,87,203,77,126]
[null,"Río Cuarto",396,146,250,283,94,189,113,52,61]
[null,"Río Primero",82,27,55,82,27,55]
[null,"Río Seco",27,6,21,27,6,21]
[null,"Río Segundo",252,104,148,129,51,78,123,53,70]
[null,"San Alberto",36,14,22,36,14,22]
[null,"San Javier",98,36,62,98,36,62]
[null,"San Justo",418,163,255,221,84,137,197,79,118]
[null,"Santa María",122,43,79,49,16,33,73,27,46]
[null,"Tercero Arriba",313,119,194,76,31,45,237,88,149]
[null,"Totoral",53,23,30,53,23,30]
[null,"Tulumba",25,6,19,25,6,19]
[null,"Unión",224,71,153,50,14,36,174,57,117]
[null,"Los departamentos Pocho y Sobremonte no cuentan con educación especial. Esta oferta posee en el ámbito rural solo tres anexos, localizados en los departamentos Colón, Marcos Juárez y Minas (con un total de 47 alumnos, de los cuales 28 son varones). El sector privado no posee oferta en el ámbito rural."]
[null,"Se incluye la oferta de educación formal y no formal."]

{"sheet":"E6.4.1 y 6.4.2","index":75,"n_rows":62,"n_cols":9,"rows_kept":62,"cut":false,"hidden":true,"merged":[[33,1,34,1],[33,2,34,2],[33,3,33,5],[33,6,33,8],[30,1,30,6],[1,1,1,6],[2,1,4,1],[2,2,4,2],[2,3,2,6],[3,3,3,4],[3,5,4,5],[3,6,4,6]]}
[]
[null,"CUADRO 6.4.1 Alumnos por nivel de la educación formal, según departamento"]
[null,"Departamento","Total ","Educación Formal"]
[null,null,null,"Inicial",null,"Primario","Secundario"]
[null,null,null,"Educación temprana","Jardin de infantes"]
[null,"Total Córdoba",6489,191,49,1894,4355]
[null,"Calamuchita",98,12,null,26,60]
[null,"Capital ",2692,67,31,764,1830]
[null,"Colón",478,2,1,164,311]
[null,"Cruz del Eje",118,12,6,34,66]
[null,"General Roca",123,null,null,45,78]
[null,"General San Martín",210,8,2,59,141]
[null,"Ischilín",34,null,null,10,24]
[null,"Juárez Celman",102,4,null,26,72]
[null,"Marcos Juárez",146,8,null,31,107]
[null,"Minas",12,null,null,1,11]
[null,"Pte. Roque Sáenz Peña",78,1,null,21,56]
[null,"Punilla",352,15,null,99,238]
[null,"Río Cuarto",396,21,4,75,296]
[null,"Río Primero",82,null,null,25,57]
[null,"Río Seco",27,null,null,10,17]
[null,"Río Segundo",252,3,2,91,156]
[null,"San Alberto",36,null,null,14,22]
[null,"San Javier",98,null,null,27,71]
[null,"San Justo",418,9,null,118,291]
[null,"Santa María",122,null,null,39,83]
[null,"Tercero Arriba",313,23,3,91,196]
[null,"Totoral",53,null,null,30,23]
[null,"Tulumba",25,null,null,9,16]
[null,"Unión",224,6,null,85,133]
[null,"Los departamentos Pocho y Sobremonte no cuentan con educación especial. Esta oferta posee en el ámbito rural solo tres anexos, localizados en los departamentos Colón, Marcos Juárez y Minas (con un total de 47 alumnos, de los cuales 28 son varones). El sector privado no posee oferta en el ámbito rural."]
[]
[null,"CUADRO 6.4.2 Alumnos egresados del nivel primario y secundario por sector, según departamento"]
[null,"Departamento","Total general","Primario (*)",null,null,"Secundario (**)"]
[null,null,null,"Total","Estatal","Privado","Total","Estatal","Privado"]
[null,"Total Córdoba",1190,598,409,189,592,399,193]
[null,"Calamuchita",25,15,15,null,10,10]
[null,"Capital",519,235,167,68,284,189,95]
[null,"Colón",80,45,31,14,35,31,4]
[null,"Cruz del Eje",22,7,7,null,15,15]
[null,"General Roca",21,9,9,null,12,12]
[null,"General San Martín",29,22,12,10,7,2,5]
[null,"Ischilín",23,10,10,null,13,13]
[null,"Juárez Celman",15,9,6,3,6,6]
[null,"Marcos Juárez",24,11,7,4,13,9,4]
[null,"Minas",1,null,null,null,1,1]
[null,"Pte. Roque Sáenz Peña",17,7,7,null,10,10]
[null,"Punilla",55,37,21,16,18,3,15]
[null,"Río Cuarto",86,40,34,6,46,34,12]
[null,"Río Primero",14,2,2,null,12,12]
[null,"Río Seco",5,3,3,null,2,2]
[null,"Río Segundo",49,38,19,19,11,6,5]
[null,"Santa María",26,15,8,7,11,2,9]
[null,"San Alberto",5,3,3,null,2,2]
[null,"San Javier",24,15,15,null,9,9]
[null,"San Justo",70,33,16,17,37,16,21]
[null,"Tercero Arriba",36,24,5,19,12,5,7]
[null,"Totoral",7,1,1,null,6,6]
[null,"Tulumba",5,3,3,null,2,2]
[null,"Unión",32,14,8,6,18,2,16]
[null,"(*) Refiere exclusivamente a los promovidos de 6° grado en el ciclo lectivo 2018."]
[null,"(**) Total de egresados del nivel secundario"]

{"sheet":"E6.4.3","index":76,"n_rows":18,"n_cols":5,"rows_kept":18,"cut":false,"hidden":true,"merged":[]}
[]
[null,"CUADRO 6.4.3 Alumnos de educación no formal por sector, según departamento"]
[null,"Departamento","Total","Estatal","Privado"]
[null,"Total Córdoba",607,563,44]
[null,"Capital",359,323,36]
[null,"Colón",37,37]
[null,"Cruz del Eje",44,44]
[null,"Ischilín",10,10]
[null,"Marcos Juárez",9,9]
[null,"Río Cuarto",5,5]
[null,"Río Seco",7,7]
[null,"San Javier",36,36]
[null,"San Justo",54,54]
[null,"Santa María",8,null,8]
[null,"Totoral",9,9]
[null,"Tulumba",25,25]
[null,"Unión",4,4]
[null,"Se incluyen solo los departamentos donde se dictaron talleres en el periodo lectivo 2019."]

{"sheet":"E6.5,6.6,6.7","index":77,"n_rows":22,"n_cols":8,"rows_kept":22,"cut":false,"hidden":true,"merged":[[17,1,17,6],[24,1,24,7],[25,1,25,7],[9,1,9,7],[1,1,1,7]]}
[]
[null,"CUADRO 6.5 Evolución del total de alumnos integrados, por sector de la escuela de origen. Años 2014-2019"]
[null,"Sector",2014,2015,2016,2017,2018,2019]
[null,"Total Córdoba",1956,2270,2624,3097,{"$f":"G5+G6","v":3753},4294]
[null,"Estatal",1429,1845,2084,2628,3210,3684]
[null,"Privado",506,425,540,469,543,610]
[]
[]
[]
[null,"CUADRO 6.6 Evolución del total de cargos cubiertos de maestro integrador, por sector. Años 2014 - 2019"]
[null,"Sector",2014,2015,2016,2017,2018,2019]
[null,"Total Córdoba",139,163,187,217,273,280]
[null,"Estatal",121,138,157,184,229,234]
[null,"Privado",18,25,30,33,44,46]
[]
[]
[]
[null,"CUADRO 6.7 Evolución del total de alumnos por tipo de integración. Años 2014 -2019"]
[null,"Tipo de Integración",2014,2015,2016,2017,2018,2019]
[null,"Total",1956,2270,2624,3097,3753,4294]
[null,"Apoyo",1771,2028,2257,2544,3315,3671]
[null,"Simultánea",185,242,367,553,438,623]

{"sheet":"E6.8","index":78,"n_rows":12,"n_cols":8,"rows_kept":12,"cut":false,"hidden":true,"merged":[[12,1,12,5],[1,1,1,7]]}
[]
[null,"CUADRO 6.8 Evolución del total de alumnos integrados, por tipo de discapacidad. Años 2014 - 2019"]
[null,"Tipo de discapacidad",2014,2015,2016,2017,2018,2019]
[null,"Total Córdoba",1956,2270,2624,3097,3753,4294]
[null,"Intelectual",1223,1557,1804,2248,2785,3396]
[null,"Sordera o hipoacusia",104,145,187,186,198,193]
[null,"Ceguera o disminución visual",157,205,186,193,170,189]
[null,"Motora pura o neuromotora",11,16,13,94,28,27]
[null,"Trastornos generalizados del desarrollo (TGD) o Trastornos del espectro autista",42,21,35,31,37,84]
[null,"Más de una discapacidad",17,43,63,61,99,97]
[null,"Sin discapacidad",402,283,336,269,333,259]
[null,"Otras discapacidades",null,null,null,15,103,49]

{"sheet":"E6.9","index":79,"n_rows":20,"n_cols":9,"rows_kept":20,"cut":false,"hidden":true,"merged":[[3,1,3,2],[4,1,11,1],[12,1,19,1],[21,1,21,7],[1,1,1,8]]}
[]
[null,"CUADRO 6.9 Evolución del total de alumnos integrados por sector de la escuela de origen y tipo de discapacidad. Años 2014 - 2019"]
[null,"Sector de escuela de origen","Tipo de discapacidad",2014,2015,2016,2017,2018,2019]
[null,"Total Córdoba",null,1956,2270,2624,3097,{"$f":"SUM(H5:H20)","v":3753},4294]
[null,"Estatal","Intelectual",1063,1309,1533,1950,2446,3015]
[null,null,"Sordera o hipoacusia",99,140,183,185,194,187]
[null,null,"Ceguera o disminución visual",153,196,176,185,162,180]
[null,null,"Motora pura o neuromotora",10,12,9,88,24,24]
[null,null,"Trastornos generalizados del desarrollo (TGD) o Trastornos del espectro autista (TEA)",31,15,27,28,29,73]
[null,null,"Más de una discapacidad",12,36,29,45,76,68]
[null,null,"Sin discapacidad",61,137,127,139,191,106]
[null,null,"Otras discapacidades",null,null,null,8,88,31]
[null,"Privado","Intelectual",160,248,271,298,339,381]
[null,null,"Sordera o hipoacusia",5,5,4,1,4,6]
[null,null,"Ceguera o disminución visual",4,9,10,8,8,9]
[null,null,"Motora pura o neuromotora",1,4,4,6,4,3]
[null,null,"Trastornos generalizados del desarrollo (TGD) o Trastornos del Espectro autista",11,6,8,3,8,11]
[null,null,"Más de una discapacidad",5,7,34,16,23,29]
[null,null,"Sin discapacidad",341,146,209,130,142,153]
[null,null,"Otras discapacidades",null,null,null,7,15,18]

{"sheet":"E6.10","index":80,"n_rows":23,"n_cols":10,"rows_kept":23,"cut":false,"hidden":true,"merged":[[3,1,3,2],[4,1,8,1],[9,1,11,1],[12,1,12,2],[1,1,1,8]]}
[]
[null,"CUADRO 6.10 Alumnos con discapacidad, por tipo de seguimiento que reciben, según modalidad y nivel en el que cursan"]
[null,"Modalidad","Nivel","Total","Con apoyo a la inclusión del Sector Estatal","Con apoyo a la inclusión del Sector Privado","Sin apoyo a la inclusión","Con CUD","Sin CUD"]
[null,"Total Córdoba",null,18191,4411,9935,3845,13246,4945]
[null,"Común","Total Común",17545,4183,9873,3489,12857,4688]
[null,null,"Inicial",1850,334,1029,487,1354,496]
[null,null,"Primario",9096,2248,5205,1643,6894,2202]
[null,null,"Secundario",6522,1596,3619,1307,4587,1935]
[null,null,"Superior",77,5,20,52,22,55]
[null,"Jóvenes y Adultos","Total Jóvenes y Adultos",544,176,53,315,308,236]
[null,null,"Primario",327,79,9,239,159,168]
[null,null,"Secundario",217,97,44,76,149,68]
[null,"Formación Profesional ",null,102,52,9,41,81,21]
[]
[]
[]
[]
[]
[]
[]
[]
[]
[null,null,null,null,null,null,null,null,null," "]

{"sheet":"E 6.11","index":81,"n_rows":29,"n_cols":5,"rows_kept":29,"cut":false,"hidden":true,"merged":[[28,1,28,4],[30,1,30,4],[1,1,1,4]]}
[]
[null,"CUADRO 6.11 Personal docente en actividad, por sector, según departamento "]
[null,"Departamento","Total ","Estatal","Privado"]
[null,"Total Córdoba (*)",2747,1805,942]
[null,"Calamuchita",47,47]
[null,"Capital ",990,627,363]
[null,"Colón",174,117,57]
[null,"Cruz del Eje",30,30]
[null,"General Roca",47,47]
[null,"General San Martín",105,65,40]
[null,"Ischilín",27,27]
[null,"Juárez Celman",91,72,19]
[null,"Marcos Juárez",109,67,42]
[null,"Minas",7,7]
[null,"Pte. Roque Sáenz Peña",50,50]
[null,"Punilla",131,77,54]
[null,"Río Cuarto",238,182,56]
[null,"Río Primero",31,31]
[null,"Río Seco",11,11]
[null,"Río Segundo",94,49,45]
[null,"San Alberto",23,23]
[null,"San Javier",33,33]
[null,"San Justo",219,126,93]
[null,"Santa María",52,24,28]
[null,"Tercero Arriba",98,35,63]
[null,"Totoral",19,19]
[null,"Tulumba",15,15]
[null,"Unión",106,24,82]
[null,"(*) El personal docente en actividad hace referencia a todas las personas con designación docente que se desempeñan en los establecimientos educativos de la modalidad. Por esta razón, se cuentan tantas veces como ofertas en las que trabajan."]

{"sheet":"EC6.12","index":82,"n_rows":29,"n_cols":5,"rows_kept":29,"cut":false,"hidden":true,"merged":[[1,1,1,4],[30,1,30,4],[25,5,27,8],[28,1,28,4],[29,1,29,4]]}
[]
[null,"CUADRO 6.12 Cargos docentes cubiertos frente a alumnos, por sector, según departamento"]
[null,"Departamento","Total ","Estatal","Privado"]
[null,"Total Córdoba",1030,668,362]
[null,"Calamuchita",13,13]
[null,"Capital",381,240,141]
[null,"Colón",69,40,29]
[null,"Cruz del Eje",12,12]
[null,"General Roca",17,17]
[null,"General San Martín",48,37,11]
[null,"Ischilín",5,5]
[null,"Juárez Celman",34,27,7]
[null,"Marcos Juárez",29,18,11]
[null,"Minas",3,3]
[null,"Pte. Roque Sáenz Peña",21,21]
[null,"Punilla",51,27,24]
[null,"Río Cuarto",74,61,13]
[null,"Río Primero",9,9]
[null,"Río Seco",3,3]
[null,"Río Segundo",37,22,15]
[null,"San Alberto",5,5]
[null,"San Javier",20,20]
[null,"San Justo",73,44,29]
[null,"Santa María",25,12,13]
[null,"Tercero Arriba",39,13,26]
[null,"Totoral",9,9]
[null,"Tulumba",4,4]
[null,"Unión",49,6,43]
[null,"No se encuentran incluidos los cargos de maestro integrador, puesto que no atienden de manera exclusiva a la matrícula de las escuelas especiales como sí lo hacen los otros."]

{"sheet":"Cuadro 7.1. ","index":83,"n_rows":9,"n_cols":6,"rows_kept":9,"cut":false,"hidden":true,"merged":[[11,1,14,5],[1,1,1,5],[2,2,3,2],[2,3,2,4],[7,1,7,5],[8,1,8,5],[9,1,9,5]]}
[]
[null,"CUADRO 7.1  Establecimientos, alumnos y personal docente en actividad, por sector y dependencia"]
[null,null,"Total ","Estatal",null,"Privado"]
[null,null,null,"Provincial","Municipal","Provincial"]
[null,"Establecimientos (*)",3,1,1,1]
[null,"Alumnos",278,173,80,25]
[null,"Personal docente (**)",81,62,6,13]
[null,"(*)  Aquí se consignan establecimientos y no unidades educativas (puesto que ellas se vinculan a las formas de implementación del nivel). Esto es así porque en la Provincia, la modalidad de educación hospitalaria y domiciliaria se organiza en establecimientos (ver glosario) con una máxima autoridad pedagógica y con una única partida presupuestaria, en los que se imparte distintos niveles de enseñanza. De allí que en un mismo establecimiento coexisten varias unidades educativas y en la medida que los docentes son parte de la misma planta funcional, no es posible discriminar quién trabaja para cada una de ellas (salvo raras excepciones)."]
[null,"(**) El personal docente en actividad hace referencia a todas las personas con designación docente que se desempeñan en los establecimientos de la modalidad; por esta razón se cuentan tantas veces como ofertas en las que trabajan."]

{"sheet":"Cuadro 7.2","index":84,"n_rows":10,"n_cols":6,"rows_kept":10,"cut":false,"hidden":true,"merged":[[3,1,3,2],[4,1,6,1],[7,1,8,1],[9,1,9,5],[1,1,1,5]]}
[]
[null,"CUADRO 7.2 Alumnos  por sexo, según modalidad y nivel "]
[null,"Modalidad","Nivel","Total ","Mujeres","Varones"]
[null,"Total Córdoba",null,278,123,155]
[null,"Común","Inicial",58,26,32]
[null,null,"Primario",116,57,59]
[null,null,"Secundario",96,37,59]
[null,"Especial","Primario",3,1,2]
[null,null,"Secundario",5,2,3]
[null,"A la fecha de realización del Relevamiento Anual las escuelas hospitalarias contaban con alumnos matriculados en la modalidad comón y especial."]

{"sheet":"Cuadro7.3","index":85,"n_rows":10,"n_cols":6,"rows_kept":10,"cut":false,"hidden":true,"merged":[[3,1,3,2],[4,1,6,1],[7,1,8,1],[1,1,1,5],[9,1,9,5]]}
[]
[null,"CUADRO 7.3  Alumnos por tipo de atención, según modalidad y nivel"]
[null,"Modalidad","Nivel","Total","Hospitalaria","Domiciliaria"]
[null,"Total Córdoba",null,278,184,94]
[null,"Común","Inicial",58,48,10]
[null,null,"Primario",116,82,34]
[null,null,"Secundario",96,53,43]
[null,"Especial","Primario",3,null,3]
[null,null,"Secundario",5,1,4]
[null,"A la fecha de realización del Relevamiento Anual las escuelas hospitalarias contaban con alumnos matriculados en la modalidad comón y especial."]

{"sheet":"C.8.1 Datos grales","index":86,"n_rows":19,"n_cols":6,"rows_kept":19,"cut":false,"hidden":true,"merged":[[1,1,1,5],[3,1,5,1],[6,1,8,1],[9,1,11,1],[12,1,12,5]]}
[]
[null,"CUADRO 8.1 Unidades educativas, alumnos y personal docente en actividad, por sector, según ámbito"]
[null,null,"Ámbito","Total ","Estatal","Privado"]
[null,"Unidades educativas","Total",356,326,30]
[null,null,"Urbano",330,300,30]
[null,null,"Rural",26,26]
[null,"Alumnos","Total",51585,45915,5670]
[null,null,"Urbano",46804,41134,5670]
[null,null,"Rural",4781,4781]
[null,"Personal docente (*)","Total",8108,7590,518]
[null,null,"Urbano",7000,6482,518]
[null,null,"Rural",1108,1108]
[null,"(*) El personal docente en actividad hace referencia a todas las personas con designación docente que se desempeñan en las unidades educativas de la modalidad. Por esta razón, se cuentan tantas veces como ofertas en las que trabajan."]
[]
[]
[]
[]
[]
[null,null,null,null," "]

{"sheet":"C.8.2 contexto de priv lib","index":87,"n_rows":6,"n_cols":5,"rows_kept":6,"cut":false,"hidden":true,"merged":[[1,1,1,4],[8,1,8,5]]}
[]
[null,"CUADRO 8.2 Alumnos matriculados en contexto de privación de la libertad, por sexo, según nivel al que asisten "]
[null,"Nivel","Total ","Mujeres","Varones"]
[null,"Total Córdoba",2843,245,2598]
[null,"Primario",860,61,799]
[null,"Secundario",1983,184,1799]

{"sheet":"C.8.3.","index":88,"n_rows":15,"n_cols":7,"rows_kept":15,"cut":false,"hidden":true,"merged":[[1,1,1,6],[2,2,3,2],[2,3,3,3],[2,4,2,5],[4,1,6,1],[10,1,12,1],[13,1,13,6],[14,1,14,6],[15,1,15,6],[7,1,9,1]]}
[]
[null,"CUADRO 8.3 Unidades educativas, alumnos y personal docente en actividad, por sector y dependencia, según ámbito "]
[null,null,"Ámbito","Total ","Estatal",null,"Privado"]
[null,null,null,null,"Provincial","Municipal","Provincial"]
[null,"Unidades educativas","Total",219,193,24,2]
[null,null,"Urbano",193,167,24,2]
[null,null,"Rural",26,26]
[null,"Alumnos","Total",5363,4780,555,28]
[null,null,"Urbano",4598,4015,555,28]
[null,null,"Rural",765,765]
[null,"Personal docente (*)","Total",541,463,73,5]
[null,null,"Urbano",480,402,73,5]
[null,null,"Rural",61,61]
[null,"(*) El personal docente en actividad hace referencia a todas las personas con designación docente que se desempeñan en las unidades educativas de la modalidad. Por esta razón, se cuentan tantas veces como ofertas en las que trabajan."]
[null,"Las unidades educativas de dependencia municipal pertenecen a la Municipalidad de Córdoba."]

{"sheet":"C. 8.4 ","index":89,"n_rows":34,"n_cols":14,"rows_kept":34,"cut":false,"hidden":true,"merged":[[1,1,1,13],[31,1,31,13],[32,1,32,13],[33,1,33,13],[2,1,3,1],[2,2,2,5],[2,6,2,9],[2,10,2,13]]}
[]
[null,"CUADRO 8.4 Bases, anexos, alumnos y personal docente en actividad, por ámbito, según departamento"]
[null,"Departamento ","Total  ",null,null,null,"Urbano (**)",null,null,null,"Rural"]
[null,null,"Bases","Anexos","Alumnos","Personal docente (*)","Bases","Anexos","Alumnos","Personal docente","Bases","Anexos","Alumnos","Personal docente "]
[null,"Total Córdoba",219,71,5363,541,193,60,4598,480,26,11,765,61]
[null,"Calamuchita",7,1,85,8,5,null,66,5,2,1,19,3]
[null,"Capital ",66,36,2037,251,66,36,2037,251]
[null,"Colón",8,6,263,22,8,5,256,21,null,1,7,1]
[null,"Cruz del Eje",4,null,137,9,3,null,131,8,1,null,6,1]
[null,"General Roca",6,null,55,7,4,null,38,5,2,null,17,2]
[null,"General San Martín",7,null,135,12,7,null,135,12]
[null,"Ischilín",2,null,35,3,2,null,35,3]
[null,"Juárez Celman",6,1,81,7,5,null,66,5,1,1,15,2]
[null,"Marcos Juárez",12,null,117,15,11,null,111,13,1,null,6,2]
[null,"Minas",2,null,10,2,null,null,null,null,2,null,10,2]
[null,"Pocho",1,null,7,1,null,null,null,null,1,null,7,1]
[null,"Pte. Roque Sáenz Peña",4,null,68,5,3,null,58,4,1,null,10,1]
[null,"Punilla",5,7,168,21,4,6,152,18,1,1,16,3]
[null,"Río Cuarto",16,4,361,24,16,4,361,24]
[null,"Río Primero",6,4,147,13,5,1,108,9,1,3,39,4]
[null,"Río Seco",1,null,6,1,1,null,6,1]
[null,"Río Segundo",7,null,74,9,7,null,74,9]
[null,"San Alberto",4,null,53,5,2,null,36,3,2,null,17,2]
[null,"San Javier",3,null,77,5,3,null,77,5]
[null,"San Justo",19,4,338,31,15,3,283,26,4,1,55,5]
[null,"Santa María",5,5,703,48,5,2,236,23,null,3,467,25]
[null,"Sobremonte",1,null,13,1,null,null,null,null,1,null,13,1]
[null,"Tercero Arriba",6,3,107,10,6,3,107,10]
[null,"Totoral",2,null,14,2,2,null,14,2]
[null,"Tulumba",4,null,39,4,1,null,10,1,3,null,29,3]
[null,"Unión",15,null,233,25,12,null,201,22,3,null,32,3]
[null,"(*) El personal docente en actividad hace referencia a todas las personas con designación docente que se desempeñan en las unidades educativas de la modalidad. Por esta razón, se cuentan tantas veces como ofertas en las que trabajan."]
[null,"(**) En el ámbito urbano están incluidas las dos únicas bases de la modalidad (primaria de adultos) con las que cuenta el sector privado, que están localizadas en los departamentos Capital y Río Cuarto, así como sus alumnos y docentes."]
[null,"En el departamento Capital están incluidas además de las provinciales, las unidades educativas (bases con sus anexos) municipales, al igual que sus alumnos y personal docente."]

{"sheet":"C. 8.5","index":90,"n_rows":33,"n_cols":11,"rows_kept":33,"cut":false,"hidden":true,"merged":[[32,1,32,10],[1,1,1,10],[2,1,3,1],[2,2,2,4],[2,5,2,7],[2,8,2,10],[31,1,31,10]]}
[]
[null,"CUADRO 8.5 Alumnos por ámbito y sexo, según departamento"]
[null,"Departamento ","Total general",null,null,"Urbano (*)",null,null,"Rural"]
[null,null,"Total ","Mujeres","Varones","Total ","Mujeres","Varones","Total ","Mujeres","Varones"]
[null,"Total Córdoba",5363,3007,2356,4598,2777,1821,765,230,535]
[null,"Calamuchita",85,55,30,66,46,20,19,9,10]
[null,"Capital",2037,1470,567,2037,1470,567,null,null,0]
[null,"Colón",263,177,86,256,171,85,7,6,1]
[null,"Cruz del Eje",137,24,113,131,20,111,6,4,2]
[null,"General Roca",55,31,24,38,22,16,17,9,8]
[null,"General San Martín",135,48,87,135,48,87]
[null,"Ischilín",35,16,19,35,16,19]
[null,"Juárez Celman",81,51,30,66,43,23,15,8,7]
[null,"Marcos Juárez",117,74,43,111,69,42,6,5,1]
[null,"Minas",10,8,2,null,null,null,10,8,2]
[null,"Pocho",7,4,3,null,null,null,7,4,3]
[null,"Pte. Roque Sáenz Peña",68,57,11,58,47,11,10,10]
[null,"Punilla",168,93,75,152,82,70,16,11,5]
[null,"Río Cuarto",361,183,178,361,183,178]
[null,"Río Primero",147,94,53,108,71,37,39,23,16]
[null,"Río Seco",6,6,0,6,6]
[null,"Río Segundo",74,48,26,74,48,26]
[null,"San Alberto",53,28,25,36,16,20,17,12,5]
[null,"San Javier",77,18,59,77,18,59]
[null,"San Justo",338,176,162,283,140,143,55,36,19]
[null,"Santa María",703,123,580,236,72,164,467,51,416]
[null,"Sobremonte",13,2,11,null,null,null,13,2,11]
[null,"Tercero Arriba",107,64,43,107,64,43]
[null,"Totoral",14,7,7,14,7,7]
[null,"Tulumba",39,19,20,10,3,7,29,16,13]
[null,"Unión",233,131,102,201,115,86,32,16,16]
[null,"(*) En el ámbito urbano están incluidas las dos únicas bases de la modalidad (primaria de adultos) con las que cuenta el sector privado, que están localizadas en los departamentos Capital y Río Cuarto, así como sus alumnos y docentes."]
[null,"En el departamento Capital están incluidas, además de las provinciales, las unidades educativas (bases con sus anexos) municipales, al igual que sus alumnos y personal docente."]

{"sheet":"C.8.6","index":91,"n_rows":33,"n_cols":7,"rows_kept":33,"cut":false,"hidden":true,"merged":[[32,1,32,6],[1,1,1,6],[2,1,3,1],[2,2,3,2],[2,3,2,4],[2,5,2,6],[31,1,31,6]]}
[]
[null,"CUADRO 8.6 Secciones por ámbito y tipo, según departamento"]
[null,"Departamento ","Total ","Urbano (*)",null,"Rural"]
[null,null,null,"Independiente","Múltiple","Independiente","Múltiple"]
[null,"Total Córdoba",421,185,175,34,27]
[null,"Calamuchita",8,1,4,1,2]
[null,"Capital ",164,95,69]
[null,"Colón",21,13,7,null,1]
[null,"Cruz del Eje",7,4,2,null,1]
[null,"General Roca",7,2,3,null,2]
[null,"General San Martín",10,6,4]
[null,"Ischilín",3,2,1]
[null,"Juárez Celman",7,null,5,null,2]
[null,"Marcos Juárez",13,1,10,2]
[null,"Minas",2,null,null,null,2]
[null,"Pocho",2,null,null,2]
[null,"Pte. Roque Sáenz Peña",5,2,2,null,1]
[null,"Punilla",19,8,7,4]
[null,"Río Cuarto",25,12,13]
[null,"Río Primero",11,null,6,2,3]
[null,"Río Seco",1,1]
[null,"Río Segundo",10,7,3]
[null,"San Alberto",6,4,0,null,2]
[null,"San Javier",4,3,1]
[null,"San Justo",27,8,13,2,4]
[null,"Santa María",35,10,4,20,1]
[null,"Sobremonte",1,null,null,null,1]
[null,"Tercero Arriba",9,1,8]
[null,"Totoral",2,null,2]
[null,"Tulumba",4,null,1,1,2]
[null,"Unión",18,5,10,null,3]
[null,"(*)  En el ámbito urbano están incluidas las dos únicas bases de la modalidad (primaria de adultos) con las que cuenta el sector privado, que están localizadas en los departamentos Capital y Río Cuarto, así como sus alumnos y docentes."]
[null,"En el departamento Capital están incluidas, además de las provinciales, las unidades educativas (bases con sus anexos) municipales, al igual que sus alumnos, secciones y personal docente."]

{"sheet":"C.8.7","index":92,"n_rows":33,"n_cols":5,"rows_kept":33,"cut":false,"hidden":true,"merged":[[1,1,1,4],[30,1,30,4],[31,1,31,4],[32,1,32,4]]}
[]
[null,"CUADRO 8.7  Personal docente en actividad, por ámbito, según departamento"]
[null,"Departamento","Total  (*)","Urbano (**)","Rural"]
[null,"Total Córdoba ",541,480,61]
[null,"Calamuchita",8,5,3]
[null,"Capital ",251,251]
[null,"Colón",22,21,1]
[null,"Cruz del Eje",9,8,1]
[null,"General Roca",7,5,2]
[null,"General San Martín",12,12]
[null,"Ischilín",3,3]
[null,"Juárez Celman",7,5,2]
[null,"Marcos Juárez",15,13,2]
[null,"Minas",2,null,2]
[null,"Pocho",1,null,1]
[null,"Pte. Roque Sáenz Peña",5,4,1]
[null,"Punilla",21,18,3]
[null,"Río Cuarto",24,24]
[null,"Río Primero",13,9,4]
[null,"Río Seco",1,1]
[null,"Río Segundo",9,9]
[null,"San Alberto",5,3,2]
[null,"San Javier",5,5]
[null,"San Justo",31,26,5]
[null,"Santa María",48,23,25]
[null,"Sobremonte",1,null,1]
[null,"Tercero Arriba",10,10]
[null,"Totoral",2,2]
[null,"Tulumba",4,1,3]
[null,"Unión",25,22,3]
[null,"(*) El personal docente en actividad hace referencia a todas las personas con designación docente que se desempeñan en las unidades educativas de la modalidad. Por esta razón, se cuentan tantas veces como ofertas en las que trabajan."]
[null,"(**)  En el ámbito urbano están incluidas las dos únicas bases de la modalidad (primaria de adultos) con las que cuenta el sector privado, que están localizadas en los departamentos Capital y Río Cuarto, así como sus alumnos y docentes."]
[null,"En el departamento Capital están incluidas, además de las provinciales, las unidades educativas (bases con sus anexos) municipales, al igual que sus alumnos y personal docente."]

{"sheet":"C. 8.8","index":93,"n_rows":13,"n_cols":6,"rows_kept":13,"cut":false,"hidden":true,"merged":[[1,1,1,5],[5,1,7,1],[8,1,10,1],[12,1,12,5],[3,1,4,1],[11,1,11,5]]}
[]
[null,"CUADRO 8.8 Unidades educativas, alumnos y personal docente en actividad, por sector, según ámbito"]
[null,null,"Ámbito","Total  ","Estatal","Privado"]
[null,"Unidades educativas","Total",137,109,28]
[null,null,"Urbano (*)",137,109,28]
[null,"Alumnos","Total",46222,40580,5642]
[null,null,"Urbano",42206,36564,5642]
[null,null,"Rural",4016,4016]
[null,"Personal docente (**)","Total",7567,7054,513]
[null,null,"Urbano",6520,6007,513]
[null,null,"Rural",1047,1047]
[null,"(*) El concepto de unidad educativa hace referencia a la implementación de un nivel educativo, por lo que una unidad educativa puede constar de una base y anexos. Su registro es en el ámbito donde se localiza la base (donde se encuentra la máxima autoridad pedagógica de esa unidad). Por esta razón es posible encontrar unidades en el ámbito urbano exclusivamente en tanto lo que los alumnos son registrados en el ámbito en el que cursan (en un anexo)."]
[null,"(**)  El personal docente en actividad hace referencia a todas las personas con designación docente que se desempeñan en las unidades educativas de la modalidad. Por esta razón, se cuentan tantas veces como ofertas en las que trabajan."]

{"sheet":"C.8.9","index":94,"n_rows":32,"n_cols":11,"rows_kept":32,"cut":false,"hidden":true,"merged":[[32,1,32,10],[33,1,33,10],[1,1,1,10],[2,1,3,1],[2,2,2,4],[2,5,2,7],[2,8,2,10],[31,1,31,10]]}
[]
[null,"CUADRO 8.9 Unidades educativas, alumnos y personal docente en actividad, por sector, según departamento"]
[null,"Departamento","Total ",null,null,"Estatal",null,null,"Privado"]
[null,null,"Unidades educativas ","Alumnos","Personal docente (*)","Unidades educativas ","Alumnos","Personal docente","Unidades educativas ","Alumnos","Personal docente"]
[null,"Total Córdoba",137,46222,7567,109,40580,7054,28,5642,513]
[null,"Calamuchita",2,645,170,2,645,170]
[null,"Capital",51,19359,2782,34,14479,2445,17,4880,337]
[null,"Colón",7,2895,370,7,2895,370]
[null,"Cruz del Eje",3,1216,185,3,1216,185]
[null,"General Roca ",3,398,91,3,398,91]
[null,"General San Martín",3,1516,279,3,1516,279]
[null,"Ischilín",1,587,84,1,587,84]
[null,"Juárez Celman",6,683,158,4,564,126,2,119,32]
[null,"Marcos Juárez",8,1167,246,6,977,211,2,190,35]
[null,"Minas",null,89,38,null,89,38]
[null,"Pocho ",null,65,26,null,65,26]
[null,"Pte. Roque Sáenz Peña",1,481,112,1,481,112]
[null,"Punilla",5,1911,338,4,1830,325,1,81,13]
[null,"Río Cuarto",12,2676,563,9,2470,512,3,206,51]
[null,"Río Primero",2,848,129,2,848,129]
[null,"Río Seco",1,304,70,1,304,70]
[null,"Río Segundo",4,1509,210,4,1509,210]
[null,"San Alberto",1,530,94,1,530,94]
[null,"San Javier",1,870,127,1,870,127]
[null,"San Justo",11,2976,518,9,2892,484,2,84,34]
[null,"Santa María",4,2264,354,4,2264,354]
[null,"Sobremonte",null,99,22,null,99,22]
[null,"Tercero Arriba",4,1083,207,4,1083,207]
[null,"Totoral",1,530,81,1,530,81]
[null,"Tulumba",1,293,55,1,293,55]
[null,"Unión",5,1228,258,4,1146,247,1,82,11]
[null,"(*) El personal docente en actividad hace referencia a todas las personas con designación docente que se desempeñan en las unidades educativas de la modalidad. Por esta razón, se cuentan tantas veces como ofertas en las que trabajan."]

{"sheet":"C. 8.10","index":95,"n_rows":34,"n_cols":8,"rows_kept":34,"cut":false,"hidden":true,"merged":[[2,9,5,12],[3,4,3,5],[32,1,32,7],[33,1,33,7],[1,1,1,7],[2,1,4,1],[2,2,3,3],[2,4,2,6]]}
[]
[null,"CUADRO 8.10 Bases y anexos, por sector y ámbito, según departamento"]
[null,"Departamento","Total ",null,"Estatal",null,null,"Privado "]
[null,null,null,null,"Urbano",null,"Rural","Urbano "]
[null,null,"Bases","Anexos","Bases","Anexos","Anexos","Bases"]
[null,"Total Córdoba",137,320,109,209,111,28]
[null,"Calamuchita",2,13,2,5,8]
[null,"Capital ",51,79,34,79,null,17]
[null,"Colón",7,12,7,9,3]
[null,"Cruz del Eje",3,8,3,4,4]
[null,"General Roca",3,5,3,3,2]
[null,"General San Martín",3,15,3,11,4]
[null,"Ischilín",1,4,1,3,1]
[null,"Juárez Celman",6,7,4,1,6,2]
[null,"Marcos Juárez",8,10,6,9,1,2]
[null,"Minas",null,3,null,null,3]
[null,"Pocho",null,3,null,1,2]
[null,"Pte. Roque Sáenz Peña",1,6,1,4,2]
[null,"Punilla",5,16,4,10,6,1]
[null,"Río Cuarto",12,21,9,19,2,3]
[null,"Río Primero",2,7,2,5,2]
[null,"Río Seco",1,6,1,1,5]
[null,"Río Segundo",4,12,4,6,6]
[null,"San Alberto",1,6,1,3,3]
[null,"San Javier",1,8,1,5,3]
[null,"San Justo",11,28,9,10,18,2]
[null,"Santa María",4,14,4,5,9]
[null,"Sobremonte",null,2,null,1,1]
[null,"Tercero Arriba",4,9,4,6,3]
[null,"Totoral",1,5,1,1,4]
[null,"Tulumba",1,5,1,null,5]
[null,"Unión",5,16,4,8,8,1]
[]
[null,"El sector estatal brinda la oferta de educación secundaria de la modalidad de Jóvenes y Adultos a través de anexos en el ámbito rural en tanto que el sector privado no tiene ni anexos ni oferta. "]

{"sheet":"C. 8.11","index":96,"n_rows":32,"n_cols":14,"rows_kept":32,"cut":false,"hidden":true,"merged":[[32,1,32,13],[1,1,1,13],[2,1,4,1],[2,2,3,4],[2,5,2,10],[2,11,2,13],[3,5,3,7],[3,8,3,10],[3,11,3,13]]}
[]
[null,"CUADRO 8.11 Alumnos por sector, ámbito y sexo, según departamento"]
[null,"Departamento","Total general",null,null,"Estatal",null,null,null,null,null,"Privado "]
[null,null,null,null,null,"Urbano",null,null,"Rural",null,null,"Urbano"]
[null,null,"Total","Mujeres","Varones","Total","Mujeres","Varones","Total","Mujeres","Varones","Total","Mujeres","Varones"]
[null,"Total Córdoba",46222,23817,22405,36564,19155,17409,4016,2089,1927,5642,2573,3069]
[null,"Calamuchita",645,367,278,452,258,194,193,109,84]
[null,"Capital",19359,10067,9292,14479,7876,6603,0,0,0,4880,2191,2689]
[null,"Colón",2895,1525,1370,2704,1428,1276,191,97,94]
[null,"Cruz del Eje",1216,449,767,1109,380,729,107,69,38]
[null,"General Roca",398,279,119,356,249,107,42,30,12]
[null,"General San Martín",1516,758,758,1442,699,743,74,59,15]
[null,"Ischilín",587,322,265,550,290,260,37,32,5]
[null,"Juárez Celman",683,410,273,397,238,159,167,120,47,119,52,67]
[null,"Marcos Juárez",1167,645,522,911,496,415,66,43,23,190,106,84]
[null,"Minas",89,49,40,null,null,null,89,49,40]
[null,"Pocho",65,38,27,28,15,13,37,23,14]
[null,"Pte. Roque Sáenz Peña",481,271,210,433,242,191,48,29,19]
[null,"Punilla",1911,987,924,1566,800,766,264,147,117,81,40,41]
[null,"Río Cuarto",2676,1456,1220,2383,1297,1086,87,71,16,206,88,118]
[null,"Río Primero",848,477,371,772,418,354,76,59,17]
[null,"Río Seco",304,157,147,191,85,106,113,72,41]
[null,"Río Segundo",1509,695,814,1319,588,731,190,107,83]
[null,"San Alberto",530,300,230,455,253,202,75,47,28]
[null,"San Javier",870,373,497,725,300,425,145,73,72]
[null,"San Justo",2976,1590,1386,2141,1205,936,751,337,414,84,48,36]
[null,"Santa María",2264,806,1458,1590,649,941,674,157,517]
[null,"Sobremonte",99,48,51,98,47,51,1,1,0]
[null,"Tercero Arriba",1083,605,478,1021,565,456,62,40,22]
[null,"Totoral",530,290,240,371,200,171,159,90,69]
[null,"Tulumba",293,158,135,122,60,62,171,98,73]
[null,"Unión",1228,695,533,949,517,432,197,130,67,82,48,34]

{"sheet":"C 8.12","index":97,"n_rows":7,"n_cols":6,"rows_kept":7,"cut":false,"hidden":true,"merged":[[2,2,2,3],[2,4,2,5],[1,1,1,5]]}
[]
[null,"Cuadro 8.12 Alumnos por ciclo y sector, según ámbito"]
[null,null,"Ciclo básico",null,"Ciclo orientado"]
[null,null,"Estatal","Privado","Estatal","Privado"]
[null,"Total Córdoba ",17690,1950,22890,3692]
[null,"Urbano",15685,1950,20879,3692]
[null,"Rural",2005,null,2011]

{"sheet":"C. 8.13 y 8.14","index":98,"n_rows":25,"n_cols":6,"rows_kept":25,"cut":false,"hidden":true,"merged":[[27,1,27,5],[3,1,5,1],[6,1,8,1],[9,1,9,5],[11,1,11,5],[12,1,12,5],[26,1,26,5],[1,1,1,5],[16,1,16,5],[18,1,20,1],[21,1,23,1],[24,1,24,5]]}
[]
[null,"Cuadro 8.13 Alumnos por sector, según modalidad de dictado y ámbito"]
[null,"Modalidad de dictado","Ámbito","Total ","Estatal","Privado"]
[null,"Presencial","Total",31093,29196,1897]
[null,null,"Urbano",29050,27153,1897]
[null,null,"Rural",2043,2043]
[null,"A distancia (*)","Total",15129,11384,3745]
[null,null,"Urbano",13156,9411,3745]
[null,null,"Rural",1973,1973]
[null,"(*) Se han incluido en esta categoría a los alumnos que han sido declarados en las secciones con “turno” a distancia, en vez de la variable “modalidad de dictado”."]
[]
[]
[]
[]
[]
[]
[null,"Cuadro 8.14 Alumnos por sexo, según modalidad de dictado y ámbito"]
[null,"Modalidad de dictado","Ámbito","Total ","Mujeres","Varones"]
[null,"Presencial","Total",31093,15341,15752]
[null,null,"Urbano",29050,14490,14560]
[null,null,"Rural",2043,851,1192]
[null,"A distancia (*)","Total",15129,8476,6653]
[null,null,"Urbano",13156,7238,5918]
[null,null,"Rural",1973,1238,735]
[null,"(*) Se han incluido en esta categoría a los alumnos que han sido declarados en las secciones con “turno” a distancia, en vez de la variable “modalidad de dictado”."]

{"sheet":"C. 8.15 ","index":99,"n_rows":6,"n_cols":5,"rows_kept":6,"cut":false,"hidden":true,"merged":[[1,1,1,4]]}
[]
[null,"CUADRO 8.15 Alumnos egresados del ciclo lectivo 2018, por sexo, según modalidad de dictado"]
[null,"Modalidad de dictado"," Total ","Mujeres"," Varones"]
[null,"Total Córdoba",7493,4134,3359]
[null,"Presencial",4925,2718,2207]
[null,"A distancia",2568,1416,1152]

{"sheet":" c. 8,15 A y B.","index":100,"n_rows":29,"n_cols":6,"rows_kept":29,"cut":false,"hidden":true,"merged":[[30,2,30,6],[18,2,18,5],[1,1,1,5],[3,1,3,2],[4,1,8,1],[9,1,14,1]]}
[]
[null,"CUADRO 8.15.A Modalidad presencial. Alumnos egresados del ciclo lectivo 2018, por sexo, según plan y orientación"]
[null,"Tipo de plan","Orientación"," Total ","Mujeres"," Varones"]
[null,"Total Córdoba",null,4925,2718,2207]
[null,"Planes anteriores","Bachiller",1,1,0]
[null,null,"Comercial",3,1,2]
[null,null,"Economía y Gestión de las Organizaciones",7,2,5]
[null,null,"Humanidades y Cs. Sociales",5,4,1]
[null,null,"Producción de Bienes y Servicios",163,92,71]
[null,"Planes actuales","Agro y Ambiente",177,120,57]
[null,null,"Ciencias Naturales",175,56,119]
[null,null,"Economía y Administración",3298,1816,1482]
[null,null,"Humanidades y Ciencias Sociales",370,174,196]
[null,null,"Informática",384,232,152]
[null,null,"Turismo",342,220,122]
[]
[]
[]
[null,null,"CUADRO 8.15.B Modalidad a distancia. Alumnos egresados del ciclo lectivo 2018, por sexo, según orientación"]
[null,null,"Orientación"," Total ","Mujeres","Varones"]
[null,null,"Total Córdoba",2568,1416,1152]
[null,null,"Agro y Ambiente",66,39,27]
[null,null,"Bachiller",18,7,11]
[null,null,"Economía y Administración",1115,539,576]
[null,null,"Humanidades y Ciencias Sociales",336,166,170]
[null,null,"Informática",826,527,299]
[null,null,"Producción de Bienes y Servicios",133,99,34]
[null,null,"Técnica",69,35,34]
[null,null,"Turismo",5,4,1]

{"sheet":" C 8.16","index":101,"n_rows":10,"n_cols":6,"rows_kept":10,"cut":false,"hidden":true,"merged":[[3,1,3,2],[4,1,6,1],[7,1,8,1],[9,1,9,5],[1,1,1,5]]}
[]
[null,"CUADRO 8.16 Personal docente en actividad, por sector, según lugar de origen y forma de designación"]
[null,"Lugar de origen","Forma de designación","Total  (*)","Estatal","Privado"]
[null,"Total Córdoba",null,7567,7054,513]
[null,"Personal designado en la planta del establecimiento","En actividad, designados sólo por cargo",331,264,67]
[null,null,"En actividad, designados sólo por horas cátedra",6956,6530,426]
[null,null,"En actividad, designados por cargo y horas cátedra",136,119,17]
[null,"Personal que proviene de otra planta","Docentes frente a alumnos afectados a este establecimiento que no pertenecen a esta planta funcional",26,26]
[null,null,"Docentes en otras funciones afectados a este establecimiento que no pertenecen a esta planta funcional",118,115,3]
[null,"(*)El personal docente en actividad hace referencia a todas las personas con designación docente que se desempeñan en las unidades educativas de la modalidad. Por esta razón, se cuentan tantas veces como ofertas en las que trabajan."]

{"sheet":"C 8.17","index":102,"n_rows":31,"n_cols":5,"rows_kept":31,"cut":false,"hidden":true,"merged":[[1,1,1,4],[3,6,6,8],[30,1,30,4]]}
[]
[null,"CUADRO 8.17 Personal docente en actividad, por sexo, según departamento"]
[null,"Departamento","Total ","Mujeres","Varones"]
[null,"Total Córdoba",7567,5299,2268]
[null,"Calamuchita",170,121,49]
[null,"Capital",2782,1759,1023]
[null,"Colón",370,272,98]
[null,"Cruz del Eje",185,149,36]
[null,"General Roca",91,67,24]
[null,"General San Martín",279,228,51]
[null,"Ischilín",84,58,26]
[null,"Juárez Celman",158,122,36]
[null,"Marcos Juárez",246,208,38]
[null,"Minas",38,32,6]
[null,"Pocho",26,16,10]
[null,"Pte. Roque Sáenz Peña",112,84,28]
[null,"Punilla",338,214,124]
[null,"Río Cuarto",563,396,167]
[null,"Río Primero",129,88,41]
[null,"Río Seco",70,48,22]
[null,"Río Segundo",210,165,45]
[null,"San Alberto",94,57,37]
[null,"San Javier",127,93,34]
[null,"San Justo",518,414,104]
[null,"Santa María",354,218,136]
[null,"Sobremonte",22,15,7]
[null,"Tercero Arriba",207,182,25]
[null,"Totoral",81,53,28]
[null,"Tulumba",55,41,14]
[null,"Unión",258,199,59]
[null,"(*) El personal docente en actividad hace referencia a todas las personas con designación docente que se desempeñan en las unidades educativas de la modalidad. Por esta razón, se cuentan tantas veces como ofertas en las que trabajan."]

{"sheet":"C. 8.18","index":103,"n_rows":32,"n_cols":6,"rows_kept":32,"cut":false,"hidden":true,"merged":[[4,7,7,9],[31,1,31,5],[1,1,1,5],[2,1,3,1],[2,2,3,2],[2,3,2,4]]}
[]
[null,"CUADRO 8.18 Personal docente en actividad, por sector y ámbito, según departamento"]
[null,"Departamento ","Total ","Estatal",null,"Privado"]
[null,null,null,"Urbano","Rural","Urbano"]
[null,"Total Córdoba",7567,6007,1047,513]
[null,"Calamuchita",170,93,77]
[null,"Capital",2782,2445,0,337]
[null,"Colón",370,339,31]
[null,"Cruz del Eje",185,150,35]
[null,"General Roca",91,75,16]
[null,"General San Martín",279,249,30]
[null,"Ischilín",84,77,7]
[null,"Juárez Celman",158,78,48,32]
[null,"Marcos Juárez",246,204,7,35]
[null,"Minas",38,null,38]
[null,"Pocho",26,9,17]
[null,"Pte. Roque Sáenz Peña",112,90,22]
[null,"Punilla",338,257,68,13]
[null,"Río Cuarto",563,494,18,51]
[null,"Río Primero",129,109,20]
[null,"Río Seco",70,32,38]
[null,"Río Segundo",210,162,48]
[null,"San Alberto",94,70,24]
[null,"San Javier",127,99,28]
[null,"San Justo",518,321,163,34]
[null,"Santa María",354,213,141]
[null,"Sobremonte",22,18,4]
[null,"Tercero Arriba",207,182,25]
[null,"Totoral",81,39,42]
[null,"Tulumba",55,18,37]
[null,"Unión",258,184,63,11]
[null,"(*) El personal docente en actividad hace referencia a todas las personas con designación docente que se desempeñan en las unidades educativas de la modalidad. Por esta razón, se cuentan tantas veces como ofertas en las que trabajan."]

{"sheet":"C.9.1","index":104,"n_rows":7,"n_cols":5,"rows_kept":7,"cut":false,"hidden":true,"merged":[[6,1,6,4],[7,1,7,4],[8,1,8,4],[1,1,1,4]]}
[]
[null,"CUADRO 9.1 Unidades educativas, alumnos y personal docente en actividad, por sector "]
[null,null,"Total ","Estatal","Privado"]
[null,"Unidades educativas",34,29,5]
[null,"Alumnos",9788,8992,796]
[null,"Personal docente (*)",650,587,63]
[null,"(*) El personal docente en actividad hace referencia a todas las personas con designación docente que se desempeñan en las unidades educativas de la modalidad, por esta razón se cuentan tantas veces como ofertas en las que trabajan."]

{"sheet":"C. 9.2","index":105,"n_rows":21,"n_cols":11,"rows_kept":21,"cut":false,"hidden":true,"merged":[[20,1,20,10],[1,1,1,10],[2,1,3,1],[2,2,2,4],[2,5,2,7],[2,8,2,10]]}
[]
[null,"CUADRO 9.2 Unidades educativas, alumnos y personal docente en actividad, por sector, según departamento"]
[null,"Departamento","Total ",null,null,"Estatal",null,null,"Privado"]
[null,null,"Unidades educativas","Alumnos","Personal docente (*)","Unidades educativas","Alumnos","Personal docente","Unidades educativas","Alumnos","Personal docente"]
[null,"Total Córdoba",34,9788,650,29,8992,587,5,796,63]
[null,"Capital",4,1260,82,3,1183,79,1,77,3]
[null,"Cruz del Eje",2,675,84,2,675,84]
[null,"General San Martín",2,858,64,2,858,64]
[null,"Ischilín",1,95,7,1,95,7]
[null,"Juárez Celman",2,511,16,2,511,16]
[null,"Marcos Juárez",2,1234,51,2,1234,51]
[null,"Pte. Roque Sáenz Peña",1,321,13,1,321,13]
[null,"Punilla",2,297,25,2,297,25]
[null,"Río Cuarto",4,959,78,3,798,64,1,161,14]
[null,"Río Segundo",2,251,35,1,203,21,1,48,14]
[null,"San Javier",1,16,4,1,16,4]
[null,"San Justo",4,987,51,4,987,51]
[null,"Sobremonte",1,44,2,1,44,2]
[null,"Tercero Arriba",2,635,38,1,492,32,1,143,6]
[null,"Unión",4,1645,100,3,1278,74,1,367,26]
[null,"(*) El personal docente en actividad hace referencia a todas las personas con designación docente que se desempeñan en las unidades educativas de la modalidad, por esta razón se cuentan tantas veces como ofertas en las que trabajan."]

{"sheet":"C.9.3 ","index":106,"n_rows":4,"n_cols":5,"rows_kept":4,"cut":false,"hidden":true,"merged":[[1,1,1,4],[5,1,5,4]]}
[]
[null,"CUADRO 9.3 Alumnos tipo de por oferta a la que asisten"]
[null,"Total ","Nivel inicial","Nivel básico: TAP","Cursos y talleres "]
[null,9788,1141,120,8527]

{"sheet":"C.9.4","index":107,"n_rows":36,"n_cols":11,"rows_kept":36,"cut":false,"hidden":true,"merged":[[56,1,56,10],[57,1,57,8],[1,1,1,10],[2,1,3,1],[2,2,2,4],[2,5,2,7],[2,8,2,10]]}
[]
[null,"CUADRO 9.4 Alumnos por sector y sexo, según especialidad"]
[null,"Especialidad"," Total general",null,null,"Estatal",null,null,"Privado"]
[null,null,"Total","Mujeres","Varones","Total","Mujeres","Varones","Total","Mujeres","Varones"]
[null,"Total Córdoba",9788,6366,3422,8992,5824,3168,796,542,254]
[null,"Arte",288,227,61,288,227,61]
[null,"Artes audiovisuales",45,32,13,45,32,13]
[null,"Artes gráficas",195,127,68,195,127,68]
[null,"Artes Plasticas/Visuales",2107,1472,635,1777,1262,515,330,210,120]
[null,"Batería",45,8,37,45,8,37]
[null,"Canto",230,163,67,230,163,67]
[null,"Cerámica",340,310,30,319,289,30,21,21]
[null,"Clarinete",12,6,6,12,6,6]
[null,"Danza",534,489,45,373,329,44,161,160,1]
[null,"Dibujo",76,61,15,76,61,15]
[null,"Dirección coral",21,13,8,21,13,8]
[null,"Diseño de objetos (Artesanías)",32,30,2,32,30,2]
[null,"Escultura",61,48,13,61,48,13]
[null,"Expresión Corporal",252,188,64,252,188,64]
[null,"Fagot",3,0,3,3,0,3]
[null,"Flauta Traversa",17,11,6,17,11,6]
[null,"Grabado",45,42,3,45,42,3]
[null,"Guitarra",176,82,94,151,73,78,25,9,16]
[null,"Humanidades (Literatura e Idiomas)",25,13,12,25,13,12]
[null,"Instrumento",1444,812,632,1444,812,632]
[null,"Música",3275,1869,1406,3034,1738,1296,241,131,110]
[null,"Oboe",6,2,4,6,2,4]
[null,"Piano",126,68,58,108,57,51,18,11,7]
[null,"Pintura",60,52,8,60,52,8]
[null,"Saxofón",14,5,9,14,5,9]
[null,"Teatro",302,208,94,302,208,94]
[null,"Trombón a Vara",13,4,9,13,4,9]
[null,"Trompeta",13,1,12,13,1,12]
[null,"Viola",2,2,0,2,2,0]
[null,"Violín",25,18,7,25,18,7]
[null,"Violoncello",4,3,1,4,3,1]

{"sheet":"FP C10.1","index":108,"n_rows":9,"n_cols":5,"rows_kept":9,"cut":false,"hidden":true,"merged":[[11,1,11,4],[1,1,1,4],[6,1,6,4],[7,1,7,4],[8,1,8,4],[10,1,10,4]]}
[]
[null,"CUADRO 10.1 Unidades educativas, alumnos y personal docente en actividad, según organismo de dependencia"]
[null,"Organismo","Unidades","Alumnos","Personal docente (*)"]
[null,"Total Córdoba",91,17922,612]
[null,"Ministerio de Educación",54,2223,99]
[null,"Secretaría de Equidad y Promoción del Empleo",37,15699,513]
[null,"Se incluyen solamente las unidades educativas activas que estaban dictando cursos al momento del relevamiento 2019"]
[null,"(*) El personal docente en actividad hace referencia a todas las personas con designación docente que se desempeñan en las unidades educativas de formación profesional; por esta razón, se cuentan tantas veces como ofertas en las que trabajan."]
[null,"Se incluye únicamente la oferta dependiente del Ministerio de Educación y de la Secretaría de Equidad y Promoción del Empleo, por lo que no figuran los cursos dictados por otros ministerios (provinciales o nacionales), por la municipalidad de Córdoba u otros municipios ni por las universidades. De igual manera, sólo están contabilizadas las unidades educativas que estaban dictando cursos al momento del relevamiento 2019."]

{"sheet":"FP C10.2","index":109,"n_rows":29,"n_cols":6,"rows_kept":29,"cut":false,"hidden":true,"merged":[[25,21,25,25],[26,1,26,5],[27,1,27,5],[28,1,28,5],[1,1,1,5],[25,1,25,5],[25,6,25,10],[25,11,25,15],[25,16,25,20]]}
[]
[null,"CUADRO 10.2 Bases, anexos, alumnos y personal docente en actividad, según departamento"]
[null,"Departamento","Bases","Anexos (*)","Alumnos","Personal docente (**)"]
[null,"Total Córdoba",54,37,17922,612]
[null,"Calamuchita",1,0,17,1]
[null,"Capital",10,13,7188,202]
[null,"Colón",4,1,906,44]
[null,"Cruz del Eje",2,1,471,17]
[null,"General Roca",2,0,186,13]
[null,"General San Martín",2,2,728,35]
[null,"Ischilín",1,0,103,6]
[null,"Juárez Celman",1,0,480,10]
[null,"Marcos Juárez",5,1,1187,15]
[null,"Pocho",1,0,57,4]
[null,"Presidente Roque S. Peña",1,0,90,6]
[null,"Punilla",5,0,1054,31]
[null,"Río Cuarto",1,1,157,15]
[null,"Río Primero",2,0,170,10]
[null,"Río Segundo",1,3,983,41]
[null,"San Javier",1,2,901,26]
[null,"San Justo",4,3,867,34]
[null,"Santa María",1,8,671,36]
[null,"Tercero Arriba",6,0,1087,40]
[null,"Tulumba",null,1,25,1]
[null,"Unión",3,1,594,25]
[null,"(*) Incluye siete aulas-taller móvil, consideradas como anexos del Centro de Capacitación Laboral y Formación Profesional “Córdoba”, con sede en la Capital."]
[null,"(**) El personal docente en actividad hace referencia a todas las personas con designación docente que se desempeñan en las unidades educativas de formación profesional; por esta razón, se cuentan tantas veces como ofertas en las que trabajan."]
[null,"Se incluye únicamente la oferta dependiente del Ministerio de Educación y de la Secretaría de Equidad y Promoción del Empleo, por lo que no figuran los cursos dictados por otros ministerios (provinciales o nacionales), por la municipalidad de Córdoba u otros municipios ni por las universidades. De igual manera, sólo están contabilizadas las unidades educativas que estaban dictando cursos al momento del relevamiento 2019."]
[null,"Los departamentos Minas, Río Seco, Sobremonte y Totoral no cuentan con oferta educativa de formación profesional. El departamento San Alberto no poseía oferta activa de formación profesional al momento del relevamiento."]

{"sheet":"C10.3","index":110,"n_rows":10,"n_cols":5,"rows_kept":10,"cut":false,"hidden":true,"merged":[[1,1,1,4],[9,1,9,4],[13,1,13,4]]}
[]
[null,"CUADRO 10.3 Alumnos por sexo, según niveles de estudio obligatorios"]
[null,"Niveles obligatorios","Total ","Mujeres","Varones"]
[null,"Total Córdoba",17922,9533,8389]
[null,"Con primaria completa o incompleta",3094,2134,960]
[null,"No asisten y tienen secundaria incompleta",4108,2066,2042]
[null,"Asisten a la educación secundaria",2220,931,1289]
[null,"Con secundaria completa",7929,4386,3543]
[null,"Sin especificar",571,16,555]
[null,"Se incluye únicamente la oferta dependiente del Ministerio de Educación y de la Secretaría de Equidad y Promoción del Empleo, por lo que no figuran los cursos dictados por otros ministerios (provinciales o nacionales), por la municipalidad de Córdoba u otros municipios ni por las universidades. De igual manera, sólo están contabilizadas las unidades educativas que estaban dictando cursos al momento del relevamiento 2019."]

{"sheet":"CSC10.4","index":111,"n_rows":12,"n_cols":4,"rows_kept":12,"cut":false,"hidden":true,"merged":[[1,1,1,3],[10,4,10,5],[11,1,11,3],[4,1,6,1],[7,1,8,1],[9,1,9,3],[10,1,10,3]]}
[]
[null,"CUADRO 10.4 Personal docente en actividad, por origen y forma de designación"]
[null,"Origen del personal","Forma de designación","Total   (*)"]
[null,"Total Córdoba",null,612]
[null,"Personal perteneciente a la planta del establecimiento","En actividad, designados solo por cargo",333]
[null,null,"En actividad, designados solo por horas cátedra",27]
[null,null,"En actividad, designados por cargo y horas cátedra",2]
[null,"Personal no perteneciente a la planta del establecimiento (**)","Docentes frente a alumnos, afectados a este establecimiento que no pertenecen a esta planta funcional",244]
[null,null,"Docentes en otras funciones, afectados a este establecimiento que no pertenecen a esta planta funcional",6]
[null,"(*) El personal docente en actividad hace referencia a todas las personas con designación docente que se desempeñan en las unidades educativas de formación profesional; por esta razón, se cuentan tantas veces como ofertas en las que trabajan."]
[null,"(**) Además del personal contratado del ReProCa (Registro Provincial de Capacitación), están incluidos aquellos docentes que tienen designaciones o cargos transferidos de otros organismos estatales (como el Banco de Córdoba o la Lotería) y quienes provienen de municipios, empresas y organizaciones no gubernamentales, entre otros, y por lo tanto no pertenecen a la planta funcional de donde ejercen."]
[null,"Se incluye únicamente la oferta dependiente del Ministerio de Educación y de la Secretaría de Equidad y Promoción del Empleo, por lo que no figuran los cursos dictados por otros ministerios (provinciales o nacionales), por la municipalidad de Córdoba u otros municipios ni por las universidades. De igual manera, sólo están contabilizadas las unidades educativas que estaban dictando cursos al momento del relevamiento 2019."]

{"sheet":"C10.5","index":112,"n_rows":28,"n_cols":5,"rows_kept":28,"cut":false,"hidden":true,"merged":[[28,1,28,4],[25,1,25,4],[26,1,26,4],[27,1,27,4],[1,1,1,4]]}
[]
[null,"CUADRO 10.5 Personal docente en actividad, por sexo, según departamento"]
[null,"Departamento","Total  (*)","Mujeres","Varones"]
[null,"Total Córdoba",612,299,313]
[null,"Calamuchita",1,1]
[null,"Capital",202,102,100]
[null,"Colón",44,22,22]
[null,"Cruz del Eje",17,8,9]
[null,"General Roca",13,5,8]
[null,"General San Martín",35,16,19]
[null,"Ischilín",6,5,1]
[null,"Juárez Celman",10,7,3]
[null,"Marcos Juárez",15,4,11]
[null,"Pocho",4,4]
[null,"Presidente Roque S. Peña",6,5,1]
[null,"Punilla",31,12,19]
[null,"Río Cuarto",15,3,12]
[null,"Río Primero",10,7,3]
[null,"Río Segundo",41,21,20]
[null,"San Javier",26,12,14]
[null,"San Justo",34,14,20]
[null,"Santa María",36,14,22]
[null,"Tercero Arriba",40,17,23]
[null,"Tulumba",1,null,1]
[null,"Unión",25,20,5]
[null,"(*) El personal docente en actividad hace referencia a todas las personas con designación docente que se desempeñan en las unidades educativas de formación profesional; por esta razón, se cuentan tantas veces como ofertas en las que trabajan."]
[null,"Se incluye únicamente la oferta dependiente del Ministerio de Educación y de la Secretaría de Equidad y Promoción del Empleo, por lo que no figuran los cursos dictados por otros ministerios (provinciales o nacionales), por la municipalidad de Córdoba u otros municipios ni por las universidades. De igual manera, sólo están contabilizadas las unidades educativas que estaban dictando cursos al momento del relevamiento 2019."]
[null,"Los departamentos Minas, Río Seco, Sobremonte y Totoral no cuentan con oferta educativa de formación profesional. El departamento San Alberto no poseía oferta activa de formación profesional al momento del relevamiento."]

{"sheet":"Carátula","index":113,"n_rows":10,"n_cols":2,"rows_kept":10,"cut":false,"hidden":true,"merged":[[9,1,9,8],[7,1,7,8]]}
[]
[]
[]
[]
[]
[]
[]
[null,"Estadísticas Educativas"]
[]
[null,"Anuario 2019"]

{"sheet":"CI Carátula","index":114,"n_rows":13,"n_cols":1,"rows_kept":13,"cut":false,"hidden":true,"merged":[[11,0,11,10],[12,0,12,10],[0,0,0,10],[1,0,1,10],[2,0,2,10]]}
["Estadísticas Educativas"]
[]
["Anuario 2019"]
[]
[]
[]
[]
[]
[]
[]
[]
["MODALIDAD COMÚN"]
["EDUCACIÓN INICIAL"]

{"sheet":"CP Carátula","index":115,"n_rows":13,"n_cols":1,"rows_kept":13,"cut":false,"hidden":true,"merged":[[11,0,11,10],[12,0,12,10],[0,0,0,10],[1,0,1,10],[2,0,2,10]]}
["Estadísticas Educativas"]
[]
["Anuario 2019"]
[]
[]
[]
[]
[]
[]
[]
[]
["MODALIDAD COMÚN"]
["EDUCACIÓN PRIMARIA"]

{"sheet":"CS Carátula","index":116,"n_rows":13,"n_cols":4,"rows_kept":13,"cut":false,"hidden":true,"merged":[[11,3,11,10],[12,3,12,10],[0,0,0,10],[1,0,1,10],[2,0,2,10]]}
["Estadísticas Educativas"]
[]
["Anuario 2019"]
[]
[]
[]
[]
[]
[]
[]
[]
[null,null,null,"MODALIDAD COMÚN"]
[null,null,null,"EDUCACIÓN SECUNDARIA"]

{"sheet":"S Carátula","index":117,"n_rows":13,"n_cols":4,"rows_kept":13,"cut":false,"hidden":true,"merged":[[11,3,11,10],[12,3,12,10],[0,0,0,10],[1,0,1,10],[2,0,2,10]]}
["Estadísticas Educativas"]
[]
["Anuario 2019"]
[]
[]
[]
[]
[]
[]
[]
[]
[null,null,null,"MODALIDAD COMÚN"]
[null,null,null,"EDUCACIÓN SUPERIOR "]

{"sheet":"E Carátula","index":118,"n_rows":13,"n_cols":4,"rows_kept":13,"cut":false,"hidden":true,"merged":[[12,3,12,10],[11,3,11,10],[0,0,0,10],[1,0,1,10],[2,0,2,10]]}
["Estadísticas Educativas"]
[]
["Anuario 2019"]
[]
[]
[]
[]
[]
[]
[]
[]
[null,null,null,"MODALIDAD  ESPECIAL"]
[null,null,null,"Todas las ofertas y niveles"]

{"sheet":"DH Carátula","index":119,"n_rows":13,"n_cols":4,"rows_kept":13,"cut":false,"hidden":true,"merged":[[12,3,12,10],[11,0,11,10],[0,0,0,10],[1,0,1,10],[2,0,2,10]]}
["Estadísticas Educativas"]
[]
["Anuario 2019"]
[]
[]
[]
[]
[]
[]
[]
[]
["MODALIDAD DOMICILIARIA Y HOSPITALARIA"]
[null,null,null,"Los niveles de la enseñanza obligatorios"]

{"sheet":"A Carátula","index":120,"n_rows":14,"n_cols":4,"rows_kept":14,"cut":false,"hidden":true,"merged":[[13,3,14,10],[0,0,0,10],[1,0,1,10],[2,0,2,10],[11,2,12,10]]}
["Estadísticas Educativas"]
[]
["Anuario 2019"]
[]
[]
[]
[]
[]
[]
[]
[]
[null,null,"MODALIDAD EDUCACIÓN PERMANENTE DE JÓVENES y ADULTOS"]
[]
[null,null,null,"Educación primaria y secundaria"]

{"sheet":"AP Carátula","index":121,"n_rows":14,"n_cols":4,"rows_kept":14,"cut":false,"hidden":true,"merged":[[13,3,14,10],[11,2,12,10],[0,0,0,10],[1,0,1,10],[2,0,2,10]]}
["Estadísticas Educativas"]
[]
["Anuario 2019"]
[]
[]
[]
[]
[]
[]
[]
[]
[null,null,"MODALIDAD EDUCACIÓN PERMANENTE DE JÓVENES y ADULTOS"]
[]
[null,null,null,"Educación primaria"]

{"sheet":"AS Carátula","index":122,"n_rows":14,"n_cols":4,"rows_kept":14,"cut":false,"hidden":true,"merged":[[0,0,0,10],[1,0,1,10],[2,0,2,10],[13,3,14,10],[11,2,12,10]]}
["Estadísticas Educativas"]
[]
["Anuario 2019"]
[]
[]
[]
[]
[]
[]
[]
[]
[null,null,"MODALIDAD EDUCACIÓN PERMANENTE DE JÓVENES y ADULTOS"]
[]
[null,null,null,"Educación secundaria"]

{"sheet":"Ar Carátula","index":123,"n_rows":12,"n_cols":2,"rows_kept":12,"cut":false,"hidden":true,"merged":[[11,1,11,10],[0,0,0,10],[1,0,1,10],[2,0,2,10]]}
["Estadísticas Educativas"]
[]
["Anuario 2019"]
[]
[]
[]
[]
[]
[]
[]
[]
[null,"MODALIDAD EDUCACIÓN ARTÍSTICA"]

{"sheet":"FP Carátula","index":124,"n_rows":12,"n_cols":1,"rows_kept":12,"cut":false,"hidden":true,"merged":[[11,0,11,10],[0,0,0,10],[1,0,1,10],[2,0,2,10]]}
["Estadísticas Educativas"]
[]
["Anuario 2019"]
[]
[]
[]
[]
[]
[]
[]
[]
["FORMACIÓN PROFESIONAL"]